Workbook

Sheet Instructions
A1: moneyble.com | B1: Read instructions before you begin
B3: Enable Macros This file uses Excel Macros. You won't be able to use this template if Macros are not enabled
B5: You may see red error message like below… This is because this Excel file was downloaded from the internet
B6: Read the article from Microsoft for instructions on how to fix it:
B7: https://support.microsoft.com/en-us/topic/a-potentially-dangerous-macro-has-been-blocked-0952faa0-37e7-4316-b61d-5b5ed6024216
B23: Make a copy of this file. Use one copy as your master document. Another copy is a back up to look up formulas in case the master file is messed up. It is also a good idea to make back up copies of your master file periodically. Excel is great because it is flexible, but flexibility makes it a fragile tool too
B25: The main idea is to capture and classify all spending. Without turning yourself into a personal finance freak. This Excel file offers 4 ways to enter transactions: 1) Cell phone transaction entry (iPhone / Android / Any other device with internet browser) 2) Bank statement import (virtually all banks are supported. Any country. As long as your bank allows downloading transactions as a text file) 3) Subscriptions that generate transactions based on schedule 4) Manual entry with automatic formulas (see buttons under Moneyble ribbon) You don't need to be entering transactions in Excel every day or keeping receipts. You can sync up transactions from your bank every couple of weeks. Or you can be entering transactions on the go on a cell phone and pull them into Excel periodically. More details below...
A27: Table of contents | B27: Transactions Sheet
B28: Budgeting
B29: Excel File Management
B30: Import Bank Statements
B31: Mobile Phone Expense Entry
A33: Transactions Sheet | B33: Transactions sheet has 3 sections:
A34: Back to TOC | B34: - Normal regular transactions
B35: - Forecast - Transactions that will happen in the near future (you can adjust horizon in days). It let's you see your account balance on any given day within the horizon. Forecast is created from Subscriptions. You can also add an unplanned forecast transaction yourself
B36: - Subscriptions - Transaction Schedule that generates Forecast Transactions. Example: Bills, Salary, other regular transactions
B37: You can use all 3 sections or you can just use Normal transactions. Do not delete sections to avoid errors in formulas and macros. Just keep the section blank if you don't use it yet.
B38: Add all your recurring transactions as subscriptions. This step will take time initially. But it will be a timesaver in the future
B40: Imortant: When adding or deleting transactions - only use Add and Delete buttons on the Moneyble ribbon. Do not insert rows or delete rows with Excel's insert row / delete row. Ribbon buttons ensure the formulas are copied properly. If you add or delete records using normal Excel functions - you have to copy row formulas yourself starting from column R and everything to the right Moneyble ribbon comes with this file. It is not installed. It is just part of this file. It is meant to speed up common actions like filtering and editing transactions
B55: Hover over each button to see the description of what it does
B57: This template comes with 12 columns designed to hold 6 accounts. You can hide account columns that you don't use. You can add more accounts by copying one of the existing account column pairs. If you create more than 6 accounts - also copy the last column on Transactions sheet (Column "AE"). Columns "Z" through "AE" are used for filtering
B58: You can hide columns or add more columns between "B" and "E". Keep it simple. This will save you time in the long run. Focus on the Budget, Savings, Net Worth rather than the transaction details
B59: You can hide columns or add more columns in the rolling total section. Columns "R" "S" "T" and "U" Adjust formulas in columns "R" and "S" to reflect your account types
B60: Do not remove or hide columns "V" through "AE". They are used by various buttons. Position of these columns might change if you add or remove columns before them. But they should start with column named "Month"
B61: You can make a copy of the Transactions sheet. You can keep one sheet for your every day accounts and another sheet for investments / savings. Or you may want to have a separate sheet for a special project. The same column / row structure but for different accounts. Moneyble Ribbon buttons will work on copies of Transactions sheet as long as you maintain the same sheet structure One thing to remember: Import sheet is used to copy bank statements to the Transactions sheet. Import sheet will only import transactions to the original Transactions sheet
B62: If you are using weekly subtotals in the Transactions sheet - you want these subtotal records to be excluded from formulas - put "S" in the column A (Date).
B63: If Transactions sheet becomes slow due to a lot of data (2 years of data or more) - perform the following steps: 1) Select large section of cells with formulas starting with column R: R3 to ACXXXX where XXXX is the row about 3 months in the past. Example if this is January select cells from the beginning of the Transactions sheet till about October of the prior year 2) Copy (Ctrl +C) 3) Don't change active cell. Stay where you are. Select Paste Special -> Values 4) Close the file. Close Excel completely 5) Reopen the file. It should perform faster now Slowliness is due to a lot of forumulas that need to be recalculated. If you replace these formulas with static values - Excel will become much more responsive. Excel can handle a lot of data. It just does not like recalculating a lot of formulas. And it is very unlikely that you will insert new transactions 3 months in the past. So these formulas in the past don't need to be recalculated
A65: Budgeting | B65: Start with simple (less than 10 categories) budget. You can always make it more complex later. You can also leverage subcategories or vendor/business name for ad-hoc filtering and search. Most people's brain cannot remember more than 5-10 numbers. And it is best if you know your monthly spend by category
A66: Back to TOC | B66: Start with every day accounts first (checking and credit cards). You can add investment accounts, mortgage or other loans later. Best to create separate sheets for such
B67: You can feed balances into the Net Worth sheet from various custom sheets: mortgage schedule, investment portfolio, etc.
B68: Create new Budget sheets for every new year by copying last year's Budget sheet and changing the year in column A1
B70: Budget Categories on Transactions Sheet and Budget Sheets are linked with formulas. As you start using new Budget Categories on the Transactions sheet - add them to the Budget sheets. Also add them to them to the bottom of the Setup sheet
B71: As you add or remove budget categories on the Budget sheet - add them in one of the months. Then copy/paste the whole month section to the other months.
B72: Important: Make sure only the Budget Categories listed on the Budget sheets are used in the Transactions sheet. The only exceptions are: 1) Transfers and 2) Reimbursable expenses, Reimbursement payments. Transactions of these two types should net out to zero. This will ensure no transactions are missed when looking at the budget
B73: One of the goals is to make sure your monthly income is always greater than your monthly expenses. Always.
A75: Excel File Management | B75: If you place this Excel file in OneDrive or similar cloud - you can open it from a cell phone too.
A76: Back to TOC | B76: Columns can be renamed on most sheets
B77: Excel sheets can be placed in any order
B78: New sheets can be added
B79: You can add (or remove) accounts on Net Worth sheet (as rows) and Transactions sheet (as columns)
B80: You can copy columns F and G on Transactions sheet and rename them to create new accounts
B81: Use first row on Net Worth sheet to define what periods (year and quarter) you want to see
B82: Net Worth Sheet can be completely changed or replaced with your existing Net Worth sheet
A85: Import Bank Statements | B85: This Excel template does not use nor store your online banking passwords
A86: Back to TOC | B86: Import and Mapping sheets are used to import transactions from your bank statement into Transactions sheet
B87: Download your bank statement (as CSV/text/Excel) from your online banking. Open it as text or Excel file. Copy-paste transactions to the Import sheet. Starting point is column A the cell right below the grey row
B88: Account Order on Import Sheet (Column "B") determins the target columns on the Transactions Sheet (Columns F and G for Account Order = 1, Columns H and I for Account Order = 2, etc.)
B89: Use the grey row to define the type of data in the columns. Check out values in the dropdown list of the cells in the grey row. Use Description 1, 2 and then 3 for columns that describe the vendor or provide any other useful information about the transaction. Text in such columns will be used to assign transactions to your descriptions based on the Mapping sheet
B90: If the column data is not useful keep the column title blank
B104: Press Validate button. Review proposed transaction description on the right. Change any proposed values to what they should be.
B105: If you don't want certain transactions to be imported (they could have been entered already using subscriptions or manually) - Remove the amount in the table on the right-hand side
B106: Use columns J, K, L, M on Import sheet to describe the transaction. You only need to do it once per each new vendor. Once the statement is imported the Mapping sheet will be updated automatically. Next time you import a transaction from the same vendor - it will pull columns J, K, L, M from the Mapping sheet. If you don't want to update Mapping for a specific transaction during import - blank out Update Mapping column
B107: Once you reviewed and adjusted transactions - press Copy to Transactions button
B108: Review copied transactions and the new account balance on the Transactions sheet
B109: Review Mapping sheet periodically. Remove city names, store numbers and other irrelevant information from Description columns (yellow) on the mapping sheet. Keep only the key words. Example: Your bank statement has a line like this as transaction description: "WHOLEFDS GLA 10336 GLASTONBURY CT AMT 239.59 " This whole description is written to the Mapping sheet. Mapped to Groceries - Whole Foods After you copy transactions - go to the Mapping sheet - remove all words after WHOLEFDS. Keep the mapping. Now all your future transactions in any WHOLEFDS will be mapped to Groceries - Whole Foods. It will take time initially. But it will become faster once your frequently used vendors are in the Mapping sheet
B110: You can use Amount column on the Mapping sheet. This is optional. You can create 2 mapping records that look the same with different amounts and drive them to different Budgets/Place/Tag/Comment combinations This can be useful If you periodically send the same amount to different people. If all transfers look the same on your statement
B111: I suggest importing bank statements for the last 6-12 months starting with the oldest. This will create transaction history and will allow you to analyze your spending / will help identify all subscriptions and frequent vendors in one shot. Use this data to set proper budgets suitable for you
B112: Rename hyperlinks on the Import sheet and change account names in the blue row as requied. Use multiple Import Statement sections (1-5) if you are importing bank statements from different banks in different formats
A114: Mobile Phone Expense Entry | B114: Expense entry on a cell phone is done using Google Forms. There is a little bit of work that has to happen. But below is a step-by-step instruction
A115: Back to TOC
B116: High-level steps:
B117: (1) Google Forms: Create Expense Entry Form
B118: (2) Google Forms: Link Form Responses to Google Sheet
B119: (3) Google Sheets: Publish Google Sheet
B120: (4) Excel: Link Google Sheet to Excel
B121: (5) Excel: Import Transaction from Google to Transactions sheet
B122: (6) Excel and Google: Delete Processed Transactions (optional)
A124: (1) Google Forms: Create Expense Entry Form
A125: Back to TOC
B126: (1.1) Use the link below to make your own copy of the Moneyble Google Form. If the link does not work go to step (1.4.1) below
B127: https://docs.google.com/forms/d/1FINGPQZEvU2gZyoJf6akOmLZfLk3J6VGjQbSFwirSqg/copy
B129: The form has the following fields:
B130: Date
B131: Account *
B132: Budget *
B133: Place
B134: Sub-Budget
B135: Comment
B136: Amount *
B137: * - required fields
B138: This Excel file is designed to work with these fields in this order. Optional fields can be left blank during form submission.
B139: If the date is blank - today's date is used.
B140: (1.2) Rename Account values to match your accounts. Add or remove values as necessary. Important: Choices entered on Google Form should exactly match the account names in the first row on the Transactions sheet in this Excel file. The order does not matter. But the name should be exact match. If you have accounts that you don't plan to use on mobile entry form - skip them. I.e. you can have 5 accounts in the Transactions sheet. But only 3 as choices in the Google Form. You will thank yourself later if you make Google Form simpler
B141: (1.3) Rename Budget field choices to match your Budget. Add or remove values as necessary. Again: Choices should match Expense Budget Categories in Excel on the Budget sheet. Likely you don't need Income Budget Categories on Google Form. But everyone's situation is different. You can change the Google Form later too. Keep the Budget Category called "Other" or "General" for miscellaneous. Do not use Google's built-in "Other..." option. Built-in "Other..." option will give you free-form text field. We do not want free-form. We only want specific Budget names as defined in this Excel
B142: (1.4) Repeat above step for Place, Sub-Budget and Comment fields. You can also change field type from radiobutton multiple choice to just a short answer field type. If you keep the radiobuttons - make sure Google's built-in "Other..." option is included in all three fields to allow free-form text in addition to mulitple choice. Unlike Budget - these three fields should allow both: radiobuttons (to speed up transaction entry) and free-text values. If you end up with long lists - sort the values alphabetically You can update these values based on transaction histroy later
B143: (1.5) Keep Date and Amount fields as is. Do not add or remove form fields at this point. Keep these fields. In this order. Once the form is connected to Excel you can add or remove fields. You can make the form as simple as Date, Budget and Amount. Or you can make additional fields to capture say the picture of the receipt.
B145: Below steps are for creating Google Form from scratch. If you have completed steps (1.1-1.5) successfully - skip to step (1.6)
B147: (1.4.1) Open google.com
B148: (1.4.2) Click the apps button in the top right corner. Scroll down. Click on Forms
B173: (1.4.3) Create new Blank form. Form Title can be anything. Expense Entry sounds simple
B184: (1.4.4) Important: Create the following 7 form entry fields. Use exact names as outlined below. Use exact same order and types
B186: 1. Name: Date
B187: Type: Date
B189: 2. Name: Account
B190: Type: Multiple Choice
B191: Important: Choices entered should exactly match the account names in the first row on the Transactions sheet in this Excel file. If you have accounts that you don't plan to use on mobile entry form - skip them. I.e. you can have 5 accounts in the Transactions sheet. But only 3 as choices in the Google Form. You will thank yourself if you make Google Form simpler
B193: 3. Name: Budget
B194: Type: Multiple Choice
B195: Again: Choices should match Expense Budget Categories in Excel on Budget sheet. Likely you don't need Income Budget Categories on Google Form. But everyone's situation is different. You can enter both expenses and income if you like. You can add more budget categories later too.
B197: 4. Name: Place
B198: Type: Short Answer or Multiple choice with Other… option
B200: 5. Name: Sub-Budget
B201: Type: Short Answer or Multiple choice with Other… option
B203: 6. Name: Comment
B204: Type: Short Answer or Multiple choice with Other… option
B206: 7. Name: Amount
B207: Type: Short Answer
B208: Response Validation: Is Number
B210: That's it for now. You can change this form in the future as you add new accounts or start tracking different budgets
B239: (1.6) Test your Form by clicking Preview button (top right corner)
B247: (1.7) Fill in the form at least once. Click Submit. We need at least one form response for testing. Note: For the first entry provide values in all fields - this will prevent issues with cell type formats in Excel. In the future - you can leave optional fields blank
B249: (1.8) Close Form Preview mode in browser. Go back to the Design mode
B250: https://docs.google.com/forms/u/0/
B252: (1.9) Add this form to your cell phone's home screen. Click Send button in Form Design view to get hyperlink to the form. The easiest way is to email the link to yourself. Then open the hyperlink on your cell phone in Chrome or Safari. Follow the screenshots below to add Google Form to you home screen as an app icon
B255: Android Chrome browser | C255: iPhone Safari
A283: (2) Google Forms: Link Form Responses to Google Sheet
A284: Back to TOC
A310: (3) Google Sheets: Publish Google Sheet to the Web
A311: Back to TOC
B312: (3.1) Google Sheet window will open up automatically. Click Share button
B322: (3.2) Change access to "Anyone with the link". Then click Copy link
A343: (4) Excel: Link Google Sheet to Excel
A344: Back to TOC
B345: (4.1) In this Excel file open Import Sheet. Click Mobile Phone hyperlink (Cell A1). Select cell B2504. Paste Google link in this cell. Note: The link contains unique Google Sheet ID of your newly created Google Sheet: long gibberish part after https://docs.google.com/spreadsheets/d/
B366: (4.2) Click Create Google Table button
B368: A new table appears in Excel Import sheet. It should contain at least one record for the Form Response you've made previously
A389: (5) Excel: Import Transaction from Google to Transactions sheet
A390: Back to TOC
B391: Note: Refresh button will fetch new records from Google. You don't have to click this button at this step since the record(s) were already fetched. But you will use this button in the future
B393: (5.1) Review transaction(s). Make sure Account name (column C) matches exactly the name(s) specified on Transactions sheet in row 1. Update Transactions sheet if necessary
B395: (5.2) Click Copy to Transactions button
A428: (6) Excel and Google: Delete Processed Transactions (optional)
A429: Back to TOC
B430: Steps below are completely optional. Expense transactions will remain in Google Form and Google Sheets. But these transactions will be ignored. You can leave them be. Or you can periodically delete them
B432: To delete transactions from Google Sheets click Open Google Sheets and Delete Processed Transactions button
B453: Accept message to Skip Verification
B463: -> Select All Rows with data -> Right-Click -> Delete
B466: This button will clear the table in Excel. But Google Sheets table has to be cleared manually. A new browser window will pop up with Google Sheets. Select all rows with data in Google Sheets. Right Click. Delete Rows X-X
B497: It is counterintuitive. But Google stores data in the Google Form and Google Sheets separately To delete transactions from Google Form open Google Form -> Responses -> three-dot button -> Delete all responses. Again: completely optional. Nothing will break if they stay there forever
A529: This is it. You can enter expenses on your cell phone and sync them up to Excel. Enjoy!
A531: Back to TOC
A534: If you have suggestions / improvement ideas - please send me an email at moneyble.com@gmail.com

Sheet Import
A1: Mobile Phone | B1: Statement 1 | C1: Statement 2 | D1: Statement 3 | E1: Statement 4 | F1: Statement 5 | AY1: 14 | AZ1: 15 | BA1: 269 | BB1: 255 | BC1: 254
A3: Bank Statement Import
A4: Go to Top
A6: Account Order: | B6: 3 | E6: Import From Date | F6: 2024-10-01
A7: Amount Rounding | B7: Round to 5 | E7: Reverse Amount Column | F7: No
A9: Date Column | B9: Amount Column | D9: Description 2 | E9: Description 1 | I9: Date | J9: Budget | K9: Place | L9: Tag | M9: Comment | N9: + | O9: - | P9: Update Mapping
A10: 2024-10-07 | B10: -17.46 | C10: - | D10: POS Purchase | E10: FPOS GRAND BAY HH BLDG CTGRAND | CT10: 5 | CV10: 5
A11: 2024-10-10 | B11: -59.17 | C11: - | D11: POS Purchase | E11: TIM HORTONS #2633 ST. ANDREWS NB | CT11: 19 | CV11: 19
A501: Bank Statement Import
A502: Go to Top
A504: Account Order: | B504: 2 | E504: Import From Date | F504: 2024-08-06
A505: Amount Rounding | B505: Round to 5 | E505: Reverse Amount Column | F505: No
A507: Date Column | B507: Description 1 | C507: Amount Column | I507: Date | J507: Budget | K507: Place | L507: Tag | M507: Comment | N507: + | O507: - | P507: Update Mapping
A1002: Bank Statement Import
A1003: Go to Top
A1005: Account Order: | B1005: 3 | E1005: Import From Date | F1005: 2024-08-06
A1006: Amount Rounding | B1006: Round to 5 | E1006: Reverse Amount Column | F1006: No
A1008: Date Column | B1008: Amount Column | D1008: Description 2 | E1008: Description 1 | I1008: Date | J1008: Budget | K1008: Place | L1008: Tag | M1008: Comment | N1008: + | O1008: - | P1008: Update Mapping
CV1015: 17
CV1017: 8
CV1018: 10
CV1019: 11
CV1020: 13
CV1021: 8
A1502: Bank Statement Import
A1503: Go to Top
A1505: Account Order: | B1505: 4 | E1505: Import From Date | F1505: 2024-08-06
A1506: Amount Rounding | B1506: Round to 5 | E1506: Reverse Amount Column | F1506: No
A1508: Date Column | B1508: Amount Column | D1508: Description 2 | E1508: Description 1 | I1508: Date | J1508: Budget | K1508: Place | L1508: Tag | M1508: Comment | N1508: + | O1508: - | P1508: Update Mapping
CV1510: 11
CV1511: 12
CV1512: 13
CV1513: 14
CV1515: 15
CV1517: 16
CV1518: 17
CV1519: 18
CV1520: 19
CV1521: 16
A2002: Bank Statement Import
A2003: Go to Top
A2005: Account Order: | B2005: 5 | E2005: Import From Date | F2005: 2024-08-06
A2006: Amount Rounding | B2006: Round to 5 | E2006: Reverse Amount Column | F2006: No
A2008: Date Column | B2008: Amount Column | D2008: Description 2 | E2008: Description 1 | I2008: Date | J2008: Budget | K2008: Place | L2008: Tag | M2008: Comment | N2008: + | O2008: - | P2008: Update Mapping
CV2010: 15
CV2011: 18
CV2012: 3
CV2013: 20
CV2015: 17
CV2017: 8
CV2018: 10
CV2019: 11
CV2020: 13
CV2021: 8
A2501: Transaction Import from Mobile Phone
A2502: Go to Top | T2502: Important: Periodically manually delete all rows in the Google Sheets table
A2503: Google Sheet ID: | T2503: Excel cannot modify Google Sheets
A2504: Google Sheet Link:

Sheet Mapping
A1: Description 1 | B1: Description 2 | C1: Description 3 | D1: Amount | F1: Budget | G1: Place | H1: Tag | I1: Comment | J1: Columns B, C, D are optional. Fill them only if needed
A2: Mcdonald's | F2: Entertainment | G2: McDonalds | H2: Eat-out | I2: West
A3: Bell Aliant | F3: Bills | G3: Bell | H3: Utilities | I3: Internet
A4: FOODLAND | F4: Groceries | G4: Sobeys
A5: FPOS GRAND BAY HH BLDG CTGRAND | F5: Shopping | G5: HomeHardware
A6: TD ON-LINE | F6: Car | G6: TD | H6: Loan
A7: VIRGIN MOBILE | F7: Bills | G7: Virgin | H7: Utilities | I7: Phone
A8: WWW COSTCO | F8: Groceries | G8: Costco
A9: Ikea | F9: Other | G9: Ikea | H9: House | I9: Closet
A10: CDN TIRE STORE | F10: Shopping | G10: Canadian Tire | H10: Me | I10: Tools
A11: FREE INTERAC E-TRANSFER | B11: WITHDRAWAL | D11: 105 | F11: Reimbursement | G11: Rose | H11: Nata | I11: Acupuncture
A12: FREE INTERAC E-TRANSFER | B12: WITHDRAWAL | D12: 315 | F12: Reimbursement | G12: Cheryl | H12: Nata | I12: Acupuncture
A13: HM Hennes Mauritz Inc. Toronto ON | F13: Shopping | G13: H&M | H13: Nata | I13: Clothes
A14: Amazon.ca Prime Member amazon.ca/priBC | F14: Bills | G14: Amazon | H14: Subscription | I14: Prime
A15: PETSMART INC. 2263 MONCTON NB | F15: Groceries | G15: Petsmart Inc. | H15: Cat | I15: Food
A16: WHOLEFDS | F16: Groceries | G16: Whole Foods
A17: STAPLES STORE | F17: Shopping | G17: Staples | H17: Kids | I17: Back to School
A18: PUBLIC MOBILE 855-4782542 BC | F18: Bills | G18: Public Mobile | H18: Daniella | I18: Cell Phone
A19: TIM HORTONS | F19: Entertainment | G19: Tim Hortons | H19: Eat-out
A20: SQ *MCGUIRE CHOCOLATE COMSaint AndrewsNB | F20: Entertainment | G20: St Andrews | H20: Ice-cream
A21: CIRCLE K / IRVING | F21: Car | G21: Irving | H21: Prius | I21: Gas
A22: HARBOUR STATION 506-632-6103 NB | F22: Entertainment | G22: Harbour Station | H22: Tickets
A23: Amazon.ca | F23: Shopping | G23: Amazon
A24: TEMU.COM | F24: Shopping | G24: Temu
A25: DESIGNER BRANDS SHOES NORTH YORK ON | F25: Shopping | G25: Shoe Company | I25: Shoes
A26: CAN TIRE STORE | F26: Shopping | G26: Canadian Tire | H26: Me | I26: Tools
A27: HM Hennes Mauritz Inc. Toronto ON | F27: Shopping | G27: H&M | I27: Clothes
A28: Amazon.ca Prime Member amazon.ca/priBC | F28: Bills | G28: Amazon | H28: Subscription | I28: Prime
A29: PETSMART INC. | F29: Groceries | G29: PetSmart | H29: Cat | I29: Food
A30: NETFLIX.COM 866-716-0414 ON | F30: Bills | G30: Netflix | H30: Utilities | I30: TV
A31: TIM HORTONS | F31: Entertainment | G31: Tim Hortons | H31: Eating Out
A32: AMZN Mktp | F32: Shopping | G32: Amazon
A33: AMAZON* | F33: Shopping | G33: Amazon
A34: SEQUOIA ON TRINITY MONCTON NB | F34: Groceries | G34: Sequoia | H34: Groceries
A35: SOBEYS | F35: Groceries | G35: Sobeys | H35: Groceries
A36: NO FRILLS | F36: Groceries | G36: Superstore | H36: Groceries

Sheet Transactions
A1: Date ↓ | B1: Budget | C1: Place | D1: Sub-Budget | E1: Comment | F1: Cash | G1: Cr1 | H1: Checking | I1: Cr2 | J1: Visa | K1: Cr3 | L1: MasterCard | M1: Cr4 | N1: Visa2 | O1: Cr5 | P1: Wife's Checking | Q1: Cr6 | R1: Debit | S1: Credit Cards | T1: Balance | U1: Reimbursements | V1: Month | W1: Year | X1: Amount | Y1: Forecast | Z1: Account 1 | AA1: Account 2 | AB1: Account 3 | AC1: Account 4 | AD1: Account 5 | AE1: Account 6
A2: 2021-12-31 | B2: Initial Balance | F2: 100 | H2: 5000 | K2: 3000 | M2: 0 | O2: 0 | P2: 0 | R2: =F2+H2+P2-G2-I2-Q2 -> 5100 | S2: =J2+L2+N2-K2-M2-O2 -> -3000 | T2: =F2+H2+J2+L2+N2+P2-G2-I2-K2-M2-O2-Q2 -> 2100 | V2: =MONTH(A2) -> 12 | W2: =YEAR(A2) -> 2021 | X2: =F2+H2+J2+L2+N2+P2-G2-I2-K2-M2-O2-Q2 -> 2100 | Z2: =F2-G2 -> 100 | AA2: =H2-I2 -> 5000 | AB2: =J2-K2 -> -3000 | AC2: =L2-M2 -> 0 | AD2: =N2-O2 -> 0 | AE2: =P2-Q2 -> 0
A3: 2024-10-27 | B3: Groceries | C3: Superstore | K3: 390 | R3: =R2+F3+H3+P3-G3-I3-Q3 -> 5100 | S3: =S2+J3+L3+N3-K3-M3-O3 -> -3390 | T3: =T2+F3+H3+J3+L3+N3+P3-G3-I3-K3-M3-O3-Q3 -> 1710 | U3: =IF(B3="Reimbursement",U2+X3,IF(B3="Settled",U2+X3,U2)) -> 0 | V3: =MONTH(A3) -> 10 | W3: =YEAR(A3) -> 2024 | X3: =F3+H3+J3+L3+N3+P3-G3-I3-K3-M3-O3-Q3 -> -390 | Z3: =F3-G3 -> 0 | AA3: =H3-I3 -> 0 | AB3: =J3-K3 -> -390 | AC3: =L3-M3 -> 0 | AD3: =N3-O3 -> 0 | AE3: =P3-Q3 -> 0
A4: 2024-10-28 | B4: Shopping | C4: Amazon | D4: Electronics | E4: Media Player | K4: 95 | R4: =R3+F4+H4+P4-G4-I4-Q4 -> 5100 | S4: =S3+J4+L4+N4-K4-M4-O4 -> -3485 | T4: =T3+F4+H4+J4+L4+N4+P4-G4-I4-K4-M4-O4-Q4 -> 1615 | U4: =IF(B4="Reimbursement",U3+X4,IF(B4="Settled",U3+X4,U3)) -> 0 | V4: 10 | W4: 2024 | X4: =F4+H4+J4+L4+N4+P4-G4-I4-K4-M4-O4-Q4 -> -95 | Z4: =F4-G4 -> 0 | AA4: =H4-I4 -> 0 | AB4: =J4-K4 -> -95 | AC4: =L4-M4 -> 0 | AD4: =N4-O4 -> 0 | AE4: =P4-Q4 -> 0
A5: 2024-10-29 | B5: Bills | C5: Virgin | D5: Utilities | E5: Cell Phone | K5: 40 | R5: =R4+F5+H5+P5-G5-I5-Q5 -> 5100 | S5: =S4+J5+L5+N5-K5-M5-O5 -> -3525 | T5: =T4+F5+H5+J5+L5+N5+P5-G5-I5-K5-M5-O5-Q5 -> 1575 | U5: 0 | V5: 10 | W5: 2024 | X5: =F5+H5+J5+L5+N5+P5-G5-I5-K5-M5-O5-Q5 -> -40 | Z5: =F5-G5 -> 0 | AA5: =H5-I5 -> 0 | AB5: =J5-K5 -> -40 | AC5: =L5-M5 -> 0 | AD5: =N5-O5 -> 0 | AE5: =P5-Q5 -> 0
A6: 2024-10-29 | B6: Salary | C6: Employer 1 | H6: 3000 | R6: 8100 | S6: -3525 | T6: 4575 | U6: 0 | V6: 10 | W6: 2024 | X6: 3000 | Z6: 0 | AA6: 3000 | AB6: 0 | AC6: 0 | AD6: 0 | AE6: 0
A7: 2024-10-29 | B7: Bills | C7: RBC | D7: Mortgage | E7: Interest | I7: 400 | R7: =R6+F7+H7+P7-G7-I7-Q7 -> 7700 | S7: =S6+J7+L7+N7-K7-M7-O7 -> -3525 | T7: =T6+F7+H7+J7+L7+N7+P7-G7-I7-K7-M7-O7-Q7 -> 4175 | U7: 0 | V7: 10 | W7: 2024 | X7: =F7+H7+J7+L7+N7+P7-G7-I7-K7-M7-O7-Q7 -> -400 | Z7: =F7-G7 -> 0 | AA7: =H7-I7 -> -400 | AB7: =J7-K7 -> 0 | AC7: =L7-M7 -> 0 | AD7: =N7-O7 -> 0 | AE7: =P7-Q7 -> 0
A8: 2024-10-29 | B8: Savings | C8: RBC | D8: Mortgage | E8: Principal | I8: 1200 | R8: =R7+F8+H8+P8-G8-I8-Q8 -> 6500 | S8: =S7+J8+L8+N8-K8-M8-O8 -> -3525 | T8: =T7+F8+H8+J8+L8+N8+P8-G8-I8-K8-M8-O8-Q8 -> 2975 | U8: 0 | V8: 10 | W8: 2024 | X8: =F8+H8+J8+L8+N8+P8-G8-I8-K8-M8-O8-Q8 -> -1200 | Z8: =F8-G8 -> 0 | AA8: =H8-I8 -> -1200 | AB8: =J8-K8 -> 0 | AC8: =L8-M8 -> 0 | AD8: =N8-O8 -> 0 | AE8: =P8-Q8 -> 0
A9: 2024-10-29 | B9: Car | C9: TD | D9: Insurance | E9: Auto | K9: 200 | R9: =R8+F9+H9+P9-G9-I9-Q9 -> 6500 | S9: =S8+J9+L9+N9-K9-M9-O9 -> -3725 | T9: =T8+F9+H9+J9+L9+N9+P9-G9-I9-K9-M9-O9-Q9 -> 2775 | U9: 0 | V9: 10 | W9: 2024 | X9: =F9+H9+J9+L9+N9+P9-G9-I9-K9-M9-O9-Q9 -> -200 | Z9: =F9-G9 -> 0 | AA9: =H9-I9 -> 0 | AB9: =J9-K9 -> -200 | AC9: =L9-M9 -> 0 | AD9: =N9-O9 -> 0 | AE9: =P9-Q9 -> 0
A10: 2024-10-30 | B10: Reimbursement | C10: Rose | D10: Me | E10: Acupuncture | I10: 100 | R10: =R9+F10+H10+P10-G10-I10-Q10 -> 6400 | S10: =S9+J10+L10+N10-K10-M10-O10 -> -3725 | T10: =T9+F10+H10+J10+L10+N10+P10-G10-I10-K10-M10-O10-Q10 -> 2675 | U10: -100 | V10: 10 | W10: 2024 | X10: =F10+H10+J10+L10+N10+P10-G10-I10-K10-M10-O10-Q10 -> -100 | Z10: =F10-G10 -> 0 | AA10: =H10-I10 -> -100 | AB10: =J10-K10 -> 0 | AC10: =L10-M10 -> 0 | AD10: =N10-O10 -> 0 | AE10: =P10-Q10 -> 0
A11: 2024-10-30 | B11: Health | C11: Rose | D11: Me | E11: Acupuncture | I11: 20 | R11: =R10+F11+H11+P11-G11-I11-Q11 -> 6380 | S11: =S10+J11+L11+N11-K11-M11-O11 -> -3725 | T11: =T10+F11+H11+J11+L11+N11+P11-G11-I11-K11-M11-O11-Q11 -> 2655 | U11: =IF(B11="Reimbursement",U10+X11,IF(B11="Settled",U10+X11,U10)) -> -100 | V11: =MONTH(A11) -> 10 | W11: =YEAR(A11) -> 2024 | X11: =F11+H11+J11+L11+N11+P11-G11-I11-K11-M11-O11-Q11 -> -20 | Z11: =F11-G11 -> 0 | AA11: =H11-I11 -> -20 | AB11: =J11-K11 -> 0 | AC11: =L11-M11 -> 0 | AD11: =N11-O11 -> 0 | AE11: =P11-Q11 -> 0
A12: 2024-11-01 | B12: Reimbursement | C12: Rose | D12: Me | E12: Acupuncture | H12: 100 | R12: =R11+F12+H12+P12-G12-I12-Q12 -> 6480 | S12: =S11+J12+L12+N12-K12-M12-O12 -> -3725 | T12: =T11+F12+H12+J12+L12+N12+P12-G12-I12-K12-M12-O12-Q12 -> 2755 | U12: =IF(B12="Reimbursement",U11+X12,IF(B12="Settled",U11+X12,U11)) -> 0 | V12: =MONTH(A12) -> 11 | W12: =YEAR(A12) -> 2024 | X12: =F12+H12+J12+L12+N12+P12-G12-I12-K12-M12-O12-Q12 -> 100 | Z12: =F12-G12 -> 0 | AA12: =H12-I12 -> 100 | AB12: =J12-K12 -> 0 | AC12: =L12-M12 -> 0 | AD12: =N12-O12 -> 0 | AE12: =P12-Q12 -> 0
A13: 2024-11-01 | B13: Transfer | C13: SCOTIA | D13: Credit Card | I13: 2245 | J13: 2245 | R13: =R12+F13+H13+P13-G13-I13-Q13 -> 4235 | S13: =S12+J13+L13+N13-K13-M13-O13 -> -1480 | T13: =T12+F13+H13+J13+L13+N13+P13-G13-I13-K13-M13-O13-Q13 -> 2755 | U13: =IF(B13="Reimbursement",U12+X13,IF(B13="Settled",U12+X13,U12)) -> 0 | V13: =MONTH(A13) -> 11 | W13: =YEAR(A13) -> 2024 | X13: =F13+H13+J13+L13+N13+P13-G13-I13-K13-M13-O13-Q13 -> 0 | Z13: =F13-G13 -> 0 | AA13: =H13-I13 -> -2245 | AB13: =J13-K13 -> 2245 | AC13: =L13-M13 -> 0 | AD13: =N13-O13 -> 0 | AE13: =P13-Q13 -> 0
B14: Account Balance | G14: =SUMIFS(F$2:F13,$A$2:$A13,"<>S",$A$2:$A13,"<>")-SUMIFS(G$2:G13,$A$2:$A13,"<>S",$A$2:$A13,"<>") -> 100 | I14: =SUMIFS(H$2:H13,$A$2:$A13,"<>S",$A$2:$A13,"<>")-SUMIFS(I$2:I13,$A$2:$A13,"<>S",$A$2:$A13,"<>") -> 4135 | K14: =SUMIFS(J$2:J13,$A$2:$A13,"<>S",$A$2:$A13,"<>")-SUMIFS(K$2:K13,$A$2:$A13,"<>S",$A$2:$A13,"<>") -> -1480 | M14: =SUMIFS(L$2:L13,$A$2:$A13,"<>S",$A$2:$A13,"<>")-SUMIFS(M$2:M13,$A$2:$A13,"<>S",$A$2:$A13,"<>") -> 0 | O14: =SUMIFS(N$2:N13,$A$2:$A13,"<>S",$A$2:$A13,"<>")-SUMIFS(O$2:O13,$A$2:$A13,"<>S",$A$2:$A13,"<>") -> 0 | Q14: =SUMIFS(P$2:P13,$A$2:$A13,"<>S",$A$2:$A13,"<>")-SUMIFS(Q$2:Q13,$A$2:$A13,"<>S",$A$2:$A13,"<>") -> 0 | R14: =G14+I14+Q14 -> 4235 | S14: =K14+M14+O14 -> -1480 | T14: =G14+I14+K14+M14+O14+Q14 -> 2755 | U14: 0 | AL14: Key123 | AM14: Key123 | AN14: Key123 | AO14: Key123 | AP14: Key123 | AQ14: Key123 | AR14: Key123 | AS14: Key123 | AT14: Key123 | AU14: Key123 | AV14: Key123 | AW14: Key123 | AX14: Key123 | AY14: Key123 | AZ14: Key123 | BA14: Key123 | BB14: Key123 | BC14: Key123 | BD14: Key123 | BE14: Key123 | BF14: Key123 | BG14: Key123 | BH14: Key123 | BI14: Key123 | BJ14: Key123 | BK14: Key123 | BL14: Key123 | BM14: Key123 | BN14: Key123 | BO14: Key123 | BP14: Key123 | BQ14: Key123 | BR14: Key123 | BS14: Key123 | BT14: Key123 | BU14: Key123 | BV14: Key123 | BW14: Key123 | BX14: Key123 | BY14: Key123 | BZ14: Key123 | CA14: Key123 | CB14: Key123 | CC14: Key123 | CD14: Key123 | CE14: Key123 | CF14: Key123 | CG14: Key123 | CH14: Key123 | CI14: Key123 | CJ14: Key123 | CK14: Key123 | CL14: Key123 | CM14: Key123 | CN14: Key123 | CO14: Key123 | CP14: Key123 | CQ14: Key123 | CR14: Key123 | CS14: Key123 | CT14: Key123 | CU14: Key123 | CV14: Key123 | CW14: Key123 | CX14: Key123 | CY14: Key123 | CZ14: Do not delete the values to the left of this text. It's used in macros to identify this row.
A15: 2024-11-05 | B15: Savings | C15: SCOTIA | D15: RESP | E15: Deposit | I15: 400 | R15: =R14+F15+H15+P15-G15-I15-Q15 -> 3835 | S15: =S14+J15+L15+N15-K15-M15-O15 -> -1480 | T15: =T14+F15+H15+J15+L15+N15+P15-G15-I15-K15-M15-O15-Q15 -> 2355 | U15: 0 | V15: =MONTH(A15) -> 11 | W15: =YEAR(A15) -> 2024 | X15: =F15+H15+J15+L15+N15+P15-G15-I15-K15-M15-O15-Q15 -> -400 | Y15: ="F" -> F | Z15: =F15-G15 -> 0 | AA15: =H15-I15 -> -400 | AB15: =J15-K15 -> 0 | AC15: =L15-M15 -> 0 | AD15: =N15-O15 -> 0 | AE15: =P15-Q15 -> 0
A16: 2024-11-08 | B16: Salary | C16: KIK | H16: 3000 | R16: =R15+F16+H16+P16-G16-I16-Q16 -> 6835 | S16: =S15+J16+L16+N16-K16-M16-O16 -> -1480 | T16: =T15+F16+H16+J16+L16+N16+P16-G16-I16-K16-M16-O16-Q16 -> 5355 | U16: 0 | V16: 11 | W16: 2024 | X16: =F16+H16+J16+L16+N16+P16-G16-I16-K16-M16-O16-Q16 -> 3000 | Y16: F | Z16: =F16-G16 -> 0 | AA16: =H16-I16 -> 3000 | AB16: =J16-K16 -> 0 | AC16: =L16-M16 -> 0 | AD16: =N16-O16 -> 0 | AE16: =P16-Q16 -> 0
A17: 2024-11-10 | B17: Bills | C17: NB Power | D17: Utilities | E17: Electricity | I17: 300 | R17: 6535 | S17: -1480 | T17: 5055 | U17: 0 | V17: 11 | W17: 2024 | X17: =F17+H17+J17+L17+N17+P17-G17-I17-K17-M17-O17-Q17 -> -300 | Y17: F | Z17: =F17-G17 -> 0 | AA17: =H17-I17 -> -300 | AB17: =J17-K17 -> 0 | AC17: =L17-M17 -> 0 | AD17: =N17-O17 -> 0 | AE17: =P17-Q17 -> 0
A18: 2024-11-17 | B18: Bills | C18: TD | D18: House | E18: Insurance | K18: 175 | R18: =R17+F18+H18+P18-G18-I18-Q18 -> 6535 | S18: =S17+J18+L18+N18-K18-M18-O18 -> -1655 | T18: =T17+F18+H18+J18+L18+N18+P18-G18-I18-K18-M18-O18-Q18 -> 4880 | U18: 0 | V18: 11 | W18: 2024 | X18: -175 | Y18: F | Z18: 0 | AA18: 0 | AB18: -175 | AC18: 0 | AD18: 0 | AE18: 0
A19: 2024-11-19 | B19: Bills | C19: Aliant | D19: Utilities | E19: TV+Internet | K19: 100 | R19: =R18+F19+H19+P19-G19-I19-Q19 -> 6535 | S19: =S18+J19+L19+N19-K19-M19-O19 -> -1755 | T19: =T18+F19+H19+J19+L19+N19+P19-G19-I19-K19-M19-O19-Q19 -> 4780 | U19: 0 | V19: 11 | W19: 2024 | X19: -100 | Y19: F | Z19: 0 | AA19: 0 | AB19: -100 | AC19: 0 | AD19: 0 | AE19: 0
A20: 2024-11-19 | B20: Other Income | C20: SCOTIA | D20: Cashback | E20: Visa | J20: 1000 | R20: =R19+F20+H20+P20-G20-I20-Q20 -> 6535 | S20: =S19+J20+L20+N20-K20-M20-O20 -> -755 | T20: =T19+F20+H20+J20+L20+N20+P20-G20-I20-K20-M20-O20-Q20 -> 5780 | U20: 0 | V20: 11 | W20: 2024 | X20: 1000 | Y20: F | Z20: 0 | AA20: 0 | AB20: 1000 | AC20: 0 | AD20: 0 | AE20: 0
A21: 2024-11-22 | B21: Salary | C21: Employer 1 | H21: 3000 | R21: =R20+F21+H21+P21-G21-I21-Q21 -> 9535 | S21: =S20+J21+L21+N21-K21-M21-O21 -> -755 | T21: =T20+F21+H21+J21+L21+N21+P21-G21-I21-K21-M21-O21-Q21 -> 8780 | U21: 0 | V21: 11 | W21: 2024 | X21: =F21+H21+J21+L21+N21+P21-G21-I21-K21-M21-O21-Q21 -> 3000 | Y21: F | Z21: =F21-G21 -> 0 | AA21: =H21-I21 -> 3000 | AB21: =J21-K21 -> 0 | AC21: =L21-M21 -> 0 | AD21: =N21-O21 -> 0 | AE21: =P21-Q21 -> 0
A22: 2024-11-29 | B22: Bills | C22: Virgin | D22: Utilities | E22: Cell Phone | K22: 40 | R22: =R21+F22+H22+P22-G22-I22-Q22 -> 9535 | S22: =S21+J22+L22+N22-K22-M22-O22 -> -795 | T22: =T21+F22+H22+J22+L22+N22+P22-G22-I22-K22-M22-O22-Q22 -> 8740 | U22: 0 | V22: 11 | W22: 2024 | X22: =F22+H22+J22+L22+N22+P22-G22-I22-K22-M22-O22-Q22 -> -40 | Y22: F | Z22: =F22-G22 -> 0 | AA22: =H22-I22 -> 0 | AB22: =J22-K22 -> -40 | AC22: =L22-M22 -> 0 | AD22: =N22-O22 -> 0 | AE22: =P22-Q22 -> 0
A23: 2024-11-29 | B23: Bills | C23: RBC | D23: Mortgage | E23: Interest | I23: 400 | R23: =R22+F23+H23+P23-G23-I23-Q23 -> 9135 | S23: =S22+J23+L23+N23-K23-M23-O23 -> -795 | T23: =T22+F23+H23+J23+L23+N23+P23-G23-I23-K23-M23-O23-Q23 -> 8340 | U23: 0 | V23: 11 | W23: 2024 | X23: =F23+H23+J23+L23+N23+P23-G23-I23-K23-M23-O23-Q23 -> -400 | Y23: F | Z23: =F23-G23 -> 0 | AA23: =H23-I23 -> -400 | AB23: =J23-K23 -> 0 | AC23: =L23-M23 -> 0 | AD23: =N23-O23 -> 0 | AE23: =P23-Q23 -> 0
A24: 2024-11-29 | B24: Savings | C24: RBC | D24: Mortgage | E24: Principal | I24: 1200 | R24: =R23+F24+H24+P24-G24-I24-Q24 -> 7935 | S24: =S23+J24+L24+N24-K24-M24-O24 -> -795 | T24: =T23+F24+H24+J24+L24+N24+P24-G24-I24-K24-M24-O24-Q24 -> 7140 | U24: 0 | V24: 11 | W24: 2024 | X24: =F24+H24+J24+L24+N24+P24-G24-I24-K24-M24-O24-Q24 -> -1200 | Y24: F | Z24: =F24-G24 -> 0 | AA24: =H24-I24 -> -1200 | AB24: =J24-K24 -> 0 | AC24: =L24-M24 -> 0 | AD24: =N24-O24 -> 0 | AE24: =P24-Q24 -> 0
A25: 2024-11-29 | B25: Car | C25: TD | D25: Insurance | E25: Auto | K25: 200 | R25: =R24+F25+H25+P25-G25-I25-Q25 -> 7935 | S25: =S24+J25+L25+N25-K25-M25-O25 -> -995 | T25: =T24+F25+H25+J25+L25+N25+P25-G25-I25-K25-M25-O25-Q25 -> 6940 | U25: 0 | V25: 11 | W25: 2024 | X25: =F25+H25+J25+L25+N25+P25-G25-I25-K25-M25-O25-Q25 -> -200 | Y25: F | Z25: =F25-G25 -> 0 | AA25: =H25-I25 -> 0 | AB25: =J25-K25 -> -200 | AC25: =L25-M25 -> 0 | AD25: =N25-O25 -> 0 | AE25: =P25-Q25 -> 0
A26: 2024-12-01 | B26: Transfer | C26: SCOTIA | I26: 3000 | J26: 3000 | R26: 4935 | S26: 2005 | T26: 6940 | U26: 0 | V26: 12 | W26: 2024 | X26: 0 | Y26: F | Z26: 0 | AA26: -3000 | AB26: 3000 | AC26: 0 | AD26: 0 | AE26: 0
B27: Forecasted Balance | G27: =SUMIFS(F$2:F26,$A$2:$A26,"<>S",$A$2:$A26,"<>")-SUMIFS(G$2:G26,$A$2:$A26,"<>S",$A$2:$A26,"<>") -> 100 | I27: =SUMIFS(H$2:H26,$A$2:$A26,"<>S",$A$2:$A26,"<>")-SUMIFS(I$2:I26,$A$2:$A26,"<>S",$A$2:$A26,"<>") -> 4835 | K27: =SUMIFS(J$2:J26,$A$2:$A26,"<>S",$A$2:$A26,"<>")-SUMIFS(K$2:K26,$A$2:$A26,"<>S",$A$2:$A26,"<>") -> 2005 | M27: =SUMIFS(L$2:L26,$A$2:$A26,"<>S",$A$2:$A26,"<>")-SUMIFS(M$2:M26,$A$2:$A26,"<>S",$A$2:$A26,"<>") -> 0 | O27: =SUMIFS(N$2:N26,$A$2:$A26,"<>S",$A$2:$A26,"<>")-SUMIFS(O$2:O26,$A$2:$A26,"<>S",$A$2:$A26,"<>") -> 0 | Q27: =SUMIFS(P$2:P26,$A$2:$A26,"<>S",$A$2:$A26,"<>")-SUMIFS(Q$2:Q26,$A$2:$A26,"<>S",$A$2:$A26,"<>") -> 0 | R27: =G27+I27+Q27 -> 4935 | S27: =K27+M27+O27 -> 2005 | T27: =G27+I27+K27+M27+O27+Q27 -> 6940 | U27: 0 | AL27: Key456 | AM27: Key456 | AN27: Key456 | AO27: Key456 | AP27: Key456 | AQ27: Key456 | AR27: Key456 | AS27: Key456 | AT27: Key456 | AU27: Key456 | AV27: Key456 | AW27: Key456 | AX27: Key456 | AY27: Key456 | AZ27: Key456 | BA27: Key456 | BB27: Key456 | BC27: Key456 | BD27: Key456 | BE27: Key456 | BF27: Key456 | BG27: Key456 | BH27: Key456 | BI27: Key456 | BJ27: Key456 | BK27: Key456 | BL27: Key456 | BM27: Key456 | BN27: Key456 | BO27: Key456 | BP27: Key456 | BQ27: Key456 | BR27: Key456 | BS27: Key456 | BT27: Key456 | BU27: Key456 | BV27: Key456 | BW27: Key456 | BX27: Key456 | BY27: Key456 | BZ27: Key456 | CA27: Key456 | CB27: Key456 | CC27: Key456 | CD27: Key456 | CE27: Key456 | CF27: Key456 | CG27: Key456 | CH27: Key456 | CI27: Key456 | CJ27: Key456 | CK27: Key456 | CL27: Key456 | CM27: Key456 | CN27: Key456 | CO27: Key456 | CP27: Key456 | CQ27: Key456 | CR27: Key456 | CS27: Key456 | CT27: Key456 | CU27: Key456 | CV27: Key456 | CW27: Key456 | CX27: Key456 | CY27: Key456 | CZ27: Do not delete the values to the left of this text. It's used in macros to identify this row.
A30: Start Date | B30: Subscriptions | C30: Horizon: 30 days | T30: Schedule | AL30: Key789 | AM30: Key789 | AN30: Key789 | AO30: Key789 | AP30: Key789 | AQ30: Key789 | AR30: Key789 | AS30: Key789 | AT30: Key789 | AU30: Key789 | AV30: Key789 | AW30: Key789 | AX30: Key789 | AY30: Key789 | AZ30: Key789 | BA30: Key789 | BB30: Key789 | BC30: Key789 | BD30: Key789 | BE30: Key789 | BF30: Key789 | BG30: Key789 | BH30: Key789 | BI30: Key789 | BJ30: Key789 | BK30: Key789 | BL30: Key789 | BM30: Key789 | BN30: Key789 | BO30: Key789 | BP30: Key789 | BQ30: Key789 | BR30: Key789 | BS30: Key789 | BT30: Key789 | BU30: Key789 | BV30: Key789 | BW30: Key789 | BX30: Key789 | BY30: Key789 | BZ30: Key789 | CA30: Key789 | CB30: Key789 | CC30: Key789 | CD30: Key789 | CE30: Key789 | CF30: Key789 | CG30: Key789 | CH30: Key789 | CI30: Key789 | CJ30: Key789 | CK30: Key789 | CL30: Key789 | CM30: Key789 | CN30: Key789 | CO30: Key789 | CP30: Key789 | CQ30: Key789 | CR30: Key789 | CS30: Key789 | CT30: Key789 | CU30: Key789 | CV30: Key789 | CW30: Key789 | CX30: Key789 | CY30: Key789 | CZ30: Do not delete the values to the left of this text. It's used in macros to identify this row.
A31: 2024-12-06 | B31: Salary | C31: Employer 1 | H31: 3000 | T31: Bi-Weekly
A32: 2024-12-05 | B32: Savings | C32: SCOTIA | D32: RESP | E32: Deposit | I32: 400 | T32: Monthly
A33: 2025-01-01 | B33: Transfer | C33: SCOTIA | I33: 3000 | J33: 3000 | T33: Monthly
A34: 2024-12-17 | B34: Bills | C34: TD | D34: House | E34: Insurance | K34: 175 | T34: Monthly
A35: 2024-12-19 | B35: Bills | C35: Aliant | D35: Utilities | E35: TV+Internet | K35: 100 | T35: Monthly
A36: 2024-12-29 | B36: Bills | C36: RBC | D36: Mortgage | E36: Interest | I36: 400 | T36: Monthly
A37: 2024-12-29 | B37: Savings | C37: RBC | D37: Mortgage | E37: Principal | I37: 1200 | T37: Monthly
A38: 2024-12-29 | B38: Car | C38: TD | D38: Insurance | E38: Auto | K38: 200 | T38: Monthly
A39: 2024-12-29 | B39: Bills | C39: Virgin | D39: Utilities | E39: Cell Phone | K39: 40 | T39: Monthly
A40: 2025-01-15 | B40: Other Income | C40: Government | D40: Climate | H40: 260 | T40: Quarterly
A41: 2025-09-20 | B41: Other | C41: SCOTIA | D41: Cashback | E41: Visa Annual Fee | K41: 120 | T41: Annual
A42: 2025-11-19 | B42: Other Income | C42: SCOTIA | D42: Cashback | E42: Visa | J42: 1000 | T42: Annual

Sheet Investments
A1: Date ↓ | B1: Budget | C1: Place | D1: Sub-Budget | E1: Comment | F1: Savings | G1: Cr1 | H1: RRSP | I1: Cr2 | J1: RPP | K1: Cr3 | L1: RESP | M1: Cr4 | N1: iTrade Me | O1: Cr5 | P1: iTrade Wife | Q1: Cr6 | R1: iTrade Exchange | S1: Cr7 | T1: Short-Term | U1: Long-Term | V1: Balance | W1: Month | X1: Year | Y1: Amount | Z1: Forecast | AA1: Savings | AB1: RRSP | AC1: RPP | AD1: RESP | AE1: Scotia Me | AF1: Scotia Wife | AG1: Scotia Exchange | BA1: Do not delete these values: | BB1: 4065 | BC1: 4081 | BD1: 4084 | BE1: 2374
A2: 2021-12-31 | B2: Initial Balance | F2: 5000 | H2: 150000 | J2: 23180 | L2: 68655 | T2: =F2+N2+P2+R2-G2-O2-Q2-S2 -> 5000 | U2: =H2+J2+L2-I2-K2-M2 -> 241835 | V2: =F2+H2+J2+L2+N2+P2+R2-G2-I2-K2-M2-O2-Q2-S2 -> 246835 | W2: =MONTH(A2) -> 12 | X2: =YEAR(A2) -> 2021 | Y2: =F2+H2+J2+L2+N2+P2+R2-G2-I2-K2-M2-O2-Q2-S2 -> 246835 | AA2: =F2-G2 -> 5000 | AB2: =H2-I2 -> 150000 | AC2: =J2-K2 -> 23180 | AD2: =L2-M2 -> 68655 | AE2: =N2-O2 -> 0 | AF2: =P2-Q2 -> 0 | AG2: =R2-S2 -> 0
A3: 2024-06-21 | B3: Pension | C3: Employer 1 | D3: RPP | E3: Deposit | J3: 450 | T3: =T2+F3+N3+P3+R3-G3-O3-Q3-S3 -> 5000 | U3: =U2+H3+J3+L3-I3-K3-M3 -> 242285 | V3: =V2+F3+H3+J3+L3+N3+P3+R3-G3-I3-K3-M3-O3-Q3-S3 -> 247285 | W3: =MONTH(A3) -> 6 | X3: =YEAR(A3) -> 2024 | Y3: =F3+H3+J3+L3+N3+P3+R3-G3-I3-K3-M3-O3-Q3-S3 -> 450 | AA3: =F3-G3 -> 0 | AB3: =H3-I3 -> 0 | AC3: =J3-K3 -> 450 | AD3: =L3-M3 -> 0 | AE3: =N3-O3 -> 0 | AF3: =P3-Q3 -> 0 | AG3: =R3-S3 -> 0
A4: 2024-06-30 | B4: Growth | C4: Manulife | D4: RPP | E4: Interest 5% | J4: 1515 | T4: 5000 | U4: 243800 | V4: 248800 | W4: 6 | X4: 2024 | Y4: 1515 | AA4: 0 | AB4: 0 | AC4: 1515 | AD4: 0 | AE4: 0 | AF4: 0 | AG4: 0
A5: 2024-06-30 | B5: Pension | C5: Desjardins | D5: RRSP | E5: Interest 5% | H5: 10665 | T5: 5000 | U5: 254465 | V5: 259465 | W5: 6 | X5: 2024 | Y5: 10665 | AA5: 0 | AB5: 10665 | AC5: 0 | AD5: 0 | AE5: 0 | AF5: 0 | AG5: 0
A6: 2024-07-04 | B6: Transfer | C6: Scotia | D6: Contribution | E6: CAD to USD | G6: 5000 | N6: 3695 | R6: 1305 | T6: 5000 | U6: 254465 | V6: 259465 | W6: =MONTH(A6) -> 7 | X6: =YEAR(A6) -> 2024 | Y6: =F6+H6+J6+L6+N6+P6+R6-G6-I6-K6-M6-O6-Q6-S6 -> 0 | AA6: =F6-G6 -> -5000 | AB6: =H6-I6 -> 0 | AC6: =J6-K6 -> 0 | AD6: =L6-M6 -> 0 | AE6: =N6-O6 -> 3695 | AF6: =P6-Q6 -> 0 | AG6: =R6-S6 -> 1305
A7: 2024-07-04 | B7: Stocks | C7: Scotia | D7: Trade | E7: 29NVDA@127 | N7: 3685 | O7: 3685 | T7: 5000 | U7: 254465 | V7: 259465 | W7: 7 | X7: 2024 | Y7: 0 | AA7: 0 | AB7: 0 | AC7: 0 | AD7: 0 | AE7: 0 | AF7: 0 | AG7: 0
A8: 2024-07-05 | B8: Kids Education | C8: SCOTIA | D8: RESP | E8: Deposit | L8: 400 | T8: 5000 | U8: 254865 | V8: 259865 | W8: 7 | X8: 2024 | Y8: 400 | AA8: 0 | AB8: 0 | AC8: 0 | AD8: 400 | AE8: 0 | AF8: 0 | AG8: 0
A9: 2024-07-05 | B9: Pension | C9: Employer 1 | D9: RPP | E9: Deposit | J9: 450 | T9: 5000 | U9: 255315 | V9: 260315 | W9: =MONTH(A9) -> 7 | X9: =YEAR(A9) -> 2024 | Y9: 450 | AA9: 0 | AB9: 0 | AC9: 450 | AD9: 0 | AE9: 0 | AF9: 0 | AG9: 0
A10: 2024-07-22 | B10: Pension | C10: Employer 1 | D10: RPP | E10: Deposit | J10: 450 | T10: 5000 | U10: 255765 | V10: 260765 | W10: 7 | X10: 2024 | Y10: =F10+H10+J10+L10+N10+P10+R10-G10-I10-K10-M10-O10-Q10-S10 -> 450 | AA10: 0 | AB10: 0 | AC10: 450 | AD10: 0 | AE10: 0 | AF10: 0 | AG10: =R10-S10 -> 0
A11: 2024-08-01 | B11: Growth | C11: Government | D11: RESP | E11: Grant | L11: 80 | T11: 5000 | U11: 255845 | V11: 260845 | W11: 8 | X11: 2024 | Y11: 80 | AA11: 0 | AB11: 0 | AC11: 0 | AD11: 80 | AE11: 0 | AF11: 0 | AG11: 0
A12: 2024-08-02 | B12: Pension | C12: Employer 1 | D12: RPP | E12: Deposit | J12: 450 | T12: 5000 | U12: 256295 | V12: 261295 | W12: 8 | X12: 2024 | Y12: 450 | AA12: 0 | AB12: 0 | AC12: 450 | AD12: 0 | AE12: 0 | AF12: 0 | AG12: 0
A13: 2024-08-05 | B13: Kids Education | C13: SCOTIA | D13: RESP | E13: Deposit | L13: 400 | T13: 5000 | U13: 256695 | V13: 261695 | W13: 8 | X13: 2024 | Y13: 400 | AA13: 0 | AB13: 0 | AC13: 0 | AD13: 400 | AE13: 0 | AF13: 0 | AG13: 0
A14: 2024-08-16 | B14: Pension | C14: Employer 1 | D14: RPP | E14: Deposit | J14: 450 | T14: 5000 | U14: 257145 | V14: 262145 | W14: 8 | X14: 2024 | Y14: 450 | AA14: 0 | AB14: 0 | AC14: 450 | AD14: 0 | AE14: 0 | AF14: 0 | AG14: 0
A15: 2024-08-29 | B15: Pension | C15: Employer 1 | D15: RPP | E15: Deposit | J15: 450 | T15: 5000 | U15: 257595 | V15: 262595 | W15: 8 | X15: 2024 | Y15: 450 | AA15: 0 | AB15: 0 | AC15: 450 | AD15: 0 | AE15: 0 | AF15: 0 | AG15: 0
A16: 2024-09-01 | B16: Growth | C16: Government | D16: RESP | E16: Grant | L16: 80 | T16: 5000 | U16: 257675 | V16: 262675 | W16: 9 | X16: 2024 | Y16: 80 | AA16: 0 | AB16: 0 | AC16: 0 | AD16: 80 | AE16: 0 | AF16: 0 | AG16: 0
A17: 2024-09-05 | B17: Kids Education | C17: SCOTIA | D17: RESP | E17: Deposit | L17: 400 | T17: 5000 | U17: 258075 | V17: 263075 | W17: 9 | X17: 2024 | Y17: 400 | AA17: 0 | AB17: 0 | AC17: 0 | AD17: 400 | AE17: 0 | AF17: 0 | AG17: 0
A18: 2024-09-13 | B18: Pension | C18: Employer 1 | D18: RPP | E18: Deposit | J18: 450 | T18: 5000 | U18: 258525 | V18: 263525 | W18: 9 | X18: 2024 | Y18: 450 | AA18: 0 | AB18: 0 | AC18: 450 | AD18: 0 | AE18: 0 | AF18: 0 | AG18: 0
A19: 2024-09-27 | B19: Pension | C19: Employer 1 | D19: RPP | E19: Deposit | J19: 450 | T19: 5000 | U19: 258975 | V19: 263975 | W19: 9 | X19: 2024 | Y19: 450 | AA19: 0 | AB19: 0 | AC19: 450 | AD19: 0 | AE19: 0 | AF19: 0 | AG19: 0
A20: 2024-09-30 | B20: Growth | C20: SCOTIA | D20: RESP | E20: Interest 9% | L20: 6010 | T20: 5000 | U20: 264985 | V20: 269985 | W20: =MONTH(A20) -> 9 | X20: =YEAR(A20) -> 2024 | Y20: =F20+H20+J20+L20+N20+P20+R20-G20-I20-K20-M20-O20-Q20-S20 -> 6010 | AA20: 0 | AB20: 0 | AC20: 0 | AD20: 6010 | AE20: 0 | AF20: 0 | AG20: =R20-S20 -> 0
A21: 2024-09-30 | B21: Growth | C21: Manulife | D21: RPP | E21: Interest 4% | J21: 1460 | T21: 5000 | U21: 266445 | V21: 271445 | W21: 9 | X21: 2024 | Y21: 1460 | AA21: 0 | AB21: 0 | AC21: 1460 | AD21: 0 | AE21: 0 | AF21: 0 | AG21: 0
A22: 2024-09-30 | B22: Pension | C22: Desjardins | D22: RRSP | E22: Interest 4% | H22: 9740 | T22: 5000 | U22: 276185 | V22: 281185 | W22: 9 | X22: 2024 | Y22: 9740 | AA22: =F22-G22 -> 0 | AB22: =H22-I22 -> 9740 | AC22: =J22-K22 -> 0 | AD22: =L22-M22 -> 0 | AE22: =N22-O22 -> 0 | AF22: =P22-Q22 -> 0 | AG22: 0
A23: 2024-09-30 | B23: Stocks | C23: Scotia | D23: Growth | N23: 485 | R23: 280 | T23: 5765 | U23: 276185 | V23: 281950 | W23: 9 | X23: 2024 | Y23: 765 | AA23: =F23-G23 -> 0 | AB23: =H23-I23 -> 0 | AC23: =J23-K23 -> 0 | AD23: =L23-M23 -> 0 | AE23: =N23-O23 -> 485 | AF23: =P23-Q23 -> 0 | AG23: 280
A24: 2024-10-01 | B24: Growth | C24: Government | D24: RESP | E24: Grant | L24: 80 | T24: 5765 | U24: 276265 | V24: 282030 | W24: 10 | X24: 2024 | Y24: 80 | AA24: =F24-G24 -> 0 | AB24: =H24-I24 -> 0 | AC24: =J24-K24 -> 0 | AD24: =L24-M24 -> 80 | AE24: =N24-O24 -> 0 | AF24: =P24-Q24 -> 0 | AG24: 0
A25: 2024-10-05 | B25: Kids Education | C25: SCOTIA | D25: RESP | E25: Deposit | L25: 400 | T25: 5765 | U25: 276665 | V25: 282430 | W25: =MONTH(A25) -> 10 | X25: =YEAR(A25) -> 2024 | Y25: =F25+H25+J25+L25+N25+P25+R25-G25-I25-K25-M25-O25-Q25-S25 -> 400 | AA25: 0 | AB25: 0 | AC25: 0 | AD25: 400 | AE25: 0 | AF25: 0 | AG25: =R25-S25 -> 0
A26: 2024-10-11 | B26: Pension | C26: Employer 1 | D26: RPP | E26: Deposit | J26: 450 | T26: 5765 | U26: 277115 | V26: 282880 | W26: 10 | X26: 2024 | Y26: 450 | AA26: =F26-G26 -> 0 | AB26: =H26-I26 -> 0 | AC26: =J26-K26 -> 450 | AD26: =L26-M26 -> 0 | AE26: =N26-O26 -> 0 | AF26: =P26-Q26 -> 0 | AG26: 0
A27: 2024-10-25 | B27: Pension | C27: Employer 1 | D27: RPP | E27: Deposit | J27: 450 | T27: 5765 | U27: 277565 | V27: 283330 | W27: 10 | X27: 2024 | Y27: 450 | AA27: =F27-G27 -> 0 | AB27: =H27-I27 -> 0 | AC27: =J27-K27 -> 450 | AD27: =L27-M27 -> 0 | AE27: =N27-O27 -> 0 | AF27: =P27-Q27 -> 0 | AG27: 0
B28: Account Balance | G28: =SUMIFS(F$2:F27,$A$2:$A27,"<>S",$A$2:$A27,"<>")-SUMIFS(G$2:G27,$A$2:$A27,"<>S",$A$2:$A27,"<>") -> 0 | I28: =SUMIFS(H$2:H27,$A$2:$A27,"<>S",$A$2:$A27,"<>")-SUMIFS(I$2:I27,$A$2:$A27,"<>S",$A$2:$A27,"<>") -> 170405 | K28: =SUMIFS(J$2:J27,$A$2:$A27,"<>S",$A$2:$A27,"<>")-SUMIFS(K$2:K27,$A$2:$A27,"<>S",$A$2:$A27,"<>") -> 30655 | M28: =SUMIFS(L$2:L27,$A$2:$A27,"<>S",$A$2:$A27,"<>")-SUMIFS(M$2:M27,$A$2:$A27,"<>S",$A$2:$A27,"<>") -> 76505 | O28: =SUMIFS(N$2:N27,$A$2:$A27,"<>S",$A$2:$A27,"<>")-SUMIFS(O$2:O27,$A$2:$A27,"<>S",$A$2:$A27,"<>") -> 4180 | Q28: =SUMIFS(P$2:P27,$A$2:$A27,"<>S",$A$2:$A27,"<>")-SUMIFS(Q$2:Q27,$A$2:$A27,"<>S",$A$2:$A27,"<>") -> 0 | S28: =SUMIFS(R$2:R27,$A$2:$A27,"<>S",$A$2:$A27,"<>")-SUMIFS(S$2:S27,$A$2:$A27,"<>S",$A$2:$A27,"<>") -> 1585 | T28: =G28+O28+Q28+S28 -> 5765 | U28: =I28+K28+M28 -> 277565 | V28: =G28+I28+K28+M28+O28+Q28+S28 -> 283330 | AN28: Key123 | AO28: Key123 | AP28: Key123 | AQ28: Key123 | AR28: Key123 | AS28: Key123 | AT28: Key123 | AU28: Key123 | AV28: Key123 | AW28: Key123 | AX28: Key123 | AY28: Key123 | AZ28: Key123 | BA28: Key123 | BB28: Key123 | BC28: Key123 | BD28: Key123 | BE28: Key123 | BF28: Key123 | BG28: Key123 | BH28: Key123 | BI28: Key123 | BJ28: Key123 | BK28: Key123 | BL28: Key123 | BM28: Key123 | BN28: Key123 | BO28: Key123 | BP28: Key123 | BQ28: Key123 | BR28: Key123 | BS28: Key123 | BT28: Key123 | BU28: Key123 | BV28: Key123 | BW28: Key123 | BX28: Key123 | BY28: Key123 | BZ28: Key123 | CA28: Key123 | CB28: Key123 | CC28: Key123 | CD28: Key123 | CE28: Key123 | CF28: Key123 | CG28: Key123 | CH28: Key123 | CI28: Key123 | CJ28: Key123 | CK28: Key123 | CL28: Key123 | CM28: Key123 | CN28: Key123 | CO28: Key123 | CP28: Key123 | CQ28: Key123 | CR28: Key123 | CS28: Key123 | CT28: Key123 | CU28: Key123 | CV28: Key123 | CW28: Key123 | CX28: Key123 | CY28: Key123 | CZ28: Key123 | DA28: Key123 | DB28: Do not delete the values to the left of this text. It's used in macros to identify this row.
A29: 2024-11-01 | B29: Kids Education | C29: Government | D29: RESP | E29: Grant | L29: 80 | T29: =T28+F29+N29+P29+R29-G29-O29-Q29-S29 -> 5765 | U29: =U28+H29+J29+L29-I29-K29-M29 -> 277645 | V29: =V28+F29+H29+J29+L29+N29+P29+R29-G29-I29-K29-M29-O29-Q29-S29 -> 283410 | W29: =MONTH(A29) -> 11 | X29: =YEAR(A29) -> 2024 | Y29: =F29+H29+J29+L29+N29+P29-G29-I29-K29-M29-O29-Q29 -> 80 | Z29: ="F" -> F | AA29: =F29-G29 -> 0 | AB29: =H29-I29 -> 0 | AC29: =J29-K29 -> 0 | AD29: =L29-M29 -> 80 | AE29: =N29-O29 -> 0 | AF29: =P29-Q29 -> 0 | AG29: =R29-S29 -> 0
A30: 2024-11-05 | B30: Kids Education | C30: Me | D30: RESP | E30: Deposit | L30: 400 | T30: 5765 | U30: 278045 | V30: 283810 | W30: =MONTH(A30) -> 11 | X30: =YEAR(A30) -> 2024 | Y30: =F30+H30+J30+L30+N30+P30-G30-I30-K30-M30-O30-Q30 -> 400 | Z30: F | AA30: =F30-G30 -> 0 | AB30: =H30-I30 -> 0 | AC30: =J30-K30 -> 0 | AD30: =L30-M30 -> 400 | AE30: =N30-O30 -> 0 | AF30: =P30-Q30 -> 0 | AG30: =R30-S30 -> 0
A31: 2024-11-08 | B31: Pension | C31: Employer 1 | D31: RPP | E31: Deposit | J31: 450 | T31: 5765 | U31: 278495 | V31: 284260 | W31: =MONTH(A31) -> 11 | X31: =YEAR(A31) -> 2024 | Y31: =F31+H31+J31+L31+N31+P31+R31-G31-I31-K31-M31-O31-Q31-S31 -> 450 | Z31: F | AA31: =F31-G31 -> 0 | AB31: =H31-I31 -> 0 | AC31: =J31-K31 -> 450 | AD31: =L31-M31 -> 0 | AE31: =N31-O31 -> 0 | AF31: =P31-Q31 -> 0 | AG31: =R31-S31 -> 0
A32: 2024-11-22 | B32: Pension | C32: Employer 1 | D32: RPP | E32: Deposit | J32: 450 | T32: =T31+F32+N32+P32+R32-G32-O32-Q32-S32 -> 5765 | U32: =U31+H32+J32+L32-I32-K32-M32 -> 278945 | V32: =V31+F32+H32+J32+L32+N32+P32+R32-G32-I32-K32-M32-O32-Q32-S32 -> 284710 | W32: =MONTH(A32) -> 11 | X32: =YEAR(A32) -> 2024 | Y32: =F32+H32+J32+L32+N32+P32-G32-I32-K32-M32-O32-Q32 -> 450 | Z32: F | AA32: =F32-G32 -> 0 | AB32: =H32-I32 -> 0 | AC32: =J32-K32 -> 450 | AD32: =L32-M32 -> 0 | AE32: =N32-O32 -> 0 | AF32: =P32-Q32 -> 0 | AG32: =R32-S32 -> 0
B33: Forecasted Balance | G33: =SUMIFS(F$2:F32,$A$2:$A32,"<>S",$A$2:$A32,"<>")-SUMIFS(G$2:G32,$A$2:$A32,"<>S",$A$2:$A32,"<>") -> 0 | I33: =SUMIFS(H$2:H32,$A$2:$A32,"<>S",$A$2:$A32,"<>")-SUMIFS(I$2:I32,$A$2:$A32,"<>S",$A$2:$A32,"<>") -> 170405 | K33: =SUMIFS(J$2:J32,$A$2:$A32,"<>S",$A$2:$A32,"<>")-SUMIFS(K$2:K32,$A$2:$A32,"<>S",$A$2:$A32,"<>") -> 31555 | M33: =SUMIFS(L$2:L32,$A$2:$A32,"<>S",$A$2:$A32,"<>")-SUMIFS(M$2:M32,$A$2:$A32,"<>S",$A$2:$A32,"<>") -> 76985 | O33: =SUMIFS(N$2:N32,$A$2:$A32,"<>S",$A$2:$A32,"<>")-SUMIFS(O$2:O32,$A$2:$A32,"<>S",$A$2:$A32,"<>") -> 4180 | Q33: =SUMIFS(P$2:P32,$A$2:$A32,"<>S",$A$2:$A32,"<>")-SUMIFS(Q$2:Q32,$A$2:$A32,"<>S",$A$2:$A32,"<>") -> 0 | S33: =SUMIFS(R$2:R32,$A$2:$A32,"<>S",$A$2:$A32,"<>")-SUMIFS(S$2:S32,$A$2:$A32,"<>S",$A$2:$A32,"<>") -> 1585 | T33: =G33+O33+Q33+S33 -> 5765 | U33: =I33+K33+M33 -> 278945 | V33: =G33+I33+K33+M33+O33+Q33+S33 -> 284710 | AN33: Key456 | AO33: Key456 | AP33: Key456 | AQ33: Key456 | AR33: Key456 | AS33: Key456 | AT33: Key456 | AU33: Key456 | AV33: Key456 | AW33: Key456 | AX33: Key456 | AY33: Key456 | AZ33: Key456 | BA33: Key456 | BB33: Key456 | BC33: Key456 | BD33: Key456 | BE33: Key456 | BF33: Key456 | BG33: Key456 | BH33: Key456 | BI33: Key456 | BJ33: Key456 | BK33: Key456 | BL33: Key456 | BM33: Key456 | BN33: Key456 | BO33: Key456 | BP33: Key456 | BQ33: Key456 | BR33: Key456 | BS33: Key456 | BT33: Key456 | BU33: Key456 | BV33: Key456 | BW33: Key456 | BX33: Key456 | BY33: Key456 | BZ33: Key456 | CA33: Key456 | CB33: Key456 | CC33: Key456 | CD33: Key456 | CE33: Key456 | CF33: Key456 | CG33: Key456 | CH33: Key456 | CI33: Key456 | CJ33: Key456 | CK33: Key456 | CL33: Key456 | CM33: Key456 | CN33: Key456 | CO33: Key456 | CP33: Key456 | CQ33: Key456 | CR33: Key456 | CS33: Key456 | CT33: Key456 | CU33: Key456 | CV33: Key456 | CW33: Key456 | CX33: Key456 | CY33: Key456 | CZ33: Key456 | DA33: Key456 | DB33: Do not delete the values to the left of this text. It's used in macros to identify this row.
A36: Start Date | B36: Subscriptions | C36: Horizon: 30 days | V36: Schedule | AN36: Key789 | AO36: Key789 | AP36: Key789 | AQ36: Key789 | AR36: Key789 | AS36: Key789 | AT36: Key789 | AU36: Key789 | AV36: Key789 | AW36: Key789 | AX36: Key789 | AY36: Key789 | AZ36: Key789 | BA36: Key789 | BB36: Key789 | BC36: Key789 | BD36: Key789 | BE36: Key789 | BF36: Key789 | BG36: Key789 | BH36: Key789 | BI36: Key789 | BJ36: Key789 | BK36: Key789 | BL36: Key789 | BM36: Key789 | BN36: Key789 | BO36: Key789 | BP36: Key789 | BQ36: Key789 | BR36: Key789 | BS36: Key789 | BT36: Key789 | BU36: Key789 | BV36: Key789 | BW36: Key789 | BX36: Key789 | BY36: Key789 | BZ36: Key789 | CA36: Key789 | CB36: Key789 | CC36: Key789 | CD36: Key789 | CE36: Key789 | CF36: Key789 | CG36: Key789 | CH36: Key789 | CI36: Key789 | CJ36: Key789 | CK36: Key789 | CL36: Key789 | CM36: Key789 | CN36: Key789 | CO36: Key789 | CP36: Key789 | CQ36: Key789 | CR36: Key789 | CS36: Key789 | CT36: Key789 | CU36: Key789 | CV36: Key789 | CW36: Key789 | CX36: Key789 | CY36: Key789 | CZ36: Key789 | DA36: Key789 | DB36: Do not delete the values to the left of this text. It's used in macros to identify this row.
A37: 2024-12-06 | B37: Pension | C37: Employer 1 | D37: RPP | E37: Deposit | J37: 450 | V37: Bi-Weekly
A38: 2024-12-01 | B38: Kids Education | C38: Government | D38: RESP | E38: Grant | L38: 80 | V38: Monthly
A39: 2024-12-05 | B39: Kids Education | C39: Me | D39: RESP | E39: Deposit | L39: 400 | V39: Monthly
A40: 2024-12-30 | B40: Growth | C40: Desjardins | D40: RRSP | E40: Interest | H40: 5000 | V40: Quarterly
A41: 2024-12-30 | B41: Growth | C41: Manulife | D41: RPP | E41: Interest | J41: 1000 | V41: Quarterly
A42: 2024-12-30 | B42: Growth | C42: Scotia | D42: RESP | E42: Interest | L42: 5000 | V42: Quarterly

Sheet Budget
A1: Income | G1: Expenses
A2: Budget Category | B2: Last Year Same Period | C2: Last Month | D2: Budget | E2: Percent | G2: Budget Category | H2: Last Year Same Period | I2: Last Month | J2: Avg Last 3 Months | K2: Budget | L2: Percent
A3: Salary | B3: =SUMIFS(Transactions!X:X,Transactions!W:W,YEAR(TODAY())-1,Transactions!V:V,MONTH(TODAY()),Transactions!B:B,IncBudgetTable[[#This Row],[Budget Category]]) -> 0 | C3: =SUMIFS(Transactions!X:X,Transactions!W:W,IF(MONTH(TODAY())=1,YEAR(TODAY())-1,YEAR(TODAY())),Transactions!V:V,MOD(MONTH(TODAY())-2,12)+1,Transactions!B:B,IncBudgetTable[[#This Row],[Budget Category]]) -> 3000 | D3: 6000 | E3: =IncBudgetTable[[#This Row],[Budget]]/IncBudgetTable[[#Totals],[Budget]] -> 0.8921933086 | G3: Groceries | H3: =SUMIFS(Transactions!X:X,Transactions!W:W,YEAR(TODAY())-1,Transactions!V:V,MONTH(TODAY()),Transactions!B:B,ExpBudgetTable[[#This Row],[Budget Category]])*-1 -> 0 | I3: =SUMIFS(Transactions!X:X,Transactions!W:W,IF(MONTH(TODAY())=1,YEAR(TODAY())-1,YEAR(TODAY())),Transactions!V:V,MOD(MONTH(TODAY())-2,12)+1,Transactions!B:B,ExpBudgetTable[[#This Row],[Budget Category]])*-1 -> 390 | J3: =AVERAGE(SUMIFS(Transactions!X:X,Transactions!W:W,IF(MONTH(TODAY())=1,YEAR(TODAY())-1,YEAR(TODAY())),Transactions!V:V,MOD(MONTH(TODAY())-2,12)+1,Transactions!B:B,ExpBudgetTable[[#This Row],[Budget Category]]),SUMIFS(Transactions!X:X,Transactions!W:W,IF(MONTH(TODAY())=1,YEAR(TODAY())-1,YEAR(TODAY())),Transactions!V:V,MOD(MONTH(TODAY())-3,12)+1,Transactions!B:B,ExpBudgetTable[[#This Row],[Budget Category]]),SUMIFS(Transactions!X:X,Transactions!W:W,IF(MONTH(TODAY())=1,YEAR(TODAY())-1,YEAR(TODAY())),Transactions!V:V,MOD(MONTH(TODAY())-4,12)+1,Transactions!B:B,ExpBudgetTable[[#This Row],[Budget Category]]))*-1 -> 130 | K3: 1185 | L3: =ExpBudgetTable[[#This Row],[Budget]]/ExpBudgetTable[[#Totals],[Budget]] -> 0.2455958549
A4: Bonus | B4: =SUMIFS(Transactions!X:X,Transactions!W:W,YEAR(TODAY())-1,Transactions!V:V,MONTH(TODAY()),Transactions!B:B,IncBudgetTable[[#This Row],[Budget Category]]) -> 0 | C4: =SUMIFS(Transactions!X:X,Transactions!W:W,IF(MONTH(TODAY())=1,YEAR(TODAY())-1,YEAR(TODAY())),Transactions!V:V,MOD(MONTH(TODAY())-2,12)+1,Transactions!B:B,IncBudgetTable[[#This Row],[Budget Category]]) -> 0 | E4: =IncBudgetTable[[#This Row],[Budget]]/IncBudgetTable[[#Totals],[Budget]] -> 0 | G4: Entertainment | H4: =SUMIFS(Transactions!X:X,Transactions!W:W,YEAR(TODAY())-1,Transactions!V:V,MONTH(TODAY()),Transactions!B:B,ExpBudgetTable[[#This Row],[Budget Category]])*-1 -> 0 | I4: =SUMIFS(Transactions!X:X,Transactions!W:W,IF(MONTH(TODAY())=1,YEAR(TODAY())-1,YEAR(TODAY())),Transactions!V:V,MOD(MONTH(TODAY())-2,12)+1,Transactions!B:B,ExpBudgetTable[[#This Row],[Budget Category]])*-1 -> 0 | J4: =AVERAGE(SUMIFS(Transactions!X:X,Transactions!W:W,IF(MONTH(TODAY())=1,YEAR(TODAY())-1,YEAR(TODAY())),Transactions!V:V,MOD(MONTH(TODAY())-2,12)+1,Transactions!B:B,ExpBudgetTable[[#This Row],[Budget Category]]),SUMIFS(Transactions!X:X,Transactions!W:W,IF(MONTH(TODAY())=1,YEAR(TODAY())-1,YEAR(TODAY())),Transactions!V:V,MOD(MONTH(TODAY())-3,12)+1,Transactions!B:B,ExpBudgetTable[[#This Row],[Budget Category]]),SUMIFS(Transactions!X:X,Transactions!W:W,IF(MONTH(TODAY())=1,YEAR(TODAY())-1,YEAR(TODAY())),Transactions!V:V,MOD(MONTH(TODAY())-4,12)+1,Transactions!B:B,ExpBudgetTable[[#This Row],[Budget Category]]))*-1 -> 0 | K4: 400 | L4: =ExpBudgetTable[[#This Row],[Budget]]/ExpBudgetTable[[#Totals],[Budget]] -> 0.0829015544
A5: Kids | B5: =SUMIFS(Transactions!X:X,Transactions!W:W,YEAR(TODAY())-1,Transactions!V:V,MONTH(TODAY()),Transactions!B:B,IncBudgetTable[[#This Row],[Budget Category]]) -> 0 | C5: =SUMIFS(Transactions!X:X,Transactions!W:W,IF(MONTH(TODAY())=1,YEAR(TODAY())-1,YEAR(TODAY())),Transactions!V:V,MOD(MONTH(TODAY())-2,12)+1,Transactions!B:B,IncBudgetTable[[#This Row],[Budget Category]]) -> 0 | D5: 725 | E5: =IncBudgetTable[[#This Row],[Budget]]/IncBudgetTable[[#Totals],[Budget]] -> 0.1078066914 | G5: Shopping | H5: =SUMIFS(Transactions!X:X,Transactions!W:W,YEAR(TODAY())-1,Transactions!V:V,MONTH(TODAY()),Transactions!B:B,ExpBudgetTable[[#This Row],[Budget Category]])*-1 -> 0 | I5: =SUMIFS(Transactions!X:X,Transactions!W:W,IF(MONTH(TODAY())=1,YEAR(TODAY())-1,YEAR(TODAY())),Transactions!V:V,MOD(MONTH(TODAY())-2,12)+1,Transactions!B:B,ExpBudgetTable[[#This Row],[Budget Category]])*-1 -> 95 | J5: =AVERAGE(SUMIFS(Transactions!X:X,Transactions!W:W,IF(MONTH(TODAY())=1,YEAR(TODAY())-1,YEAR(TODAY())),Transactions!V:V,MOD(MONTH(TODAY())-2,12)+1,Transactions!B:B,ExpBudgetTable[[#This Row],[Budget Category]]),SUMIFS(Transactions!X:X,Transactions!W:W,IF(MONTH(TODAY())=1,YEAR(TODAY())-1,YEAR(TODAY())),Transactions!V:V,MOD(MONTH(TODAY())-3,12)+1,Transactions!B:B,ExpBudgetTable[[#This Row],[Budget Category]]),SUMIFS(Transactions!X:X,Transactions!W:W,IF(MONTH(TODAY())=1,YEAR(TODAY())-1,YEAR(TODAY())),Transactions!V:V,MOD(MONTH(TODAY())-4,12)+1,Transactions!B:B,ExpBudgetTable[[#This Row],[Budget Category]]))*-1 -> 31.66666667 | K5: 500 | L5: =ExpBudgetTable[[#This Row],[Budget]]/ExpBudgetTable[[#Totals],[Budget]] -> 0.103626943
A6: Side Project | B6: =SUMIFS(Transactions!X:X,Transactions!W:W,YEAR(TODAY())-1,Transactions!V:V,MONTH(TODAY()),Transactions!B:B,IncBudgetTable[[#This Row],[Budget Category]]) -> 0 | C6: =SUMIFS(Transactions!X:X,Transactions!W:W,IF(MONTH(TODAY())=1,YEAR(TODAY())-1,YEAR(TODAY())),Transactions!V:V,MOD(MONTH(TODAY())-2,12)+1,Transactions!B:B,IncBudgetTable[[#This Row],[Budget Category]]) -> 0 | E6: =IncBudgetTable[[#This Row],[Budget]]/IncBudgetTable[[#Totals],[Budget]] -> 0 | G6: Bills | H6: =SUMIFS(Transactions!X:X,Transactions!W:W,YEAR(TODAY())-1,Transactions!V:V,MONTH(TODAY()),Transactions!B:B,ExpBudgetTable[[#This Row],[Budget Category]])*-1 -> 0 | I6: =SUMIFS(Transactions!X:X,Transactions!W:W,IF(MONTH(TODAY())=1,YEAR(TODAY())-1,YEAR(TODAY())),Transactions!V:V,MOD(MONTH(TODAY())-2,12)+1,Transactions!B:B,ExpBudgetTable[[#This Row],[Budget Category]])*-1 -> 440 | J6: =AVERAGE(SUMIFS(Transactions!X:X,Transactions!W:W,IF(MONTH(TODAY())=1,YEAR(TODAY())-1,YEAR(TODAY())),Transactions!V:V,MOD(MONTH(TODAY())-2,12)+1,Transactions!B:B,ExpBudgetTable[[#This Row],[Budget Category]]),SUMIFS(Transactions!X:X,Transactions!W:W,IF(MONTH(TODAY())=1,YEAR(TODAY())-1,YEAR(TODAY())),Transactions!V:V,MOD(MONTH(TODAY())-3,12)+1,Transactions!B:B,ExpBudgetTable[[#This Row],[Budget Category]]),SUMIFS(Transactions!X:X,Transactions!W:W,IF(MONTH(TODAY())=1,YEAR(TODAY())-1,YEAR(TODAY())),Transactions!V:V,MOD(MONTH(TODAY())-4,12)+1,Transactions!B:B,ExpBudgetTable[[#This Row],[Budget Category]]))*-1 -> 146.6666667 | K6: 1500 | L6: =ExpBudgetTable[[#This Row],[Budget]]/ExpBudgetTable[[#Totals],[Budget]] -> 0.310880829
A7: Other Income | B7: =SUMIFS(Transactions!X:X,Transactions!W:W,YEAR(TODAY())-1,Transactions!V:V,MONTH(TODAY()),Transactions!B:B,IncBudgetTable[[#This Row],[Budget Category]]) -> 0 | C7: =SUMIFS(Transactions!X:X,Transactions!W:W,IF(MONTH(TODAY())=1,YEAR(TODAY())-1,YEAR(TODAY())),Transactions!V:V,MOD(MONTH(TODAY())-2,12)+1,Transactions!B:B,IncBudgetTable[[#This Row],[Budget Category]]) -> 0 | E7: =IncBudgetTable[[#This Row],[Budget]]/IncBudgetTable[[#Totals],[Budget]] -> 0 | G7: Car | H7: =SUMIFS(Transactions!X:X,Transactions!W:W,YEAR(TODAY())-1,Transactions!V:V,MONTH(TODAY()),Transactions!B:B,ExpBudgetTable[[#This Row],[Budget Category]])*-1 -> 0 | I7: =SUMIFS(Transactions!X:X,Transactions!W:W,IF(MONTH(TODAY())=1,YEAR(TODAY())-1,YEAR(TODAY())),Transactions!V:V,MOD(MONTH(TODAY())-2,12)+1,Transactions!B:B,ExpBudgetTable[[#This Row],[Budget Category]])*-1 -> 200 | J7: =AVERAGE(SUMIFS(Transactions!X:X,Transactions!W:W,IF(MONTH(TODAY())=1,YEAR(TODAY())-1,YEAR(TODAY())),Transactions!V:V,MOD(MONTH(TODAY())-2,12)+1,Transactions!B:B,ExpBudgetTable[[#This Row],[Budget Category]]),SUMIFS(Transactions!X:X,Transactions!W:W,IF(MONTH(TODAY())=1,YEAR(TODAY())-1,YEAR(TODAY())),Transactions!V:V,MOD(MONTH(TODAY())-3,12)+1,Transactions!B:B,ExpBudgetTable[[#This Row],[Budget Category]]),SUMIFS(Transactions!X:X,Transactions!W:W,IF(MONTH(TODAY())=1,YEAR(TODAY())-1,YEAR(TODAY())),Transactions!V:V,MOD(MONTH(TODAY())-4,12)+1,Transactions!B:B,ExpBudgetTable[[#This Row],[Budget Category]]))*-1 -> 66.66666667 | K7: 640 | L7: =ExpBudgetTable[[#This Row],[Budget]]/ExpBudgetTable[[#Totals],[Budget]] -> 0.132642487
C8: =SUMIFS(Transactions!X:X,Transactions!W:W,IF(MONTH(TODAY())=1,YEAR(TODAY())-1,YEAR(TODAY())),Transactions!V:V,MOD(MONTH(TODAY())-2,12)+1,Transactions!B:B,IncBudgetTable[[#This Row],[Budget Category]]) -> 0 | G8: Charity | H8: =SUMIFS(Transactions!X:X,Transactions!W:W,YEAR(TODAY())-1,Transactions!V:V,MONTH(TODAY()),Transactions!B:B,ExpBudgetTable[[#This Row],[Budget Category]])*-1 -> 0 | I8: =SUMIFS(Transactions!X:X,Transactions!W:W,IF(MONTH(TODAY())=1,YEAR(TODAY())-1,YEAR(TODAY())),Transactions!V:V,MOD(MONTH(TODAY())-2,12)+1,Transactions!B:B,ExpBudgetTable[[#This Row],[Budget Category]])*-1 -> 0 | J8: =AVERAGE(SUMIFS(Transactions!X:X,Transactions!W:W,IF(MONTH(TODAY())=1,YEAR(TODAY())-1,YEAR(TODAY())),Transactions!V:V,MOD(MONTH(TODAY())-2,12)+1,Transactions!B:B,ExpBudgetTable[[#This Row],[Budget Category]]),SUMIFS(Transactions!X:X,Transactions!W:W,IF(MONTH(TODAY())=1,YEAR(TODAY())-1,YEAR(TODAY())),Transactions!V:V,MOD(MONTH(TODAY())-3,12)+1,Transactions!B:B,ExpBudgetTable[[#This Row],[Budget Category]]),SUMIFS(Transactions!X:X,Transactions!W:W,IF(MONTH(TODAY())=1,YEAR(TODAY())-1,YEAR(TODAY())),Transactions!V:V,MOD(MONTH(TODAY())-4,12)+1,Transactions!B:B,ExpBudgetTable[[#This Row],[Budget Category]]))*-1 -> 0 | K8: 400 | L8: =ExpBudgetTable[[#This Row],[Budget]]/ExpBudgetTable[[#Totals],[Budget]] -> 0.0829015544
C9: =SUMIFS(Transactions!X:X,Transactions!W:W,IF(MONTH(TODAY())=1,YEAR(TODAY())-1,YEAR(TODAY())),Transactions!V:V,MOD(MONTH(TODAY())-2,12)+1,Transactions!B:B,IncBudgetTable[[#This Row],[Budget Category]]) -> 0 | G9: Health | H9: =SUMIFS(Transactions!X:X,Transactions!W:W,YEAR(TODAY())-1,Transactions!V:V,MONTH(TODAY()),Transactions!B:B,ExpBudgetTable[[#This Row],[Budget Category]])*-1 -> 0 | I9: =SUMIFS(Transactions!X:X,Transactions!W:W,IF(MONTH(TODAY())=1,YEAR(TODAY())-1,YEAR(TODAY())),Transactions!V:V,MOD(MONTH(TODAY())-2,12)+1,Transactions!B:B,ExpBudgetTable[[#This Row],[Budget Category]])*-1 -> 20 | J9: =AVERAGE(SUMIFS(Transactions!X:X,Transactions!W:W,IF(MONTH(TODAY())=1,YEAR(TODAY())-1,YEAR(TODAY())),Transactions!V:V,MOD(MONTH(TODAY())-2,12)+1,Transactions!B:B,ExpBudgetTable[[#This Row],[Budget Category]]),SUMIFS(Transactions!X:X,Transactions!W:W,IF(MONTH(TODAY())=1,YEAR(TODAY())-1,YEAR(TODAY())),Transactions!V:V,MOD(MONTH(TODAY())-3,12)+1,Transactions!B:B,ExpBudgetTable[[#This Row],[Budget Category]]),SUMIFS(Transactions!X:X,Transactions!W:W,IF(MONTH(TODAY())=1,YEAR(TODAY())-1,YEAR(TODAY())),Transactions!V:V,MOD(MONTH(TODAY())-4,12)+1,Transactions!B:B,ExpBudgetTable[[#This Row],[Budget Category]]))*-1 -> 6.666666667 | K9: 200 | L9: =ExpBudgetTable[[#This Row],[Budget]]/ExpBudgetTable[[#Totals],[Budget]] -> 0.0414507772
B10: =SUMIFS(Transactions!X:X,Transactions!W:W,YEAR(TODAY())-1,Transactions!V:V,MONTH(TODAY()),Transactions!B:B,IncBudgetTable[[#This Row],[Budget Category]]) -> 0 | C10: =SUMIFS(Transactions!X:X,Transactions!W:W,IF(MONTH(TODAY())=1,YEAR(TODAY())-1,YEAR(TODAY())),Transactions!V:V,MOD(MONTH(TODAY())-2,12)+1,Transactions!B:B,IncBudgetTable[[#This Row],[Budget Category]]) -> 0 | G10: Other | H10: =SUMIFS(Transactions!X:X,Transactions!W:W,YEAR(TODAY())-1,Transactions!V:V,MONTH(TODAY()),Transactions!B:B,ExpBudgetTable[[#This Row],[Budget Category]])*-1 -> 0 | I10: =SUMIFS(Transactions!X:X,Transactions!W:W,IF(MONTH(TODAY())=1,YEAR(TODAY())-1,YEAR(TODAY())),Transactions!V:V,MOD(MONTH(TODAY())-2,12)+1,Transactions!B:B,ExpBudgetTable[[#This Row],[Budget Category]])*-1 -> 0 | J10: =AVERAGE(SUMIFS(Transactions!X:X,Transactions!W:W,IF(MONTH(TODAY())=1,YEAR(TODAY())-1,YEAR(TODAY())),Transactions!V:V,MOD(MONTH(TODAY())-2,12)+1,Transactions!B:B,ExpBudgetTable[[#This Row],[Budget Category]]),SUMIFS(Transactions!X:X,Transactions!W:W,IF(MONTH(TODAY())=1,YEAR(TODAY())-1,YEAR(TODAY())),Transactions!V:V,MOD(MONTH(TODAY())-3,12)+1,Transactions!B:B,ExpBudgetTable[[#This Row],[Budget Category]]),SUMIFS(Transactions!X:X,Transactions!W:W,IF(MONTH(TODAY())=1,YEAR(TODAY())-1,YEAR(TODAY())),Transactions!V:V,MOD(MONTH(TODAY())-4,12)+1,Transactions!B:B,ExpBudgetTable[[#This Row],[Budget Category]]))*-1 -> 0 | L10: =ExpBudgetTable[[#This Row],[Budget]]/ExpBudgetTable[[#Totals],[Budget]] -> 0 | N10: Savings | O10: =IncBudgetTable[[#Totals],[Budget]]-ExpBudgetTable[[#Totals],[Budget]] -> 1900
A11: Total | D11: =SUBTOTAL(109,IncBudgetTable[Budget]) -> 6725 | E11: =SUBTOTAL(109,IncBudgetTable[Percent]) -> 1 | G11: Total | K11: =SUBTOTAL(109,ExpBudgetTable[Budget]) -> 4825 | L11: =SUBTOTAL(109,ExpBudgetTable[Percent]) -> 1 | N11: Savings to Income Ratio | O11: =(IncBudgetTable[[#Totals],[Budget]]-ExpBudgetTable[[#Totals],[Budget]])/IncBudgetTable[[#Totals],[Budget]] -> 0.282527881
A13: Investments | G13: Savings
A14: Budget Category | B14: Last Year Same Period | C14: Last Month | D14: Budget | E14: Percent | G14: Budget Category | H14: Last Year Same Period | I14: Last Month | J14: Avg Last 3 Months | K14: Budget | L14: Percent
A15: Stocks | B15: =SUMIFS(Transactions!X:X,Transactions!W:W,YEAR(TODAY())-1,Transactions!V:V,MONTH(TODAY()),Transactions!B:B,InvBudgetTable[[#This Row],[Budget Category]]) -> 0 | C15: =SUMIFS(Transactions!X:X,Transactions!W:W,IF(MONTH(TODAY())=1,YEAR(TODAY())-1,YEAR(TODAY())),Transactions!V:V,MOD(MONTH(TODAY())-2,12)+1,Transactions!B:B,InvBudgetTable[[#This Row],[Budget Category]]) -> 0 | E15: =InvBudgetTable[[#This Row],[Budget]]/InvBudgetTable[[#Totals],[Budget]] -> 0 | G15: Mortgage Principal | H15: =SUMIFS(Transactions!X:X,Transactions!W:W,YEAR(TODAY())-1,Transactions!V:V,MONTH(TODAY()),Transactions!B:B,SavBudgetTable[[#This Row],[Budget Category]])*-1 -> 0 | I15: =SUM(I10:I14) -> 0 | J15: =AVERAGE(SUMIFS(Transactions!X:X,Transactions!W:W,IF(MONTH(TODAY())=1,YEAR(TODAY())-1,YEAR(TODAY())),Transactions!V:V,MOD(MONTH(TODAY())-2,12)+1,Transactions!B:B,SavBudgetTable[[#This Row],[Budget Category]]),SUMIFS(Transactions!X:X,Transactions!W:W,IF(MONTH(TODAY())=1,YEAR(TODAY())-1,YEAR(TODAY())),Transactions!V:V,MOD(MONTH(TODAY())-3,12)+1,Transactions!B:B,SavBudgetTable[[#This Row],[Budget Category]]),SUMIFS(Transactions!X:X,Transactions!W:W,IF(MONTH(TODAY())=1,YEAR(TODAY())-1,YEAR(TODAY())),Transactions!V:V,MOD(MONTH(TODAY())-4,12)+1,Transactions!B:B,SavBudgetTable[[#This Row],[Budget Category]]))*-1 -> 0 | K15: 1200 | L15: =SavBudgetTable[[#This Row],[Budget]]/SavBudgetTable[[#Totals],[Budget]] -> 0.75 | N15: Cash Savings | O15: =IncBudgetTable[[#Totals],[Budget]]-ExpBudgetTable[[#Totals],[Budget]]-SavBudgetTable[[#Totals],[Budget]] -> 300
A16: RESP Earnings | B16: =SUMIFS(Transactions!X:X,Transactions!W:W,YEAR(TODAY())-1,Transactions!V:V,MONTH(TODAY()),Transactions!B:B,InvBudgetTable[[#This Row],[Budget Category]]) -> 0 | C16: =SUMIFS(Transactions!X:X,Transactions!W:W,IF(MONTH(TODAY())=1,YEAR(TODAY())-1,YEAR(TODAY())),Transactions!V:V,MOD(MONTH(TODAY())-2,12)+1,Transactions!B:B,InvBudgetTable[[#This Row],[Budget Category]]) -> 0 | E16: =InvBudgetTable[[#This Row],[Budget]]/InvBudgetTable[[#Totals],[Budget]] -> 0 | G16: RESP | H16: =SUMIFS(Transactions!X:X,Transactions!W:W,YEAR(TODAY())-1,Transactions!V:V,MONTH(TODAY()),Transactions!B:B,SavBudgetTable[[#This Row],[Budget Category]])*-1 -> 0 | I16: =SUM(I11:I15) -> 0 | J16: =AVERAGE(SUMIFS(Transactions!X:X,Transactions!W:W,IF(MONTH(TODAY())=1,YEAR(TODAY())-1,YEAR(TODAY())),Transactions!V:V,MOD(MONTH(TODAY())-2,12)+1,Transactions!B:B,SavBudgetTable[[#This Row],[Budget Category]]),SUMIFS(Transactions!X:X,Transactions!W:W,IF(MONTH(TODAY())=1,YEAR(TODAY())-1,YEAR(TODAY())),Transactions!V:V,MOD(MONTH(TODAY())-3,12)+1,Transactions!B:B,SavBudgetTable[[#This Row],[Budget Category]]),SUMIFS(Transactions!X:X,Transactions!W:W,IF(MONTH(TODAY())=1,YEAR(TODAY())-1,YEAR(TODAY())),Transactions!V:V,MOD(MONTH(TODAY())-4,12)+1,Transactions!B:B,SavBudgetTable[[#This Row],[Budget Category]]))*-1 -> 0 | K16: 400 | L16: =SavBudgetTable[[#This Row],[Budget]]/SavBudgetTable[[#Totals],[Budget]] -> 0.25 | N16: Total Savings | O16: =IncBudgetTable[[#Totals],[Budget]]-ExpBudgetTable[[#Totals],[Budget]]+InvBudgetTable[[#Totals],[Budget]] -> 2400
A17: RRSP | B17: =SUMIFS(Transactions!X:X,Transactions!W:W,YEAR(TODAY())-1,Transactions!V:V,MONTH(TODAY()),Transactions!B:B,InvBudgetTable[[#This Row],[Budget Category]]) -> 0 | C17: =SUMIFS(Transactions!X:X,Transactions!W:W,IF(MONTH(TODAY())=1,YEAR(TODAY())-1,YEAR(TODAY())),Transactions!V:V,MOD(MONTH(TODAY())-2,12)+1,Transactions!B:B,InvBudgetTable[[#This Row],[Budget Category]]) -> 0 | D17: 500 | E17: =InvBudgetTable[[#This Row],[Budget]]/InvBudgetTable[[#Totals],[Budget]] -> 1 | I17: =SUM(I12:I16) -> 0 | J17: =AVERAGE(SUMIFS(Transactions!X:X,Transactions!W:W,IF(MONTH(TODAY())=1,YEAR(TODAY())-1,YEAR(TODAY())),Transactions!V:V,MOD(MONTH(TODAY())-2,12)+1,Transactions!B:B,SavBudgetTable[[#This Row],[Budget Category]]),SUMIFS(Transactions!X:X,Transactions!W:W,IF(MONTH(TODAY())=1,YEAR(TODAY())-1,YEAR(TODAY())),Transactions!V:V,MOD(MONTH(TODAY())-3,12)+1,Transactions!B:B,SavBudgetTable[[#This Row],[Budget Category]]),SUMIFS(Transactions!X:X,Transactions!W:W,IF(MONTH(TODAY())=1,YEAR(TODAY())-1,YEAR(TODAY())),Transactions!V:V,MOD(MONTH(TODAY())-4,12)+1,Transactions!B:B,SavBudgetTable[[#This Row],[Budget Category]]))*-1 -> 0 | L17: =SavBudgetTable[[#This Row],[Budget]]/SavBudgetTable[[#Totals],[Budget]] -> 0
E18: =InvBudgetTable[[#This Row],[Budget]]/InvBudgetTable[[#Totals],[Budget]] -> 0 | I18: =SUM(I13:I17) -> 0 | J18: =AVERAGE(SUMIFS(Transactions!X:X,Transactions!W:W,IF(MONTH(TODAY())=1,YEAR(TODAY())-1,YEAR(TODAY())),Transactions!V:V,MOD(MONTH(TODAY())-2,12)+1,Transactions!B:B,SavBudgetTable[[#This Row],[Budget Category]]),SUMIFS(Transactions!X:X,Transactions!W:W,IF(MONTH(TODAY())=1,YEAR(TODAY())-1,YEAR(TODAY())),Transactions!V:V,MOD(MONTH(TODAY())-3,12)+1,Transactions!B:B,SavBudgetTable[[#This Row],[Budget Category]]),SUMIFS(Transactions!X:X,Transactions!W:W,IF(MONTH(TODAY())=1,YEAR(TODAY())-1,YEAR(TODAY())),Transactions!V:V,MOD(MONTH(TODAY())-4,12)+1,Transactions!B:B,SavBudgetTable[[#This Row],[Budget Category]]))*-1 -> 0 | L18: =SavBudgetTable[[#This Row],[Budget]]/SavBudgetTable[[#Totals],[Budget]] -> 0 | N18: Savings to Income Ratio | O18: =O16/IncBudgetTable[[#Totals],[Budget]] -> 0.3568773234
E19: =InvBudgetTable[[#This Row],[Budget]]/InvBudgetTable[[#Totals],[Budget]] -> 0 | I19: =SUM(I14:I18) -> 0 | J19: =AVERAGE(SUMIFS(Transactions!X:X,Transactions!W:W,IF(MONTH(TODAY())=1,YEAR(TODAY())-1,YEAR(TODAY())),Transactions!V:V,MOD(MONTH(TODAY())-2,12)+1,Transactions!B:B,SavBudgetTable[[#This Row],[Budget Category]]),SUMIFS(Transactions!X:X,Transactions!W:W,IF(MONTH(TODAY())=1,YEAR(TODAY())-1,YEAR(TODAY())),Transactions!V:V,MOD(MONTH(TODAY())-3,12)+1,Transactions!B:B,SavBudgetTable[[#This Row],[Budget Category]]),SUMIFS(Transactions!X:X,Transactions!W:W,IF(MONTH(TODAY())=1,YEAR(TODAY())-1,YEAR(TODAY())),Transactions!V:V,MOD(MONTH(TODAY())-4,12)+1,Transactions!B:B,SavBudgetTable[[#This Row],[Budget Category]]))*-1 -> 0 | L19: =SavBudgetTable[[#This Row],[Budget]]/SavBudgetTable[[#Totals],[Budget]] -> 0
A20: Total | D20: =SUBTOTAL(109,InvBudgetTable[Budget]) -> 500 | E20: =SUBTOTAL(109,InvBudgetTable[Percent]) -> 1 | G20: Total | K20: =SUBTOTAL(109,SavBudgetTable[Budget]) -> 1600 | L20: =SUBTOTAL(109,SavBudgetTable[Percent]) -> 1

Sheet Budget 2024
A1: 2024 | C1: Income Category | D1: Budget | E1: Actual | F1: Variance | H1: Expense Category | I1: Avg Last 3 Months | J1: Last Month | K1: Budget | L1: Actual | M1: Actual w/ Forecast | N1: Available | O1: Savings | P1: KPI | Q1: =HYPERLINK("#"&"K2","Go to Top") -> Go to Top | R1: =HYPERLINK("#"&"K"&MATCH(MONTH(TODAY()),A:A,0)+9,"Current Month") -> Current Month | S1: =HYPERLINK("#"&"K131","Go to Bottom") -> Go to Bottom | BA1: 9 | BB1: 9 | BC1: 9
A2: 1 | B2: =TEXT(A2*28,"mmmm") -> January | C2: =Budget!$A$3 -> Salary | D2: 6000 | E2: =SUMIFS(Transactions!X:X,Transactions!Y:Y,"<>F",Transactions!W:W,$A$1,Transactions!V:V,$A2,Transactions!B:B,C2) -> 0 | F2: =E2-D2 -> -6000 | H2: =Budget!$G$3 -> Groceries | J2: =SUMIFS(Transactions!X:X,Transactions!W:W,$A$1-1,Transactions!V:V,12,Transactions!B:B,H2)*-1 -> 0 | K2: 1185 | L2: =SUMIFS(Transactions!$X:$X,Transactions!$Y:$Y,"<>F",Transactions!$W:$W,$A$1,Transactions!$V:$V,$A2,Transactions!$B:$B,$H2)*-1 -> 0 | M2: =SUMIFS(Transactions!$X:$X,Transactions!$W:$W,$A$1,Transactions!$V:$V,$A2,Transactions!$B:$B,$H2)*-1 -> 0 | N2: =K2-M2 -> 1185 | O2: Budget Cash Savings | P2: =$D11-$K11 -> 620
C3: =Budget!$A$4 -> Bonus | E3: =SUMIFS(Transactions!X:X,Transactions!Y:Y,"<>F",Transactions!W:W,$A$1,Transactions!V:V,$A2,Transactions!B:B,C3) -> 0 | F3: 0 | H3: =Budget!$G$4 -> Entertainment | J3: =SUMIFS(Transactions!X:X,Transactions!W:W,$A$1-1,Transactions!V:V,12,Transactions!B:B,H3)*-1 -> 0 | K3: 400 | L3: =SUMIFS(Transactions!$X:$X,Transactions!$Y:$Y,"<>F",Transactions!$W:$W,$A$1,Transactions!$V:$V,$A2,Transactions!$B:$B,$H3)*-1 -> 0 | M3: =SUMIFS(Transactions!$X:$X,Transactions!$W:$W,$A$1,Transactions!$V:$V,$A2,Transactions!$B:$B,$H3)*-1 -> 0 | N3: 400 | O3: Cash Savings | P3: =$E11-$L11 -> 0
C4: =Budget!$A$5 -> Kids | D4: 725 | E4: =SUMIFS(Transactions!X:X,Transactions!Y:Y,"<>F",Transactions!W:W,$A$1,Transactions!V:V,$A2,Transactions!B:B,C4) -> 0 | F4: -725 | H4: =Budget!$G$5 -> Shopping | J4: =SUMIFS(Transactions!X:X,Transactions!W:W,$A$1-1,Transactions!V:V,12,Transactions!B:B,H4)*-1 -> 0 | K4: 500 | L4: =SUMIFS(Transactions!$X:$X,Transactions!$Y:$Y,"<>F",Transactions!$W:$W,$A$1,Transactions!$V:$V,$A2,Transactions!$B:$B,$H4)*-1 -> 0 | M4: =SUMIFS(Transactions!$X:$X,Transactions!$W:$W,$A$1,Transactions!$V:$V,$A2,Transactions!$B:$B,$H4)*-1 -> 0 | N4: 500 | O4: Cash Savings to Income | P4: =IF($E11=0,"",$P3/$E11) -> 
C5: =Budget!$A$6 -> Side Project | D5: 0 | E5: =SUMIFS(Transactions!X:X,Transactions!Y:Y,"<>F",Transactions!W:W,$A$1,Transactions!V:V,$A2,Transactions!B:B,C5) -> 0 | F5: 0 | H5: =Budget!$G$6 -> Bills | J5: =SUMIFS(Transactions!X:X,Transactions!W:W,$A$1-1,Transactions!V:V,12,Transactions!B:B,H5)*-1 -> 0 | K5: 1500 | L5: =SUMIFS(Transactions!$X:$X,Transactions!$Y:$Y,"<>F",Transactions!$W:$W,$A$1,Transactions!$V:$V,$A2,Transactions!$B:$B,$H5)*-1 -> 0 | M5: =SUMIFS(Transactions!$X:$X,Transactions!$W:$W,$A$1,Transactions!$V:$V,$A2,Transactions!$B:$B,$H5)*-1 -> 0 | N5: 1500 | O5: Gross Savings | P5: =$E11-$L11+$L10 -> 0
C6: =Budget!$A$7 -> Other Income | D6: 320 | E6: =SUMIFS(Transactions!X:X,Transactions!Y:Y,"<>F",Transactions!W:W,$A$1,Transactions!V:V,$A2,Transactions!B:B,C6) -> 0 | F6: -320 | H6: =Budget!$G$7 -> Car | J6: =SUMIFS(Transactions!X:X,Transactions!W:W,$A$1-1,Transactions!V:V,12,Transactions!B:B,H6)*-1 -> 0 | K6: 640 | L6: =SUMIFS(Transactions!$X:$X,Transactions!$Y:$Y,"<>F",Transactions!$W:$W,$A$1,Transactions!$V:$V,$A2,Transactions!$B:$B,$H6)*-1 -> 0 | M6: =SUMIFS(Transactions!$X:$X,Transactions!$W:$W,$A$1,Transactions!$V:$V,$A2,Transactions!$B:$B,$H6)*-1 -> 0 | N6: 640 | O6: Gross Savings to Income | P6: =IF($E11=0,"",$P5/$E11) -> 
C7: =Budget!$A$8 -> 0 | D7: 0 | E7: =SUMIFS(Transactions!X:X,Transactions!Y:Y,"<>F",Transactions!W:W,$A$1,Transactions!V:V,$A2,Transactions!B:B,C7) -> 0 | F7: 0 | H7: =Budget!$G$8 -> Charity | J7: =SUMIFS(Transactions!X:X,Transactions!W:W,$A$1-1,Transactions!V:V,12,Transactions!B:B,H7)*-1 -> 0 | K7: 400 | L7: =SUMIFS(Transactions!$X:$X,Transactions!$Y:$Y,"<>F",Transactions!$W:$W,$A$1,Transactions!$V:$V,$A2,Transactions!$B:$B,$H7)*-1 -> 0 | M7: =SUMIFS(Transactions!$X:$X,Transactions!$W:$W,$A$1,Transactions!$V:$V,$A2,Transactions!$B:$B,$H7)*-1 -> 0 | N7: 400
C8: =Budget!$A$9 -> 0 | D8: 0 | E8: =SUMIFS(Transactions!X:X,Transactions!Y:Y,"<>F",Transactions!W:W,$A$1,Transactions!V:V,$A2,Transactions!B:B,C8) -> 0 | F8: 0 | H8: =Budget!$G$9 -> Health | J8: =SUMIFS(Transactions!X:X,Transactions!W:W,$A$1-1,Transactions!V:V,12,Transactions!B:B,H8)*-1 -> 0 | K8: 200 | L8: =SUMIFS(Transactions!$X:$X,Transactions!$Y:$Y,"<>F",Transactions!$W:$W,$A$1,Transactions!$V:$V,$A2,Transactions!$B:$B,$H8)*-1 -> 0 | M8: =SUMIFS(Transactions!$X:$X,Transactions!$W:$W,$A$1,Transactions!$V:$V,$A2,Transactions!$B:$B,$H8)*-1 -> 0 | N8: 200
C9: =Budget!$A$10 -> 0 | D9: 0 | E9: =SUMIFS(Transactions!X:X,Transactions!Y:Y,"<>F",Transactions!W:W,$A$1,Transactions!V:V,$A2,Transactions!B:B,C9) -> 0 | F9: 0 | H9: =Budget!$G$10 -> Other | J9: =SUMIFS(Transactions!X:X,Transactions!W:W,$A$1-1,Transactions!V:V,12,Transactions!B:B,H9)*-1 -> 0 | L9: =SUMIFS(Transactions!$X:$X,Transactions!$Y:$Y,"<>F",Transactions!$W:$W,$A$1,Transactions!$V:$V,$A2,Transactions!$B:$B,$H9)*-1 -> 0 | M9: =SUMIFS(Transactions!$X:$X,Transactions!$W:$W,$A$1,Transactions!$V:$V,$A2,Transactions!$B:$B,$H9)*-1 -> 0 | N9: 0
H10: Savings | J10: =SUMIFS(Transactions!X:X,Transactions!W:W,$A$1-1,Transactions!V:V,12,Transactions!B:B,H10)*-1 -> 0 | K10: 1600 | L10: =SUMIFS(Transactions!$X:$X,Transactions!$Y:$Y,"<>F",Transactions!$W:$W,$A$1,Transactions!$V:$V,$A2,Transactions!$B:$B,$H10)*-1 -> 0 | M10: =SUMIFS(Transactions!$X:$X,Transactions!$W:$W,$A$1,Transactions!$V:$V,$A2,Transactions!$B:$B,$H10)*-1 -> 0 | N10: 1600
C11: Total Income | D11: =SUM(D2:D10) -> 7045 | E11: =SUM(E2:E10) -> 0 | F11: =SUM(F2:F10) -> -7045 | H11: Total Expenses | I11: =SUM(I2:I10) -> 0 | J11: =L1 -> Actual | K11: =SUM(K2:K10) -> 6425 | L11: =SUM(L2:L10) -> 0 | M11: =SUM(M2:M10) -> 0 | N11: =SUM(N2:N10) -> 6425
A12: 2 | B12: =TEXT(A12*28,"mmmm") -> February | C12: =Budget!$A$3 -> Salary | D12: 6000 | E12: =SUMIFS(Transactions!X:X,Transactions!Y:Y,"<>F",Transactions!W:W,$A$1,Transactions!V:V,$A12,Transactions!B:B,C12) -> 0 | F12: =E12-D12 -> -6000 | H12: =Budget!$G$3 -> Groceries | J12: 0 | K12: 1185 | L12: =SUMIFS(Transactions!$X:$X,Transactions!$Y:$Y,"<>F",Transactions!$W:$W,$A$1,Transactions!$V:$V,$A12,Transactions!$B:$B,$H12)*-1 -> 0 | M12: =SUMIFS(Transactions!$X:$X,Transactions!$W:$W,$A$1,Transactions!$V:$V,$A12,Transactions!$B:$B,$H12)*-1 -> 0 | N12: =K12-M12 -> 1185 | O12: Budget Cash Savings | P12: =$D21-$K21 -> 300
C13: =Budget!$A$4 -> Bonus | E13: =SUMIFS(Transactions!X:X,Transactions!Y:Y,"<>F",Transactions!W:W,$A$1,Transactions!V:V,$A12,Transactions!B:B,C13) -> 0 | F13: 0 | H13: =Budget!$G$4 -> Entertainment | J13: 0 | K13: 400 | L13: =SUMIFS(Transactions!$X:$X,Transactions!$Y:$Y,"<>F",Transactions!$W:$W,$A$1,Transactions!$V:$V,$A12,Transactions!$B:$B,$H13)*-1 -> 0 | M13: =SUMIFS(Transactions!$X:$X,Transactions!$W:$W,$A$1,Transactions!$V:$V,$A12,Transactions!$B:$B,$H13)*-1 -> 0 | N13: 400 | O13: Cash Savings | P13: =$E21-$L21 -> 0
C14: =Budget!$A$5 -> Kids | D14: 725 | E14: =SUMIFS(Transactions!X:X,Transactions!Y:Y,"<>F",Transactions!W:W,$A$1,Transactions!V:V,$A12,Transactions!B:B,C14) -> 0 | F14: -725 | H14: =Budget!$G$5 -> Shopping | J14: 0 | K14: 500 | L14: =SUMIFS(Transactions!$X:$X,Transactions!$Y:$Y,"<>F",Transactions!$W:$W,$A$1,Transactions!$V:$V,$A12,Transactions!$B:$B,$H14)*-1 -> 0 | M14: =SUMIFS(Transactions!$X:$X,Transactions!$W:$W,$A$1,Transactions!$V:$V,$A12,Transactions!$B:$B,$H14)*-1 -> 0 | N14: 500 | O14: Cash Savings to Income | P14: =IF($E21=0,"",$P13/$E21) -> 
C15: =Budget!$A$6 -> Side Project | D15: 0 | E15: =SUMIFS(Transactions!X:X,Transactions!Y:Y,"<>F",Transactions!W:W,$A$1,Transactions!V:V,$A12,Transactions!B:B,C15) -> 0 | F15: 0 | H15: =Budget!$G$6 -> Bills | J15: 0 | K15: 1500 | L15: =SUMIFS(Transactions!$X:$X,Transactions!$Y:$Y,"<>F",Transactions!$W:$W,$A$1,Transactions!$V:$V,$A12,Transactions!$B:$B,$H15)*-1 -> 0 | M15: =SUMIFS(Transactions!$X:$X,Transactions!$W:$W,$A$1,Transactions!$V:$V,$A12,Transactions!$B:$B,$H15)*-1 -> 0 | N15: 1500 | O15: Gross Savings | P15: =$E21-$L21+$L20 -> 0
C16: =Budget!$A$7 -> Other Income | E16: =SUMIFS(Transactions!X:X,Transactions!Y:Y,"<>F",Transactions!W:W,$A$1,Transactions!V:V,$A12,Transactions!B:B,C16) -> 0 | F16: 0 | H16: =Budget!$G$7 -> Car | J16: 0 | K16: 640 | L16: =SUMIFS(Transactions!$X:$X,Transactions!$Y:$Y,"<>F",Transactions!$W:$W,$A$1,Transactions!$V:$V,$A12,Transactions!$B:$B,$H16)*-1 -> 0 | M16: =SUMIFS(Transactions!$X:$X,Transactions!$W:$W,$A$1,Transactions!$V:$V,$A12,Transactions!$B:$B,$H16)*-1 -> 0 | N16: 640 | O16: Gross Savings to Income | P16: =IF($E21=0,"",$P15/$E21) -> 
C17: =Budget!$A$8 -> 0 | D17: 0 | E17: =SUMIFS(Transactions!X:X,Transactions!Y:Y,"<>F",Transactions!W:W,$A$1,Transactions!V:V,$A12,Transactions!B:B,C17) -> 0 | F17: 0 | H17: =Budget!$G$8 -> Charity | J17: 0 | K17: 400 | L17: =SUMIFS(Transactions!$X:$X,Transactions!$Y:$Y,"<>F",Transactions!$W:$W,$A$1,Transactions!$V:$V,$A12,Transactions!$B:$B,$H17)*-1 -> 0 | M17: =SUMIFS(Transactions!$X:$X,Transactions!$W:$W,$A$1,Transactions!$V:$V,$A12,Transactions!$B:$B,$H17)*-1 -> 0 | N17: 400
C18: =Budget!$A$9 -> 0 | D18: 0 | E18: =SUMIFS(Transactions!X:X,Transactions!Y:Y,"<>F",Transactions!W:W,$A$1,Transactions!V:V,$A12,Transactions!B:B,C18) -> 0 | F18: 0 | H18: =Budget!$G$9 -> Health | J18: 0 | K18: 200 | L18: =SUMIFS(Transactions!$X:$X,Transactions!$Y:$Y,"<>F",Transactions!$W:$W,$A$1,Transactions!$V:$V,$A12,Transactions!$B:$B,$H18)*-1 -> 0 | M18: =SUMIFS(Transactions!$X:$X,Transactions!$W:$W,$A$1,Transactions!$V:$V,$A12,Transactions!$B:$B,$H18)*-1 -> 0 | N18: 200
C19: =Budget!$A$10 -> 0 | D19: 0 | E19: =SUMIFS(Transactions!X:X,Transactions!Y:Y,"<>F",Transactions!W:W,$A$1,Transactions!V:V,$A12,Transactions!B:B,C19) -> 0 | F19: 0 | H19: =Budget!$G$10 -> Other | J19: 0 | L19: =SUMIFS(Transactions!$X:$X,Transactions!$Y:$Y,"<>F",Transactions!$W:$W,$A$1,Transactions!$V:$V,$A12,Transactions!$B:$B,$H19)*-1 -> 0 | M19: =SUMIFS(Transactions!$X:$X,Transactions!$W:$W,$A$1,Transactions!$V:$V,$A12,Transactions!$B:$B,$H19)*-1 -> 0 | N19: 0
H20: Savings | J20: 0 | K20: 1600 | L20: =SUMIFS(Transactions!$X:$X,Transactions!$Y:$Y,"<>F",Transactions!$W:$W,$A$1,Transactions!$V:$V,$A12,Transactions!$B:$B,$H20)*-1 -> 0 | M20: =SUMIFS(Transactions!$X:$X,Transactions!$W:$W,$A$1,Transactions!$V:$V,$A12,Transactions!$B:$B,$H20)*-1 -> 0 | N20: 1600
C21: Total Income | D21: =SUM(D12:D20) -> 6725 | E21: =SUM(E12:E20) -> 0 | F21: =SUM(F12:F20) -> -6725 | H21: Total Expenses | I21: =SUM(I12:I20) -> 0 | J21: 0 | K21: =SUM(K12:K20) -> 6425 | L21: =SUM(L12:L20) -> 0 | M21: =SUM(M12:M20) -> 0 | N21: =SUM(N12:N20) -> 6425
A22: 3 | B22: =TEXT(A22*28,"mmmm") -> March | C22: =Budget!$A$3 -> Salary | D22: 9000 | E22: =SUMIFS(Transactions!X:X,Transactions!Y:Y,"<>F",Transactions!W:W,$A$1,Transactions!V:V,$A22,Transactions!B:B,C22) -> 0 | F22: =E22-D22 -> -9000 | H22: =Budget!$G$3 -> Groceries | I22: =ROUND(AVERAGE(L2,L12,SUMIFS(Transactions!X:X,Transactions!W:W,$A$1-1,Transactions!V:V,12,Transactions!B:B,H22)*-1),-2) -> 0 | J22: 0 | K22: 1185 | L22: =SUMIFS(Transactions!$X:$X,Transactions!$Y:$Y,"<>F",Transactions!$W:$W,$A$1,Transactions!$V:$V,$A22,Transactions!$B:$B,$H22)*-1 -> 0 | M22: =SUMIFS(Transactions!$X:$X,Transactions!$W:$W,$A$1,Transactions!$V:$V,$A22,Transactions!$B:$B,$H22)*-1 -> 0 | N22: =K22-M22 -> 1185 | O22: Budget Cash Savings | P22: =$D31-$K31 -> 3900
C23: =Budget!$A$4 -> Bonus | E23: =SUMIFS(Transactions!X:X,Transactions!Y:Y,"<>F",Transactions!W:W,$A$1,Transactions!V:V,$A22,Transactions!B:B,C23) -> 0 | F23: 0 | H23: =Budget!$G$4 -> Entertainment | I23: =ROUND(AVERAGE(L3,L13,SUMIFS(Transactions!X:X,Transactions!W:W,$A$1-1,Transactions!V:V,12,Transactions!B:B,H23)*-1),-2) -> 0 | J23: 0 | K23: 400 | L23: =SUMIFS(Transactions!$X:$X,Transactions!$Y:$Y,"<>F",Transactions!$W:$W,$A$1,Transactions!$V:$V,$A22,Transactions!$B:$B,$H23)*-1 -> 0 | M23: =SUMIFS(Transactions!$X:$X,Transactions!$W:$W,$A$1,Transactions!$V:$V,$A22,Transactions!$B:$B,$H23)*-1 -> 0 | N23: 400 | O23: Cash Savings | P23: =$E31-$L31 -> 0
C24: =Budget!$A$5 -> Kids | D24: 725 | E24: =SUMIFS(Transactions!X:X,Transactions!Y:Y,"<>F",Transactions!W:W,$A$1,Transactions!V:V,$A22,Transactions!B:B,C24) -> 0 | F24: -725 | H24: =Budget!$G$5 -> Shopping | I24: =ROUND(AVERAGE(L4,L14,SUMIFS(Transactions!X:X,Transactions!W:W,$A$1-1,Transactions!V:V,12,Transactions!B:B,H24)*-1),-2) -> 0 | J24: 0 | K24: 500 | L24: =SUMIFS(Transactions!$X:$X,Transactions!$Y:$Y,"<>F",Transactions!$W:$W,$A$1,Transactions!$V:$V,$A22,Transactions!$B:$B,$H24)*-1 -> 0 | M24: =SUMIFS(Transactions!$X:$X,Transactions!$W:$W,$A$1,Transactions!$V:$V,$A22,Transactions!$B:$B,$H24)*-1 -> 0 | N24: 500 | O24: Cash Savings to Income | P24: =IF($E31=0,"",$P23/$E31) -> 
C25: =Budget!$A$6 -> Side Project | D25: 0 | E25: =SUMIFS(Transactions!X:X,Transactions!Y:Y,"<>F",Transactions!W:W,$A$1,Transactions!V:V,$A22,Transactions!B:B,C25) -> 0 | F25: 0 | H25: =Budget!$G$6 -> Bills | I25: =ROUND(AVERAGE(L5,L15,SUMIFS(Transactions!X:X,Transactions!W:W,$A$1-1,Transactions!V:V,12,Transactions!B:B,H25)*-1),-2) -> 0 | J25: 0 | K25: 1500 | L25: =SUMIFS(Transactions!$X:$X,Transactions!$Y:$Y,"<>F",Transactions!$W:$W,$A$1,Transactions!$V:$V,$A22,Transactions!$B:$B,$H25)*-1 -> 0 | M25: =SUMIFS(Transactions!$X:$X,Transactions!$W:$W,$A$1,Transactions!$V:$V,$A22,Transactions!$B:$B,$H25)*-1 -> 0 | N25: 1500 | O25: Gross Savings | P25: =$E31-$L31+$L30 -> 0
C26: =Budget!$A$7 -> Other Income | D26: 600 | E26: =SUMIFS(Transactions!X:X,Transactions!Y:Y,"<>F",Transactions!W:W,$A$1,Transactions!V:V,$A22,Transactions!B:B,C26) -> 0 | F26: -600 | H26: =Budget!$G$7 -> Car | I26: =ROUND(AVERAGE(L6,L16,SUMIFS(Transactions!X:X,Transactions!W:W,$A$1-1,Transactions!V:V,12,Transactions!B:B,H26)*-1),-2) -> 0 | J26: 0 | K26: 640 | L26: =SUMIFS(Transactions!$X:$X,Transactions!$Y:$Y,"<>F",Transactions!$W:$W,$A$1,Transactions!$V:$V,$A22,Transactions!$B:$B,$H26)*-1 -> 0 | M26: =SUMIFS(Transactions!$X:$X,Transactions!$W:$W,$A$1,Transactions!$V:$V,$A22,Transactions!$B:$B,$H26)*-1 -> 0 | N26: 640 | O26: Gross Savings to Income | P26: =IF($E31=0,"",$P25/$E31) -> 
C27: =Budget!$A$8 -> 0 | D27: 0 | E27: =SUMIFS(Transactions!X:X,Transactions!Y:Y,"<>F",Transactions!W:W,$A$1,Transactions!V:V,$A22,Transactions!B:B,C27) -> 0 | F27: 0 | H27: =Budget!$G$8 -> Charity | I27: =ROUND(AVERAGE(L7,L17,SUMIFS(Transactions!X:X,Transactions!W:W,$A$1-1,Transactions!V:V,12,Transactions!B:B,H27)*-1),-2) -> 0 | J27: 0 | K27: 400 | L27: =SUMIFS(Transactions!$X:$X,Transactions!$Y:$Y,"<>F",Transactions!$W:$W,$A$1,Transactions!$V:$V,$A22,Transactions!$B:$B,$H27)*-1 -> 0 | M27: =SUMIFS(Transactions!$X:$X,Transactions!$W:$W,$A$1,Transactions!$V:$V,$A22,Transactions!$B:$B,$H27)*-1 -> 0 | N27: 400
C28: =Budget!$A$9 -> 0 | D28: 0 | E28: =SUMIFS(Transactions!X:X,Transactions!Y:Y,"<>F",Transactions!W:W,$A$1,Transactions!V:V,$A22,Transactions!B:B,C28) -> 0 | F28: 0 | H28: =Budget!$G$9 -> Health | I28: =ROUND(AVERAGE(L8,L18,SUMIFS(Transactions!X:X,Transactions!W:W,$A$1-1,Transactions!V:V,12,Transactions!B:B,H28)*-1),-2) -> 0 | J28: 0 | K28: 200 | L28: =SUMIFS(Transactions!$X:$X,Transactions!$Y:$Y,"<>F",Transactions!$W:$W,$A$1,Transactions!$V:$V,$A22,Transactions!$B:$B,$H28)*-1 -> 0 | M28: =SUMIFS(Transactions!$X:$X,Transactions!$W:$W,$A$1,Transactions!$V:$V,$A22,Transactions!$B:$B,$H28)*-1 -> 0 | N28: 200
C29: =Budget!$A$10 -> 0 | D29: 0 | E29: =SUMIFS(Transactions!X:X,Transactions!Y:Y,"<>F",Transactions!W:W,$A$1,Transactions!V:V,$A22,Transactions!B:B,C29) -> 0 | F29: 0 | H29: =Budget!$G$10 -> Other | I29: =ROUND(AVERAGE(L9,L19,SUMIFS(Transactions!X:X,Transactions!W:W,$A$1-1,Transactions!V:V,12,Transactions!B:B,H29)*-1),-2) -> 0 | J29: 0 | L29: =SUMIFS(Transactions!$X:$X,Transactions!$Y:$Y,"<>F",Transactions!$W:$W,$A$1,Transactions!$V:$V,$A22,Transactions!$B:$B,$H29)*-1 -> 0 | M29: =SUMIFS(Transactions!$X:$X,Transactions!$W:$W,$A$1,Transactions!$V:$V,$A22,Transactions!$B:$B,$H29)*-1 -> 0 | N29: 0
H30: Savings | I30: =ROUND(AVERAGE(L10,L20,SUMIFS(Transactions!X:X,Transactions!W:W,$A$1-1,Transactions!V:V,12,Transactions!B:B,H30)*-1),-2) -> 0 | J30: 0 | K30: 1600 | L30: =SUMIFS(Transactions!$X:$X,Transactions!$Y:$Y,"<>F",Transactions!$W:$W,$A$1,Transactions!$V:$V,$A22,Transactions!$B:$B,$H30)*-1 -> 0 | M30: =SUMIFS(Transactions!$X:$X,Transactions!$W:$W,$A$1,Transactions!$V:$V,$A22,Transactions!$B:$B,$H30)*-1 -> 0 | N30: 1600
C31: Total Income | D31: =SUM(D22:D30) -> 10325 | E31: =SUM(E22:E30) -> 0 | F31: =SUM(F22:F30) -> -10325 | H31: Total Expenses | I31: =SUM(I22:I30) -> 0 | J31: 0 | K31: =SUM(K22:K30) -> 6425 | L31: =SUM(L22:L30) -> 0 | M31: =SUM(M22:M30) -> 0 | N31: =SUM(N22:N30) -> 6425
A32: 4 | B32: =TEXT(A32*28,"mmmm") -> April | C32: =Budget!$A$3 -> Salary | D32: 6000 | E32: =SUMIFS(Transactions!X:X,Transactions!Y:Y,"<>F",Transactions!W:W,$A$1,Transactions!V:V,$A32,Transactions!B:B,C32) -> 0 | F32: =E32-D32 -> -6000 | H32: =Budget!$G$3 -> Groceries | I32: =ROUND(AVERAGE(L2,L12,L22),-2) -> 0 | J32: 0 | K32: 1185 | L32: =SUMIFS(Transactions!$X:$X,Transactions!$Y:$Y,"<>F",Transactions!$W:$W,$A$1,Transactions!$V:$V,$A32,Transactions!$B:$B,$H32)*-1 -> 0 | M32: =SUMIFS(Transactions!$X:$X,Transactions!$W:$W,$A$1,Transactions!$V:$V,$A32,Transactions!$B:$B,$H32)*-1 -> 0 | N32: =K32-M32 -> 1185 | O32: Budget Cash Savings | P32: =$D41-$K41 -> 300
C33: =Budget!$A$4 -> Bonus | E33: =SUMIFS(Transactions!X:X,Transactions!Y:Y,"<>F",Transactions!W:W,$A$1,Transactions!V:V,$A32,Transactions!B:B,C33) -> 0 | F33: 0 | H33: =Budget!$G$4 -> Entertainment | I33: 0 | J33: 0 | K33: 400 | L33: =SUMIFS(Transactions!$X:$X,Transactions!$Y:$Y,"<>F",Transactions!$W:$W,$A$1,Transactions!$V:$V,$A32,Transactions!$B:$B,$H33)*-1 -> 0 | M33: =SUMIFS(Transactions!$X:$X,Transactions!$W:$W,$A$1,Transactions!$V:$V,$A32,Transactions!$B:$B,$H33)*-1 -> 0 | N33: 400 | O33: Cash Savings | P33: =$E41-$L41 -> 0
C34: =Budget!$A$5 -> Kids | D34: 725 | E34: =SUMIFS(Transactions!X:X,Transactions!Y:Y,"<>F",Transactions!W:W,$A$1,Transactions!V:V,$A32,Transactions!B:B,C34) -> 0 | F34: -725 | H34: =Budget!$G$5 -> Shopping | I34: 0 | J34: 0 | K34: 500 | L34: =SUMIFS(Transactions!$X:$X,Transactions!$Y:$Y,"<>F",Transactions!$W:$W,$A$1,Transactions!$V:$V,$A32,Transactions!$B:$B,$H34)*-1 -> 0 | M34: =SUMIFS(Transactions!$X:$X,Transactions!$W:$W,$A$1,Transactions!$V:$V,$A32,Transactions!$B:$B,$H34)*-1 -> 0 | N34: 500 | O34: Cash Savings to Income | P34: =IF($E41=0,"",$P33/$E41) -> 
C35: =Budget!$A$6 -> Side Project | D35: 0 | E35: =SUMIFS(Transactions!X:X,Transactions!Y:Y,"<>F",Transactions!W:W,$A$1,Transactions!V:V,$A32,Transactions!B:B,C35) -> 0 | F35: 0 | H35: =Budget!$G$6 -> Bills | I35: 0 | J35: 0 | K35: 1500 | L35: =SUMIFS(Transactions!$X:$X,Transactions!$Y:$Y,"<>F",Transactions!$W:$W,$A$1,Transactions!$V:$V,$A32,Transactions!$B:$B,$H35)*-1 -> 0 | M35: =SUMIFS(Transactions!$X:$X,Transactions!$W:$W,$A$1,Transactions!$V:$V,$A32,Transactions!$B:$B,$H35)*-1 -> 0 | N35: 1500 | O35: Gross Savings | P35: =$E41-$L41+$L40 -> 0
C36: =Budget!$A$7 -> Other Income | E36: =SUMIFS(Transactions!X:X,Transactions!Y:Y,"<>F",Transactions!W:W,$A$1,Transactions!V:V,$A32,Transactions!B:B,C36) -> 0 | F36: 0 | H36: =Budget!$G$7 -> Car | I36: 0 | J36: 0 | K36: 640 | L36: =SUMIFS(Transactions!$X:$X,Transactions!$Y:$Y,"<>F",Transactions!$W:$W,$A$1,Transactions!$V:$V,$A32,Transactions!$B:$B,$H36)*-1 -> 0 | M36: =SUMIFS(Transactions!$X:$X,Transactions!$W:$W,$A$1,Transactions!$V:$V,$A32,Transactions!$B:$B,$H36)*-1 -> 0 | N36: 640 | O36: Gross Savings to Income | P36: =IF($E41=0,"",$P35/$E41) -> 
C37: =Budget!$A$8 -> 0 | E37: =SUMIFS(Transactions!X:X,Transactions!Y:Y,"<>F",Transactions!W:W,$A$1,Transactions!V:V,$A32,Transactions!B:B,C37) -> 0 | F37: 0 | H37: =Budget!$G$8 -> Charity | I37: 0 | J37: 0 | K37: 400 | L37: =SUMIFS(Transactions!$X:$X,Transactions!$Y:$Y,"<>F",Transactions!$W:$W,$A$1,Transactions!$V:$V,$A32,Transactions!$B:$B,$H37)*-1 -> 0 | M37: =SUMIFS(Transactions!$X:$X,Transactions!$W:$W,$A$1,Transactions!$V:$V,$A32,Transactions!$B:$B,$H37)*-1 -> 0 | N37: 400
C38: =Budget!$A$9 -> 0 | E38: =SUMIFS(Transactions!X:X,Transactions!Y:Y,"<>F",Transactions!W:W,$A$1,Transactions!V:V,$A32,Transactions!B:B,C38) -> 0 | F38: 0 | H38: =Budget!$G$9 -> Health | I38: 0 | J38: 0 | K38: 200 | L38: =SUMIFS(Transactions!$X:$X,Transactions!$Y:$Y,"<>F",Transactions!$W:$W,$A$1,Transactions!$V:$V,$A32,Transactions!$B:$B,$H38)*-1 -> 0 | M38: =SUMIFS(Transactions!$X:$X,Transactions!$W:$W,$A$1,Transactions!$V:$V,$A32,Transactions!$B:$B,$H38)*-1 -> 0 | N38: 200
C39: =Budget!$A$10 -> 0 | E39: =SUMIFS(Transactions!X:X,Transactions!Y:Y,"<>F",Transactions!W:W,$A$1,Transactions!V:V,$A32,Transactions!B:B,C39) -> 0 | F39: 0 | H39: =Budget!$G$10 -> Other | I39: 0 | J39: 0 | L39: =SUMIFS(Transactions!$X:$X,Transactions!$Y:$Y,"<>F",Transactions!$W:$W,$A$1,Transactions!$V:$V,$A32,Transactions!$B:$B,$H39)*-1 -> 0 | M39: =SUMIFS(Transactions!$X:$X,Transactions!$W:$W,$A$1,Transactions!$V:$V,$A32,Transactions!$B:$B,$H39)*-1 -> 0 | N39: 0
H40: Savings | I40: 0 | J40: 0 | K40: 1600 | L40: =SUMIFS(Transactions!$X:$X,Transactions!$Y:$Y,"<>F",Transactions!$W:$W,$A$1,Transactions!$V:$V,$A32,Transactions!$B:$B,$H40)*-1 -> 0 | M40: =SUMIFS(Transactions!$X:$X,Transactions!$W:$W,$A$1,Transactions!$V:$V,$A32,Transactions!$B:$B,$H40)*-1 -> 0 | N40: 1600
C41: Total Income | D41: =SUM(D32:D40) -> 6725 | E41: =SUM(E32:E40) -> 0 | F41: =SUM(F32:F40) -> -6725 | H41: Total Expenses | I41: =SUM(I32:I40) -> 0 | J41: 0 | K41: =SUM(K32:K40) -> 6425 | L41: =SUM(L32:L40) -> 0 | M41: =SUM(M32:M40) -> 0 | N41: =SUM(N32:N40) -> 6425
A42: 5 | B42: =TEXT(A42*28,"mmmm") -> May | C42: =Budget!$A$3 -> Salary | D42: 6000 | E42: =SUMIFS(Transactions!X:X,Transactions!Y:Y,"<>F",Transactions!W:W,$A$1,Transactions!V:V,$A42,Transactions!B:B,C42) -> 0 | F42: =E42-D42 -> -6000 | H42: =Budget!$G$3 -> Groceries | I42: =ROUND(AVERAGE(L12,L22,L32),-2) -> 0 | J42: 0 | K42: 1185 | L42: =SUMIFS(Transactions!$X:$X,Transactions!$Y:$Y,"<>F",Transactions!$W:$W,$A$1,Transactions!$V:$V,$A42,Transactions!$B:$B,$H42)*-1 -> 0 | M42: =SUMIFS(Transactions!$X:$X,Transactions!$W:$W,$A$1,Transactions!$V:$V,$A42,Transactions!$B:$B,$H42)*-1 -> 0 | N42: =K42-M42 -> 1185 | O42: Budget Cash Savings | P42: =$D51-$K51 -> 300
C43: =Budget!$A$4 -> Bonus | E43: =SUMIFS(Transactions!X:X,Transactions!Y:Y,"<>F",Transactions!W:W,$A$1,Transactions!V:V,$A42,Transactions!B:B,C43) -> 0 | F43: 0 | H43: =Budget!$G$4 -> Entertainment | I43: 0 | J43: 0 | K43: 400 | L43: =SUMIFS(Transactions!$X:$X,Transactions!$Y:$Y,"<>F",Transactions!$W:$W,$A$1,Transactions!$V:$V,$A42,Transactions!$B:$B,$H43)*-1 -> 0 | M43: =SUMIFS(Transactions!$X:$X,Transactions!$W:$W,$A$1,Transactions!$V:$V,$A42,Transactions!$B:$B,$H43)*-1 -> 0 | N43: 400 | O43: Cash Savings | P43: =$E51-$L51 -> 0
C44: =Budget!$A$5 -> Kids | D44: 725 | E44: =SUMIFS(Transactions!X:X,Transactions!Y:Y,"<>F",Transactions!W:W,$A$1,Transactions!V:V,$A42,Transactions!B:B,C44) -> 0 | F44: -725 | H44: =Budget!$G$5 -> Shopping | I44: 0 | J44: 0 | K44: 500 | L44: =SUMIFS(Transactions!$X:$X,Transactions!$Y:$Y,"<>F",Transactions!$W:$W,$A$1,Transactions!$V:$V,$A42,Transactions!$B:$B,$H44)*-1 -> 0 | M44: =SUMIFS(Transactions!$X:$X,Transactions!$W:$W,$A$1,Transactions!$V:$V,$A42,Transactions!$B:$B,$H44)*-1 -> 0 | N44: 500 | O44: Cash Savings to Income | P44: =IF($E51=0,"",$P43/$E51) -> 
C45: =Budget!$A$6 -> Side Project | D45: 0 | E45: =SUMIFS(Transactions!X:X,Transactions!Y:Y,"<>F",Transactions!W:W,$A$1,Transactions!V:V,$A42,Transactions!B:B,C45) -> 0 | F45: 0 | H45: =Budget!$G$6 -> Bills | I45: 0 | J45: 0 | K45: 1500 | L45: =SUMIFS(Transactions!$X:$X,Transactions!$Y:$Y,"<>F",Transactions!$W:$W,$A$1,Transactions!$V:$V,$A42,Transactions!$B:$B,$H45)*-1 -> 0 | M45: =SUMIFS(Transactions!$X:$X,Transactions!$W:$W,$A$1,Transactions!$V:$V,$A42,Transactions!$B:$B,$H45)*-1 -> 0 | N45: 1500 | O45: Gross Savings | P45: =$E51-$L51+$L50 -> 0
C46: =Budget!$A$7 -> Other Income | D46: 0 | E46: =SUMIFS(Transactions!X:X,Transactions!Y:Y,"<>F",Transactions!W:W,$A$1,Transactions!V:V,$A42,Transactions!B:B,C46) -> 0 | F46: 0 | H46: =Budget!$G$7 -> Car | I46: 0 | J46: 0 | K46: 640 | L46: =SUMIFS(Transactions!$X:$X,Transactions!$Y:$Y,"<>F",Transactions!$W:$W,$A$1,Transactions!$V:$V,$A42,Transactions!$B:$B,$H46)*-1 -> 0 | M46: =SUMIFS(Transactions!$X:$X,Transactions!$W:$W,$A$1,Transactions!$V:$V,$A42,Transactions!$B:$B,$H46)*-1 -> 0 | N46: 640 | O46: Gross Savings to Income | P46: =IF($E51=0,"",$P45/$E51) -> 
C47: =Budget!$A$8 -> 0 | D47: 0 | E47: =SUMIFS(Transactions!X:X,Transactions!Y:Y,"<>F",Transactions!W:W,$A$1,Transactions!V:V,$A42,Transactions!B:B,C47) -> 0 | F47: 0 | H47: =Budget!$G$8 -> Charity | I47: 0 | J47: 0 | K47: 400 | L47: =SUMIFS(Transactions!$X:$X,Transactions!$Y:$Y,"<>F",Transactions!$W:$W,$A$1,Transactions!$V:$V,$A42,Transactions!$B:$B,$H47)*-1 -> 0 | M47: =SUMIFS(Transactions!$X:$X,Transactions!$W:$W,$A$1,Transactions!$V:$V,$A42,Transactions!$B:$B,$H47)*-1 -> 0 | N47: 400
C48: =Budget!$A$9 -> 0 | D48: 0 | E48: =SUMIFS(Transactions!X:X,Transactions!Y:Y,"<>F",Transactions!W:W,$A$1,Transactions!V:V,$A42,Transactions!B:B,C48) -> 0 | F48: 0 | H48: =Budget!$G$9 -> Health | I48: 0 | J48: 0 | K48: 200 | L48: =SUMIFS(Transactions!$X:$X,Transactions!$Y:$Y,"<>F",Transactions!$W:$W,$A$1,Transactions!$V:$V,$A42,Transactions!$B:$B,$H48)*-1 -> 0 | M48: =SUMIFS(Transactions!$X:$X,Transactions!$W:$W,$A$1,Transactions!$V:$V,$A42,Transactions!$B:$B,$H48)*-1 -> 0 | N48: 200
C49: =Budget!$A$10 -> 0 | D49: 0 | E49: =SUMIFS(Transactions!X:X,Transactions!Y:Y,"<>F",Transactions!W:W,$A$1,Transactions!V:V,$A42,Transactions!B:B,C49) -> 0 | F49: 0 | H49: =Budget!$G$10 -> Other | I49: 0 | J49: 0 | L49: =SUMIFS(Transactions!$X:$X,Transactions!$Y:$Y,"<>F",Transactions!$W:$W,$A$1,Transactions!$V:$V,$A42,Transactions!$B:$B,$H49)*-1 -> 0 | M49: =SUMIFS(Transactions!$X:$X,Transactions!$W:$W,$A$1,Transactions!$V:$V,$A42,Transactions!$B:$B,$H49)*-1 -> 0 | N49: 0
H50: Savings | I50: 0 | J50: 0 | K50: 1600 | L50: =SUMIFS(Transactions!$X:$X,Transactions!$Y:$Y,"<>F",Transactions!$W:$W,$A$1,Transactions!$V:$V,$A42,Transactions!$B:$B,$H50)*-1 -> 0 | M50: =SUMIFS(Transactions!$X:$X,Transactions!$W:$W,$A$1,Transactions!$V:$V,$A42,Transactions!$B:$B,$H50)*-1 -> 0 | N50: 1600
C51: Total Income | D51: =SUM(D42:D50) -> 6725 | E51: =SUM(E42:E50) -> 0 | F51: =SUM(F42:F50) -> -6725 | H51: Total Expenses | I51: =SUM(I42:I50) -> 0 | J51: 0 | K51: =SUM(K42:K50) -> 6425 | L51: =SUM(L42:L50) -> 0 | M51: =SUM(M42:M50) -> 0 | N51: =SUM(N42:N50) -> 6425
A52: 6 | B52: =TEXT(A52*28,"mmmm") -> June | C52: =Budget!$A$3 -> Salary | D52: 6000 | E52: =SUMIFS(Transactions!X:X,Transactions!Y:Y,"<>F",Transactions!W:W,$A$1,Transactions!V:V,$A52,Transactions!B:B,C52) -> 0 | F52: =E52-D52 -> -6000 | H52: =Budget!$G$3 -> Groceries | I52: =ROUND(AVERAGE(L22,L32,L42),-2) -> 0 | J52: 0 | K52: 1185 | L52: =SUMIFS(Transactions!$X:$X,Transactions!$Y:$Y,"<>F",Transactions!$W:$W,$A$1,Transactions!$V:$V,$A52,Transactions!$B:$B,$H52)*-1 -> 0 | M52: =SUMIFS(Transactions!$X:$X,Transactions!$W:$W,$A$1,Transactions!$V:$V,$A52,Transactions!$B:$B,$H52)*-1 -> 0 | N52: =K52-M52 -> 1185 | O52: Budget Cash Savings | P52: =$D61-$K61 -> 300
C53: =Budget!$A$4 -> Bonus | E53: =SUMIFS(Transactions!X:X,Transactions!Y:Y,"<>F",Transactions!W:W,$A$1,Transactions!V:V,$A52,Transactions!B:B,C53) -> 0 | F53: 0 | H53: =Budget!$G$4 -> Entertainment | I53: 0 | J53: 0 | K53: 400 | L53: =SUMIFS(Transactions!$X:$X,Transactions!$Y:$Y,"<>F",Transactions!$W:$W,$A$1,Transactions!$V:$V,$A52,Transactions!$B:$B,$H53)*-1 -> 0 | M53: =SUMIFS(Transactions!$X:$X,Transactions!$W:$W,$A$1,Transactions!$V:$V,$A52,Transactions!$B:$B,$H53)*-1 -> 0 | N53: 400 | O53: Cash Savings | P53: =$E61-$L61 -> 0
C54: =Budget!$A$5 -> Kids | D54: 725 | E54: =SUMIFS(Transactions!X:X,Transactions!Y:Y,"<>F",Transactions!W:W,$A$1,Transactions!V:V,$A52,Transactions!B:B,C54) -> 0 | F54: -725 | H54: =Budget!$G$5 -> Shopping | I54: 0 | J54: 0 | K54: 500 | L54: =SUMIFS(Transactions!$X:$X,Transactions!$Y:$Y,"<>F",Transactions!$W:$W,$A$1,Transactions!$V:$V,$A52,Transactions!$B:$B,$H54)*-1 -> 0 | M54: =SUMIFS(Transactions!$X:$X,Transactions!$W:$W,$A$1,Transactions!$V:$V,$A52,Transactions!$B:$B,$H54)*-1 -> 0 | N54: 500 | O54: Cash Savings to Income | P54: =IF($E61=0,"",$P53/$E61) -> 
C55: =Budget!$A$6 -> Side Project | E55: =SUMIFS(Transactions!X:X,Transactions!Y:Y,"<>F",Transactions!W:W,$A$1,Transactions!V:V,$A52,Transactions!B:B,C55) -> 0 | F55: 0 | H55: =Budget!$G$6 -> Bills | I55: 0 | J55: 0 | K55: 1500 | L55: =SUMIFS(Transactions!$X:$X,Transactions!$Y:$Y,"<>F",Transactions!$W:$W,$A$1,Transactions!$V:$V,$A52,Transactions!$B:$B,$H55)*-1 -> 0 | M55: =SUMIFS(Transactions!$X:$X,Transactions!$W:$W,$A$1,Transactions!$V:$V,$A52,Transactions!$B:$B,$H55)*-1 -> 0 | N55: 1500 | O55: Gross Savings | P55: =$E61-$L61+$L60 -> 0
C56: =Budget!$A$7 -> Other Income | E56: =SUMIFS(Transactions!X:X,Transactions!Y:Y,"<>F",Transactions!W:W,$A$1,Transactions!V:V,$A52,Transactions!B:B,C56) -> 0 | F56: 0 | H56: =Budget!$G$7 -> Car | I56: 0 | J56: 0 | K56: 640 | L56: =SUMIFS(Transactions!$X:$X,Transactions!$Y:$Y,"<>F",Transactions!$W:$W,$A$1,Transactions!$V:$V,$A52,Transactions!$B:$B,$H56)*-1 -> 0 | M56: =SUMIFS(Transactions!$X:$X,Transactions!$W:$W,$A$1,Transactions!$V:$V,$A52,Transactions!$B:$B,$H56)*-1 -> 0 | N56: 640 | O56: Gross Savings to Income | P56: =IF($E61=0,"",$P55/$E61) -> 
C57: =Budget!$A$8 -> 0 | D57: 0 | E57: =SUMIFS(Transactions!X:X,Transactions!Y:Y,"<>F",Transactions!W:W,$A$1,Transactions!V:V,$A52,Transactions!B:B,C57) -> 0 | F57: 0 | H57: =Budget!$G$8 -> Charity | I57: 0 | J57: 0 | K57: 400 | L57: =SUMIFS(Transactions!$X:$X,Transactions!$Y:$Y,"<>F",Transactions!$W:$W,$A$1,Transactions!$V:$V,$A52,Transactions!$B:$B,$H57)*-1 -> 0 | M57: =SUMIFS(Transactions!$X:$X,Transactions!$W:$W,$A$1,Transactions!$V:$V,$A52,Transactions!$B:$B,$H57)*-1 -> 0 | N57: 400
C58: =Budget!$A$9 -> 0 | E58: =SUMIFS(Transactions!X:X,Transactions!Y:Y,"<>F",Transactions!W:W,$A$1,Transactions!V:V,$A52,Transactions!B:B,C58) -> 0 | F58: 0 | H58: =Budget!$G$9 -> Health | I58: 0 | J58: 0 | K58: 200 | L58: =SUMIFS(Transactions!$X:$X,Transactions!$Y:$Y,"<>F",Transactions!$W:$W,$A$1,Transactions!$V:$V,$A52,Transactions!$B:$B,$H58)*-1 -> 0 | M58: =SUMIFS(Transactions!$X:$X,Transactions!$W:$W,$A$1,Transactions!$V:$V,$A52,Transactions!$B:$B,$H58)*-1 -> 0 | N58: 200
C59: =Budget!$A$10 -> 0 | E59: =SUMIFS(Transactions!X:X,Transactions!Y:Y,"<>F",Transactions!W:W,$A$1,Transactions!V:V,$A52,Transactions!B:B,C59) -> 0 | F59: 0 | H59: =Budget!$G$10 -> Other | I59: 0 | J59: 0 | L59: =SUMIFS(Transactions!$X:$X,Transactions!$Y:$Y,"<>F",Transactions!$W:$W,$A$1,Transactions!$V:$V,$A52,Transactions!$B:$B,$H59)*-1 -> 0 | M59: =SUMIFS(Transactions!$X:$X,Transactions!$W:$W,$A$1,Transactions!$V:$V,$A52,Transactions!$B:$B,$H59)*-1 -> 0 | N59: 0
H60: Savings | I60: 0 | J60: 0 | K60: 1600 | L60: =SUMIFS(Transactions!$X:$X,Transactions!$Y:$Y,"<>F",Transactions!$W:$W,$A$1,Transactions!$V:$V,$A52,Transactions!$B:$B,$H60)*-1 -> 0 | M60: =SUMIFS(Transactions!$X:$X,Transactions!$W:$W,$A$1,Transactions!$V:$V,$A52,Transactions!$B:$B,$H60)*-1 -> 0 | N60: 1600
C61: Total Income | D61: =SUM(D52:D60) -> 6725 | E61: =SUM(E52:E60) -> 0 | F61: =SUM(F52:F60) -> -6725 | H61: Total Expenses | I61: =SUM(I52:I60) -> 0 | J61: 0 | K61: =SUM(K52:K60) -> 6425 | L61: =SUM(L52:L60) -> 0 | M61: =SUM(M52:M60) -> 0 | N61: =SUM(N52:N60) -> 6425
A62: 7 | B62: =TEXT(A62*28,"mmmm") -> July | C62: =Budget!$A$3 -> Salary | D62: 6000 | E62: =SUMIFS(Transactions!X:X,Transactions!Y:Y,"<>F",Transactions!W:W,$A$1,Transactions!V:V,$A62,Transactions!B:B,C62) -> 0 | F62: =E62-D62 -> -6000 | H62: =Budget!$G$3 -> Groceries | I62: =ROUND(AVERAGE(L32,L42,L52),-2) -> 0 | J62: 0 | K62: 1185 | L62: =SUMIFS(Transactions!$X:$X,Transactions!$Y:$Y,"<>F",Transactions!$W:$W,$A$1,Transactions!$V:$V,$A62,Transactions!$B:$B,$H62)*-1 -> 0 | M62: =SUMIFS(Transactions!$X:$X,Transactions!$W:$W,$A$1,Transactions!$V:$V,$A62,Transactions!$B:$B,$H62)*-1 -> 0 | N62: =K62-M62 -> 1185 | O62: Budget Cash Savings | P62: =$D71-$K71 -> 760
C63: =Budget!$A$4 -> Bonus | E63: =SUMIFS(Transactions!X:X,Transactions!Y:Y,"<>F",Transactions!W:W,$A$1,Transactions!V:V,$A62,Transactions!B:B,C63) -> 0 | F63: 0 | H63: =Budget!$G$4 -> Entertainment | I63: 0 | J63: 0 | K63: 400 | L63: =SUMIFS(Transactions!$X:$X,Transactions!$Y:$Y,"<>F",Transactions!$W:$W,$A$1,Transactions!$V:$V,$A62,Transactions!$B:$B,$H63)*-1 -> 0 | M63: =SUMIFS(Transactions!$X:$X,Transactions!$W:$W,$A$1,Transactions!$V:$V,$A62,Transactions!$B:$B,$H63)*-1 -> 0 | N63: 400 | O63: Cash Savings | P63: =$E71-$L71 -> 0
C64: =Budget!$A$5 -> Kids | D64: 725 | E64: =SUMIFS(Transactions!X:X,Transactions!Y:Y,"<>F",Transactions!W:W,$A$1,Transactions!V:V,$A62,Transactions!B:B,C64) -> 0 | F64: -725 | H64: =Budget!$G$5 -> Shopping | I64: 0 | J64: 0 | K64: 500 | L64: =SUMIFS(Transactions!$X:$X,Transactions!$Y:$Y,"<>F",Transactions!$W:$W,$A$1,Transactions!$V:$V,$A62,Transactions!$B:$B,$H64)*-1 -> 0 | M64: =SUMIFS(Transactions!$X:$X,Transactions!$W:$W,$A$1,Transactions!$V:$V,$A62,Transactions!$B:$B,$H64)*-1 -> 0 | N64: 500 | O64: Cash Savings to Income | P64: =IF($E71=0,"",$P63/$E71) -> 
C65: =Budget!$A$6 -> Side Project | E65: =SUMIFS(Transactions!X:X,Transactions!Y:Y,"<>F",Transactions!W:W,$A$1,Transactions!V:V,$A62,Transactions!B:B,C65) -> 0 | F65: 0 | H65: =Budget!$G$6 -> Bills | I65: 0 | J65: 0 | K65: 1500 | L65: =SUMIFS(Transactions!$X:$X,Transactions!$Y:$Y,"<>F",Transactions!$W:$W,$A$1,Transactions!$V:$V,$A62,Transactions!$B:$B,$H65)*-1 -> 0 | M65: =SUMIFS(Transactions!$X:$X,Transactions!$W:$W,$A$1,Transactions!$V:$V,$A62,Transactions!$B:$B,$H65)*-1 -> 0 | N65: 1500 | O65: Gross Savings | P65: =$E71-$L71+$L70 -> 0
C66: =Budget!$A$7 -> Other Income | D66: 460 | E66: =SUMIFS(Transactions!X:X,Transactions!Y:Y,"<>F",Transactions!W:W,$A$1,Transactions!V:V,$A62,Transactions!B:B,C66) -> 0 | F66: -460 | H66: =Budget!$G$7 -> Car | I66: 0 | J66: 0 | K66: 640 | L66: =SUMIFS(Transactions!$X:$X,Transactions!$Y:$Y,"<>F",Transactions!$W:$W,$A$1,Transactions!$V:$V,$A62,Transactions!$B:$B,$H66)*-1 -> 0 | M66: =SUMIFS(Transactions!$X:$X,Transactions!$W:$W,$A$1,Transactions!$V:$V,$A62,Transactions!$B:$B,$H66)*-1 -> 0 | N66: 640 | O66: Gross Savings to Income | P66: =IF($E71=0,"",$P65/$E71) -> 
C67: =Budget!$A$8 -> 0 | D67: 0 | E67: =SUMIFS(Transactions!X:X,Transactions!Y:Y,"<>F",Transactions!W:W,$A$1,Transactions!V:V,$A62,Transactions!B:B,C67) -> 0 | F67: 0 | H67: =Budget!$G$8 -> Charity | I67: 0 | J67: 0 | K67: 400 | L67: =SUMIFS(Transactions!$X:$X,Transactions!$Y:$Y,"<>F",Transactions!$W:$W,$A$1,Transactions!$V:$V,$A62,Transactions!$B:$B,$H67)*-1 -> 0 | M67: =SUMIFS(Transactions!$X:$X,Transactions!$W:$W,$A$1,Transactions!$V:$V,$A62,Transactions!$B:$B,$H67)*-1 -> 0 | N67: 400
C68: =Budget!$A$9 -> 0 | E68: =SUMIFS(Transactions!X:X,Transactions!Y:Y,"<>F",Transactions!W:W,$A$1,Transactions!V:V,$A62,Transactions!B:B,C68) -> 0 | F68: 0 | H68: =Budget!$G$9 -> Health | I68: 0 | J68: 0 | K68: 200 | L68: =SUMIFS(Transactions!$X:$X,Transactions!$Y:$Y,"<>F",Transactions!$W:$W,$A$1,Transactions!$V:$V,$A62,Transactions!$B:$B,$H68)*-1 -> 0 | M68: =SUMIFS(Transactions!$X:$X,Transactions!$W:$W,$A$1,Transactions!$V:$V,$A62,Transactions!$B:$B,$H68)*-1 -> 0 | N68: 200
C69: =Budget!$A$10 -> 0 | E69: =SUMIFS(Transactions!X:X,Transactions!Y:Y,"<>F",Transactions!W:W,$A$1,Transactions!V:V,$A62,Transactions!B:B,C69) -> 0 | F69: 0 | H69: =Budget!$G$10 -> Other | I69: 0 | J69: 0 | L69: =SUMIFS(Transactions!$X:$X,Transactions!$Y:$Y,"<>F",Transactions!$W:$W,$A$1,Transactions!$V:$V,$A62,Transactions!$B:$B,$H69)*-1 -> 0 | M69: =SUMIFS(Transactions!$X:$X,Transactions!$W:$W,$A$1,Transactions!$V:$V,$A62,Transactions!$B:$B,$H69)*-1 -> 0 | N69: 0
H70: Savings | I70: 0 | J70: 0 | K70: 1600 | L70: =SUMIFS(Transactions!$X:$X,Transactions!$Y:$Y,"<>F",Transactions!$W:$W,$A$1,Transactions!$V:$V,$A62,Transactions!$B:$B,$H70)*-1 -> 0 | M70: =SUMIFS(Transactions!$X:$X,Transactions!$W:$W,$A$1,Transactions!$V:$V,$A62,Transactions!$B:$B,$H70)*-1 -> 0 | N70: 1600
C71: Total Income | D71: =SUM(D62:D70) -> 7185 | E71: =SUM(E62:E70) -> 0 | F71: =SUM(F62:F70) -> -7185 | H71: Total Expenses | I71: =SUM(I62:I70) -> 0 | J71: 0 | K71: =SUM(K62:K70) -> 6425 | L71: =SUM(L62:L70) -> 0 | M71: =SUM(M62:M70) -> 0 | N71: =SUM(N62:N70) -> 6425
A72: 8 | B72: =TEXT(A72*28,"mmmm") -> August | C72: =Budget!$A$3 -> Salary | D72: 9000 | E72: =SUMIFS(Transactions!X:X,Transactions!Y:Y,"<>F",Transactions!W:W,$A$1,Transactions!V:V,$A72,Transactions!B:B,C72) -> 0 | F72: =E72-D72 -> -9000 | H72: =Budget!$G$3 -> Groceries | I72: =ROUND(AVERAGE(L42,L52,L62),-2) -> 0 | J72: 0 | K72: 1185 | L72: =SUMIFS(Transactions!$X:$X,Transactions!$Y:$Y,"<>F",Transactions!$W:$W,$A$1,Transactions!$V:$V,$A72,Transactions!$B:$B,$H72)*-1 -> 0 | M72: =SUMIFS(Transactions!$X:$X,Transactions!$W:$W,$A$1,Transactions!$V:$V,$A72,Transactions!$B:$B,$H72)*-1 -> 0 | N72: =K72-M72 -> 1185 | O72: Budget Cash Savings | P72: =$D81-$K81 -> 3300
C73: =Budget!$A$4 -> Bonus | E73: =SUMIFS(Transactions!X:X,Transactions!Y:Y,"<>F",Transactions!W:W,$A$1,Transactions!V:V,$A72,Transactions!B:B,C73) -> 0 | F73: 0 | H73: =Budget!$G$4 -> Entertainment | I73: 0 | J73: 0 | K73: 400 | L73: =SUMIFS(Transactions!$X:$X,Transactions!$Y:$Y,"<>F",Transactions!$W:$W,$A$1,Transactions!$V:$V,$A72,Transactions!$B:$B,$H73)*-1 -> 0 | M73: =SUMIFS(Transactions!$X:$X,Transactions!$W:$W,$A$1,Transactions!$V:$V,$A72,Transactions!$B:$B,$H73)*-1 -> 0 | N73: 400 | O73: Cash Savings | P73: =$E81-$L81 -> 0
C74: =Budget!$A$5 -> Kids | D74: 725 | E74: =SUMIFS(Transactions!X:X,Transactions!Y:Y,"<>F",Transactions!W:W,$A$1,Transactions!V:V,$A72,Transactions!B:B,C74) -> 0 | F74: -725 | H74: =Budget!$G$5 -> Shopping | I74: 0 | J74: 0 | K74: 500 | L74: =SUMIFS(Transactions!$X:$X,Transactions!$Y:$Y,"<>F",Transactions!$W:$W,$A$1,Transactions!$V:$V,$A72,Transactions!$B:$B,$H74)*-1 -> 0 | M74: =SUMIFS(Transactions!$X:$X,Transactions!$W:$W,$A$1,Transactions!$V:$V,$A72,Transactions!$B:$B,$H74)*-1 -> 0 | N74: 500 | O74: Cash Savings to Income | P74: =IF($E81=0,"",$P73/$E81) -> 
C75: =Budget!$A$6 -> Side Project | D75: 0 | E75: =SUMIFS(Transactions!X:X,Transactions!Y:Y,"<>F",Transactions!W:W,$A$1,Transactions!V:V,$A72,Transactions!B:B,C75) -> 0 | F75: 0 | H75: =Budget!$G$6 -> Bills | I75: 0 | J75: =L65 -> 0 | K75: 1500 | L75: =SUMIFS(Transactions!$X:$X,Transactions!$Y:$Y,"<>F",Transactions!$W:$W,$A$1,Transactions!$V:$V,$A72,Transactions!$B:$B,$H75)*-1 -> 0 | M75: =SUMIFS(Transactions!$X:$X,Transactions!$W:$W,$A$1,Transactions!$V:$V,$A72,Transactions!$B:$B,$H75)*-1 -> 0 | N75: 1500 | O75: Gross Savings | P75: =$E81-$L81+$L80 -> 0
C76: =Budget!$A$7 -> Other Income | E76: =SUMIFS(Transactions!X:X,Transactions!Y:Y,"<>F",Transactions!W:W,$A$1,Transactions!V:V,$A72,Transactions!B:B,C76) -> 0 | F76: 0 | H76: =Budget!$G$7 -> Car | I76: 0 | J76: 0 | K76: 640 | L76: =SUMIFS(Transactions!$X:$X,Transactions!$Y:$Y,"<>F",Transactions!$W:$W,$A$1,Transactions!$V:$V,$A72,Transactions!$B:$B,$H76)*-1 -> 0 | M76: =SUMIFS(Transactions!$X:$X,Transactions!$W:$W,$A$1,Transactions!$V:$V,$A72,Transactions!$B:$B,$H76)*-1 -> 0 | N76: 640 | O76: Gross Savings to Income | P76: =IF($E81=0,"",$P75/$E81) -> 
C77: =Budget!$A$8 -> 0 | E77: =SUMIFS(Transactions!X:X,Transactions!Y:Y,"<>F",Transactions!W:W,$A$1,Transactions!V:V,$A72,Transactions!B:B,C77) -> 0 | F77: 0 | H77: =Budget!$G$8 -> Charity | I77: 0 | J77: 0 | K77: 400 | L77: =SUMIFS(Transactions!$X:$X,Transactions!$Y:$Y,"<>F",Transactions!$W:$W,$A$1,Transactions!$V:$V,$A72,Transactions!$B:$B,$H77)*-1 -> 0 | M77: =SUMIFS(Transactions!$X:$X,Transactions!$W:$W,$A$1,Transactions!$V:$V,$A72,Transactions!$B:$B,$H77)*-1 -> 0 | N77: 400
C78: =Budget!$A$9 -> 0 | E78: =SUMIFS(Transactions!X:X,Transactions!Y:Y,"<>F",Transactions!W:W,$A$1,Transactions!V:V,$A72,Transactions!B:B,C78) -> 0 | F78: 0 | H78: =Budget!$G$9 -> Health | I78: 0 | J78: 0 | K78: 200 | L78: =SUMIFS(Transactions!$X:$X,Transactions!$Y:$Y,"<>F",Transactions!$W:$W,$A$1,Transactions!$V:$V,$A72,Transactions!$B:$B,$H78)*-1 -> 0 | M78: =SUMIFS(Transactions!$X:$X,Transactions!$W:$W,$A$1,Transactions!$V:$V,$A72,Transactions!$B:$B,$H78)*-1 -> 0 | N78: 200
C79: =Budget!$A$10 -> 0 | E79: =SUMIFS(Transactions!X:X,Transactions!Y:Y,"<>F",Transactions!W:W,$A$1,Transactions!V:V,$A72,Transactions!B:B,C79) -> 0 | F79: 0 | H79: =Budget!$G$10 -> Other | I79: 0 | J79: 0 | L79: =SUMIFS(Transactions!$X:$X,Transactions!$Y:$Y,"<>F",Transactions!$W:$W,$A$1,Transactions!$V:$V,$A72,Transactions!$B:$B,$H79)*-1 -> 0 | M79: =SUMIFS(Transactions!$X:$X,Transactions!$W:$W,$A$1,Transactions!$V:$V,$A72,Transactions!$B:$B,$H79)*-1 -> 0 | N79: 0
H80: Savings | I80: 0 | J80: 0 | K80: 1600 | L80: =SUMIFS(Transactions!$X:$X,Transactions!$Y:$Y,"<>F",Transactions!$W:$W,$A$1,Transactions!$V:$V,$A72,Transactions!$B:$B,$H80)*-1 -> 0 | M80: =SUMIFS(Transactions!$X:$X,Transactions!$W:$W,$A$1,Transactions!$V:$V,$A72,Transactions!$B:$B,$H80)*-1 -> 0 | N80: 1600
C81: Total Income | D81: =SUM(D72:D80) -> 9725 | E81: =SUM(E72:E80) -> 0 | F81: =SUM(F72:F80) -> -9725 | H81: Total Expenses | I81: =SUM(I72:I80) -> 0 | J81: 0 | K81: =SUM(K72:K80) -> 6425 | L81: =SUM(L72:L80) -> 0 | M81: =SUM(M72:M80) -> 0 | N81: =SUM(N72:N80) -> 6425
A82: 9 | B82: =TEXT(A82*28,"mmmm") -> September | C82: =Budget!$A$3 -> Salary | D82: 6000 | E82: =SUMIFS(Transactions!X:X,Transactions!Y:Y,"<>F",Transactions!W:W,$A$1,Transactions!V:V,$A82,Transactions!B:B,C82) -> 0 | F82: =E82-D82 -> -6000 | H82: =Budget!$G$3 -> Groceries | I82: =ROUND(AVERAGE(L52,L62,L72),-2) -> 0 | J82: 0 | K82: 1185 | L82: =SUMIFS(Transactions!$X:$X,Transactions!$Y:$Y,"<>F",Transactions!$W:$W,$A$1,Transactions!$V:$V,$A82,Transactions!$B:$B,$H82)*-1 -> 0 | M82: =SUMIFS(Transactions!$X:$X,Transactions!$W:$W,$A$1,Transactions!$V:$V,$A82,Transactions!$B:$B,$H82)*-1 -> 0 | N82: =K82-M82 -> 1185 | O82: Budget Cash Savings | P82: =$D91-$K91 -> 300
C83: =Budget!$A$4 -> Bonus | E83: =SUMIFS(Transactions!X:X,Transactions!Y:Y,"<>F",Transactions!W:W,$A$1,Transactions!V:V,$A82,Transactions!B:B,C83) -> 0 | F83: 0 | H83: =Budget!$G$4 -> Entertainment | I83: 0 | J83: 0 | K83: 400 | L83: =SUMIFS(Transactions!$X:$X,Transactions!$Y:$Y,"<>F",Transactions!$W:$W,$A$1,Transactions!$V:$V,$A82,Transactions!$B:$B,$H83)*-1 -> 0 | M83: =SUMIFS(Transactions!$X:$X,Transactions!$W:$W,$A$1,Transactions!$V:$V,$A82,Transactions!$B:$B,$H83)*-1 -> 0 | N83: 400 | O83: Cash Savings | P83: =$E91-$L91 -> 0
C84: =Budget!$A$5 -> Kids | D84: 725 | E84: =SUMIFS(Transactions!X:X,Transactions!Y:Y,"<>F",Transactions!W:W,$A$1,Transactions!V:V,$A82,Transactions!B:B,C84) -> 0 | F84: -725 | H84: =Budget!$G$5 -> Shopping | I84: 0 | J84: 0 | K84: 500 | L84: =SUMIFS(Transactions!$X:$X,Transactions!$Y:$Y,"<>F",Transactions!$W:$W,$A$1,Transactions!$V:$V,$A82,Transactions!$B:$B,$H84)*-1 -> 0 | M84: =SUMIFS(Transactions!$X:$X,Transactions!$W:$W,$A$1,Transactions!$V:$V,$A82,Transactions!$B:$B,$H84)*-1 -> 0 | N84: 500 | O84: Cash Savings to Income | P84: =IF($E91=0,"",$P83/$E91) -> 
C85: =Budget!$A$6 -> Side Project | D85: 0 | E85: =SUMIFS(Transactions!X:X,Transactions!Y:Y,"<>F",Transactions!W:W,$A$1,Transactions!V:V,$A82,Transactions!B:B,C85) -> 0 | F85: 0 | H85: =Budget!$G$6 -> Bills | I85: 0 | J85: 0 | K85: 1500 | L85: =SUMIFS(Transactions!$X:$X,Transactions!$Y:$Y,"<>F",Transactions!$W:$W,$A$1,Transactions!$V:$V,$A82,Transactions!$B:$B,$H85)*-1 -> 0 | M85: =SUMIFS(Transactions!$X:$X,Transactions!$W:$W,$A$1,Transactions!$V:$V,$A82,Transactions!$B:$B,$H85)*-1 -> 0 | N85: 1500 | O85: Gross Savings | P85: =$E91-$L91+$L90 -> 0
C86: =Budget!$A$7 -> Other Income | E86: =SUMIFS(Transactions!X:X,Transactions!Y:Y,"<>F",Transactions!W:W,$A$1,Transactions!V:V,$A82,Transactions!B:B,C86) -> 0 | F86: 0 | H86: =Budget!$G$7 -> Car | I86: 0 | J86: 0 | K86: 640 | L86: =SUMIFS(Transactions!$X:$X,Transactions!$Y:$Y,"<>F",Transactions!$W:$W,$A$1,Transactions!$V:$V,$A82,Transactions!$B:$B,$H86)*-1 -> 0 | M86: =SUMIFS(Transactions!$X:$X,Transactions!$W:$W,$A$1,Transactions!$V:$V,$A82,Transactions!$B:$B,$H86)*-1 -> 0 | N86: 640 | O86: Gross Savings to Income | P86: =IF($E91=0,"",$P85/$E91) -> 
C87: =Budget!$A$8 -> 0 | E87: =SUMIFS(Transactions!X:X,Transactions!Y:Y,"<>F",Transactions!W:W,$A$1,Transactions!V:V,$A82,Transactions!B:B,C87) -> 0 | F87: 0 | H87: =Budget!$G$8 -> Charity | I87: 0 | J87: 0 | K87: 400 | L87: =SUMIFS(Transactions!$X:$X,Transactions!$Y:$Y,"<>F",Transactions!$W:$W,$A$1,Transactions!$V:$V,$A82,Transactions!$B:$B,$H87)*-1 -> 0 | M87: =SUMIFS(Transactions!$X:$X,Transactions!$W:$W,$A$1,Transactions!$V:$V,$A82,Transactions!$B:$B,$H87)*-1 -> 0 | N87: 400
C88: =Budget!$A$9 -> 0 | E88: =SUMIFS(Transactions!X:X,Transactions!Y:Y,"<>F",Transactions!W:W,$A$1,Transactions!V:V,$A82,Transactions!B:B,C88) -> 0 | F88: 0 | H88: =Budget!$G$9 -> Health | I88: 0 | J88: 0 | K88: 200 | L88: =SUMIFS(Transactions!$X:$X,Transactions!$Y:$Y,"<>F",Transactions!$W:$W,$A$1,Transactions!$V:$V,$A82,Transactions!$B:$B,$H88)*-1 -> 0 | M88: =SUMIFS(Transactions!$X:$X,Transactions!$W:$W,$A$1,Transactions!$V:$V,$A82,Transactions!$B:$B,$H88)*-1 -> 0 | N88: 200
C89: =Budget!$A$10 -> 0 | E89: =SUMIFS(Transactions!X:X,Transactions!Y:Y,"<>F",Transactions!W:W,$A$1,Transactions!V:V,$A82,Transactions!B:B,C89) -> 0 | F89: 0 | H89: =Budget!$G$10 -> Other | I89: 0 | J89: 0 | L89: =SUMIFS(Transactions!$X:$X,Transactions!$Y:$Y,"<>F",Transactions!$W:$W,$A$1,Transactions!$V:$V,$A82,Transactions!$B:$B,$H89)*-1 -> 0 | M89: =SUMIFS(Transactions!$X:$X,Transactions!$W:$W,$A$1,Transactions!$V:$V,$A82,Transactions!$B:$B,$H89)*-1 -> 0 | N89: 0
H90: Savings | I90: 0 | J90: 0 | K90: 1600 | L90: =SUMIFS(Transactions!$X:$X,Transactions!$Y:$Y,"<>F",Transactions!$W:$W,$A$1,Transactions!$V:$V,$A82,Transactions!$B:$B,$H90)*-1 -> 0 | M90: =SUMIFS(Transactions!$X:$X,Transactions!$W:$W,$A$1,Transactions!$V:$V,$A82,Transactions!$B:$B,$H90)*-1 -> 0 | N90: 1600
C91: Total Income | D91: =SUM(D82:D90) -> 6725 | E91: =SUM(E82:E90) -> 0 | F91: =SUM(F82:F90) -> -6725 | H91: Total Expenses | I91: =SUM(I82:I90) -> 0 | J91: 0 | K91: =SUM(K82:K90) -> 6425 | L91: =SUM(L82:L90) -> 0 | M91: =SUM(M82:M90) -> 0 | N91: =SUM(N82:N90) -> 6425
A92: 10 | B92: =TEXT(A92*28,"mmmm") -> October | C92: =Budget!$A$3 -> Salary | D92: 6000 | E92: =SUMIFS(Transactions!X:X,Transactions!Y:Y,"<>F",Transactions!W:W,$A$1,Transactions!V:V,$A92,Transactions!B:B,C92) -> 3000 | F92: =E92-D92 -> -3000 | H92: =Budget!$G$3 -> Groceries | I92: =ROUND(AVERAGE(L62,L72,L82),-2) -> 0 | J92: 0 | K92: 1185 | L92: =SUMIFS(Transactions!$X:$X,Transactions!$Y:$Y,"<>F",Transactions!$W:$W,$A$1,Transactions!$V:$V,$A92,Transactions!$B:$B,$H92)*-1 -> 390 | M92: =SUMIFS(Transactions!$X:$X,Transactions!$W:$W,$A$1,Transactions!$V:$V,$A92,Transactions!$B:$B,$H92)*-1 -> 390 | N92: =K92-M92 -> 795 | O92: Budget Cash Savings | P92: =$D101-$K101 -> 560
C93: =Budget!$A$4 -> Bonus | E93: =SUMIFS(Transactions!X:X,Transactions!Y:Y,"<>F",Transactions!W:W,$A$1,Transactions!V:V,$A92,Transactions!B:B,C93) -> 0 | F93: 0 | H93: =Budget!$G$4 -> Entertainment | I93: 0 | J93: 0 | K93: 400 | L93: =SUMIFS(Transactions!$X:$X,Transactions!$Y:$Y,"<>F",Transactions!$W:$W,$A$1,Transactions!$V:$V,$A92,Transactions!$B:$B,$H93)*-1 -> 0 | M93: =SUMIFS(Transactions!$X:$X,Transactions!$W:$W,$A$1,Transactions!$V:$V,$A92,Transactions!$B:$B,$H93)*-1 -> 0 | N93: 400 | O93: Cash Savings | P93: =$E101-$L101 -> 655
C94: =Budget!$A$5 -> Kids | D94: 725 | E94: =SUMIFS(Transactions!X:X,Transactions!Y:Y,"<>F",Transactions!W:W,$A$1,Transactions!V:V,$A92,Transactions!B:B,C94) -> 0 | F94: -725 | H94: =Budget!$G$5 -> Shopping | I94: 0 | J94: 0 | K94: 500 | L94: =SUMIFS(Transactions!$X:$X,Transactions!$Y:$Y,"<>F",Transactions!$W:$W,$A$1,Transactions!$V:$V,$A92,Transactions!$B:$B,$H94)*-1 -> 95 | M94: =SUMIFS(Transactions!$X:$X,Transactions!$W:$W,$A$1,Transactions!$V:$V,$A92,Transactions!$B:$B,$H94)*-1 -> 95 | N94: 405 | O94: Cash Savings to Income | P94: =IF($E101=0,"",$P93/$E101) -> 0.2183333333
C95: =Budget!$A$6 -> Side Project | D95: 0 | E95: =SUMIFS(Transactions!X:X,Transactions!Y:Y,"<>F",Transactions!W:W,$A$1,Transactions!V:V,$A92,Transactions!B:B,C95) -> 0 | F95: 0 | H95: =Budget!$G$6 -> Bills | I95: 0 | J95: 0 | K95: 1500 | L95: =SUMIFS(Transactions!$X:$X,Transactions!$Y:$Y,"<>F",Transactions!$W:$W,$A$1,Transactions!$V:$V,$A92,Transactions!$B:$B,$H95)*-1 -> 440 | M95: =SUMIFS(Transactions!$X:$X,Transactions!$W:$W,$A$1,Transactions!$V:$V,$A92,Transactions!$B:$B,$H95)*-1 -> 440 | N95: 1060 | O95: Gross Savings | P95: =$E101-$L101+$L100 -> 1855
C96: =Budget!$A$7 -> Other Income | D96: 260 | E96: =SUMIFS(Transactions!X:X,Transactions!Y:Y,"<>F",Transactions!W:W,$A$1,Transactions!V:V,$A92,Transactions!B:B,C96) -> 0 | F96: -260 | H96: =Budget!$G$7 -> Car | I96: 0 | J96: 0 | K96: 640 | L96: =SUMIFS(Transactions!$X:$X,Transactions!$Y:$Y,"<>F",Transactions!$W:$W,$A$1,Transactions!$V:$V,$A92,Transactions!$B:$B,$H96)*-1 -> 200 | M96: =SUMIFS(Transactions!$X:$X,Transactions!$W:$W,$A$1,Transactions!$V:$V,$A92,Transactions!$B:$B,$H96)*-1 -> 200 | N96: 440 | O96: Gross Savings to Income | P96: =IF($E101=0,"",$P95/$E101) -> 0.6183333333
C97: =Budget!$A$8 -> 0 | E97: =SUMIFS(Transactions!X:X,Transactions!Y:Y,"<>F",Transactions!W:W,$A$1,Transactions!V:V,$A92,Transactions!B:B,C97) -> 0 | F97: 0 | H97: =Budget!$G$8 -> Charity | I97: 0 | J97: 0 | K97: 400 | L97: =SUMIFS(Transactions!$X:$X,Transactions!$Y:$Y,"<>F",Transactions!$W:$W,$A$1,Transactions!$V:$V,$A92,Transactions!$B:$B,$H97)*-1 -> 0 | M97: =SUMIFS(Transactions!$X:$X,Transactions!$W:$W,$A$1,Transactions!$V:$V,$A92,Transactions!$B:$B,$H97)*-1 -> 0 | N97: 400
C98: =Budget!$A$9 -> 0 | E98: =SUMIFS(Transactions!X:X,Transactions!Y:Y,"<>F",Transactions!W:W,$A$1,Transactions!V:V,$A92,Transactions!B:B,C98) -> 0 | F98: 0 | H98: =Budget!$G$9 -> Health | I98: 0 | J98: 0 | K98: 200 | L98: =SUMIFS(Transactions!$X:$X,Transactions!$Y:$Y,"<>F",Transactions!$W:$W,$A$1,Transactions!$V:$V,$A92,Transactions!$B:$B,$H98)*-1 -> 20 | M98: =SUMIFS(Transactions!$X:$X,Transactions!$W:$W,$A$1,Transactions!$V:$V,$A92,Transactions!$B:$B,$H98)*-1 -> 20 | N98: 180
C99: =Budget!$A$10 -> 0 | E99: =SUMIFS(Transactions!X:X,Transactions!Y:Y,"<>F",Transactions!W:W,$A$1,Transactions!V:V,$A92,Transactions!B:B,C99) -> 0 | F99: 0 | H99: =Budget!$G$10 -> Other | I99: 0 | J99: 0 | L99: =SUMIFS(Transactions!$X:$X,Transactions!$Y:$Y,"<>F",Transactions!$W:$W,$A$1,Transactions!$V:$V,$A92,Transactions!$B:$B,$H99)*-1 -> 0 | M99: =SUMIFS(Transactions!$X:$X,Transactions!$W:$W,$A$1,Transactions!$V:$V,$A92,Transactions!$B:$B,$H99)*-1 -> 0 | N99: 0
H100: Savings | I100: 0 | J100: 0 | K100: 1600 | L100: =SUMIFS(Transactions!$X:$X,Transactions!$Y:$Y,"<>F",Transactions!$W:$W,$A$1,Transactions!$V:$V,$A92,Transactions!$B:$B,$H100)*-1 -> 1200 | M100: =SUMIFS(Transactions!$X:$X,Transactions!$W:$W,$A$1,Transactions!$V:$V,$A92,Transactions!$B:$B,$H100)*-1 -> 1200 | N100: 400
C101: Total Income | D101: =SUM(D92:D100) -> 6985 | E101: =SUM(E92:E100) -> 3000 | F101: =SUM(F92:F100) -> -3985 | H101: Total Expenses | I101: =SUM(I92:I100) -> 0 | J101: 0 | K101: =SUM(K92:K100) -> 6425 | L101: =SUM(L92:L100) -> 2345 | M101: =SUM(M92:M100) -> 2345 | N101: =SUM(N92:N100) -> 4080
A102: 11 | B102: =TEXT(A102*28,"mmmm") -> November | C102: =Budget!$A$3 -> Salary | D102: 6000 | E102: =SUMIFS(Transactions!X:X,Transactions!Y:Y,"<>F",Transactions!W:W,$A$1,Transactions!V:V,$A102,Transactions!B:B,C102) -> 0 | F102: =E102-D102 -> -6000 | H102: =Budget!$G$3 -> Groceries | I102: =ROUND(AVERAGE(L72,L82,L92),-2) -> 100 | J102: 390 | K102: 1185 | L102: =SUMIFS(Transactions!$X:$X,Transactions!$Y:$Y,"<>F",Transactions!$W:$W,$A$1,Transactions!$V:$V,$A102,Transactions!$B:$B,$H102)*-1 -> 0 | M102: =SUMIFS(Transactions!$X:$X,Transactions!$W:$W,$A$1,Transactions!$V:$V,$A102,Transactions!$B:$B,$H102)*-1 -> 0 | N102: =K102-M102 -> 1185 | O102: Budget Cash Savings | P102: =$D111-$K111 -> 1300
C103: =Budget!$A$4 -> Bonus | E103: =SUMIFS(Transactions!X:X,Transactions!Y:Y,"<>F",Transactions!W:W,$A$1,Transactions!V:V,$A102,Transactions!B:B,C103) -> 0 | F103: 0 | H103: =Budget!$G$4 -> Entertainment | I103: 0 | J103: 0 | K103: 400 | L103: =SUMIFS(Transactions!$X:$X,Transactions!$Y:$Y,"<>F",Transactions!$W:$W,$A$1,Transactions!$V:$V,$A102,Transactions!$B:$B,$H103)*-1 -> 0 | M103: =SUMIFS(Transactions!$X:$X,Transactions!$W:$W,$A$1,Transactions!$V:$V,$A102,Transactions!$B:$B,$H103)*-1 -> 0 | N103: 400 | O103: Cash Savings | P103: =$E111-$L111 -> 0
C104: =Budget!$A$5 -> Kids | D104: 725 | E104: =SUMIFS(Transactions!X:X,Transactions!Y:Y,"<>F",Transactions!W:W,$A$1,Transactions!V:V,$A102,Transactions!B:B,C104) -> 0 | F104: -725 | H104: =Budget!$G$5 -> Shopping | I104: 0 | J104: 95 | K104: 500 | L104: =SUMIFS(Transactions!$X:$X,Transactions!$Y:$Y,"<>F",Transactions!$W:$W,$A$1,Transactions!$V:$V,$A102,Transactions!$B:$B,$H104)*-1 -> 0 | M104: =SUMIFS(Transactions!$X:$X,Transactions!$W:$W,$A$1,Transactions!$V:$V,$A102,Transactions!$B:$B,$H104)*-1 -> 0 | N104: 500 | O104: Cash Savings to Income | P104: =IF($E111=0,"",$P103/$E111) -> 
C105: =Budget!$A$6 -> Side Project | D105: 0 | E105: =SUMIFS(Transactions!X:X,Transactions!Y:Y,"<>F",Transactions!W:W,$A$1,Transactions!V:V,$A102,Transactions!B:B,C105) -> 0 | F105: 0 | H105: =Budget!$G$6 -> Bills | I105: 100 | J105: 440 | K105: 1500 | L105: =SUMIFS(Transactions!$X:$X,Transactions!$Y:$Y,"<>F",Transactions!$W:$W,$A$1,Transactions!$V:$V,$A102,Transactions!$B:$B,$H105)*-1 -> 0 | M105: =SUMIFS(Transactions!$X:$X,Transactions!$W:$W,$A$1,Transactions!$V:$V,$A102,Transactions!$B:$B,$H105)*-1 -> 1015 | N105: 485 | O105: Gross Savings | P105: =$E111-$L111+$L110 -> 0
C106: =Budget!$A$7 -> Other Income | D106: 1000 | E106: =SUMIFS(Transactions!X:X,Transactions!Y:Y,"<>F",Transactions!W:W,$A$1,Transactions!V:V,$A102,Transactions!B:B,C106) -> 0 | F106: -1000 | H106: =Budget!$G$7 -> Car | I106: 100 | J106: 200 | K106: 640 | L106: =SUMIFS(Transactions!$X:$X,Transactions!$Y:$Y,"<>F",Transactions!$W:$W,$A$1,Transactions!$V:$V,$A102,Transactions!$B:$B,$H106)*-1 -> 0 | M106: =SUMIFS(Transactions!$X:$X,Transactions!$W:$W,$A$1,Transactions!$V:$V,$A102,Transactions!$B:$B,$H106)*-1 -> 200 | N106: 440 | O106: Gross Savings to Income | P106: =IF($E111=0,"",$P105/$E111) -> 
C107: =Budget!$A$8 -> 0 | E107: =SUMIFS(Transactions!X:X,Transactions!Y:Y,"<>F",Transactions!W:W,$A$1,Transactions!V:V,$A102,Transactions!B:B,C107) -> 0 | F107: 0 | H107: =Budget!$G$8 -> Charity | I107: 0 | J107: 0 | K107: 400 | L107: =SUMIFS(Transactions!$X:$X,Transactions!$Y:$Y,"<>F",Transactions!$W:$W,$A$1,Transactions!$V:$V,$A102,Transactions!$B:$B,$H107)*-1 -> 0 | M107: =SUMIFS(Transactions!$X:$X,Transactions!$W:$W,$A$1,Transactions!$V:$V,$A102,Transactions!$B:$B,$H107)*-1 -> 0 | N107: 400
C108: =Budget!$A$9 -> 0 | E108: =SUMIFS(Transactions!X:X,Transactions!Y:Y,"<>F",Transactions!W:W,$A$1,Transactions!V:V,$A102,Transactions!B:B,C108) -> 0 | F108: 0 | H108: =Budget!$G$9 -> Health | I108: 0 | J108: 20 | K108: 200 | L108: =SUMIFS(Transactions!$X:$X,Transactions!$Y:$Y,"<>F",Transactions!$W:$W,$A$1,Transactions!$V:$V,$A102,Transactions!$B:$B,$H108)*-1 -> 0 | M108: =SUMIFS(Transactions!$X:$X,Transactions!$W:$W,$A$1,Transactions!$V:$V,$A102,Transactions!$B:$B,$H108)*-1 -> 0 | N108: 200
C109: =Budget!$A$10 -> 0 | E109: =SUMIFS(Transactions!X:X,Transactions!Y:Y,"<>F",Transactions!W:W,$A$1,Transactions!V:V,$A102,Transactions!B:B,C109) -> 0 | F109: 0 | H109: =Budget!$G$10 -> Other | I109: 0 | J109: 0 | L109: =SUMIFS(Transactions!$X:$X,Transactions!$Y:$Y,"<>F",Transactions!$W:$W,$A$1,Transactions!$V:$V,$A102,Transactions!$B:$B,$H109)*-1 -> 0 | M109: =SUMIFS(Transactions!$X:$X,Transactions!$W:$W,$A$1,Transactions!$V:$V,$A102,Transactions!$B:$B,$H109)*-1 -> 0 | N109: 0
H110: Savings | I110: 400 | J110: 1200 | K110: 1600 | L110: =SUMIFS(Transactions!$X:$X,Transactions!$Y:$Y,"<>F",Transactions!$W:$W,$A$1,Transactions!$V:$V,$A102,Transactions!$B:$B,$H110)*-1 -> 0 | M110: =SUMIFS(Transactions!$X:$X,Transactions!$W:$W,$A$1,Transactions!$V:$V,$A102,Transactions!$B:$B,$H110)*-1 -> 1600 | N110: 0
C111: Total Income | D111: =SUM(D102:D110) -> 7725 | E111: =SUM(E102:E110) -> 0 | F111: =SUM(F102:F110) -> -7725 | H111: Total Expenses | I111: =SUM(I102:I110) -> 700 | J111: 2345 | K111: =SUM(K102:K110) -> 6425 | L111: =SUM(L102:L110) -> 0 | M111: =SUM(M102:M110) -> 2815 | N111: =SUM(N102:N110) -> 3610
A112: 12 | B112: =TEXT(A112*28,"mmmm") -> December | C112: =Budget!$A$3 -> Salary | D112: 6000 | E112: =SUMIFS(Transactions!X:X,Transactions!Y:Y,"<>F",Transactions!W:W,$A$1,Transactions!V:V,$A112,Transactions!B:B,C112) -> 0 | F112: =E112-D112 -> -6000 | H112: =Budget!$G$3 -> Groceries | I112: =ROUND(AVERAGE(L82,L92,L102),-2) -> 100 | J112: 0 | K112: 1185 | L112: =SUMIFS(Transactions!$X:$X,Transactions!$Y:$Y,"<>F",Transactions!$W:$W,$A$1,Transactions!$V:$V,$A112,Transactions!$B:$B,$H112)*-1 -> 0 | M112: =SUMIFS(Transactions!$X:$X,Transactions!$W:$W,$A$1,Transactions!$V:$V,$A112,Transactions!$B:$B,$H112)*-1 -> 0 | N112: =K112-M112 -> 1185 | O112: Budget Cash Savings | P112: =$D121-$K121 -> 300
C113: =Budget!$A$4 -> Bonus | E113: =SUMIFS(Transactions!X:X,Transactions!Y:Y,"<>F",Transactions!W:W,$A$1,Transactions!V:V,$A112,Transactions!B:B,C113) -> 0 | F113: 0 | H113: =Budget!$G$4 -> Entertainment | I113: 0 | J113: 0 | K113: 400 | L113: =SUMIFS(Transactions!$X:$X,Transactions!$Y:$Y,"<>F",Transactions!$W:$W,$A$1,Transactions!$V:$V,$A112,Transactions!$B:$B,$H113)*-1 -> 0 | M113: =SUMIFS(Transactions!$X:$X,Transactions!$W:$W,$A$1,Transactions!$V:$V,$A112,Transactions!$B:$B,$H113)*-1 -> 0 | N113: 400 | O113: Cash Savings | P113: =$E121-$L121 -> 0
C114: =Budget!$A$5 -> Kids | D114: 725 | E114: =SUMIFS(Transactions!X:X,Transactions!Y:Y,"<>F",Transactions!W:W,$A$1,Transactions!V:V,$A112,Transactions!B:B,C114) -> 0 | F114: -725 | H114: =Budget!$G$5 -> Shopping | I114: 0 | J114: 0 | K114: 500 | L114: =SUMIFS(Transactions!$X:$X,Transactions!$Y:$Y,"<>F",Transactions!$W:$W,$A$1,Transactions!$V:$V,$A112,Transactions!$B:$B,$H114)*-1 -> 0 | M114: =SUMIFS(Transactions!$X:$X,Transactions!$W:$W,$A$1,Transactions!$V:$V,$A112,Transactions!$B:$B,$H114)*-1 -> 0 | N114: 500 | O114: Cash Savings to Income | P114: =IF($E121=0,"",$P113/$E121) -> 
C115: =Budget!$A$6 -> Side Project | E115: =SUMIFS(Transactions!X:X,Transactions!Y:Y,"<>F",Transactions!W:W,$A$1,Transactions!V:V,$A112,Transactions!B:B,C115) -> 0 | F115: 0 | H115: =Budget!$G$6 -> Bills | I115: 100 | J115: 0 | K115: 1500 | L115: =SUMIFS(Transactions!$X:$X,Transactions!$Y:$Y,"<>F",Transactions!$W:$W,$A$1,Transactions!$V:$V,$A112,Transactions!$B:$B,$H115)*-1 -> 0 | M115: =SUMIFS(Transactions!$X:$X,Transactions!$W:$W,$A$1,Transactions!$V:$V,$A112,Transactions!$B:$B,$H115)*-1 -> 0 | N115: 1500 | O115: Gross Savings | P115: =$E121-$L121+$L120 -> 0
C116: =Budget!$A$7 -> Other Income | E116: =SUMIFS(Transactions!X:X,Transactions!Y:Y,"<>F",Transactions!W:W,$A$1,Transactions!V:V,$A112,Transactions!B:B,C116) -> 0 | F116: 0 | H116: =Budget!$G$7 -> Car | I116: 100 | J116: 0 | K116: 640 | L116: =SUMIFS(Transactions!$X:$X,Transactions!$Y:$Y,"<>F",Transactions!$W:$W,$A$1,Transactions!$V:$V,$A112,Transactions!$B:$B,$H116)*-1 -> 0 | M116: =SUMIFS(Transactions!$X:$X,Transactions!$W:$W,$A$1,Transactions!$V:$V,$A112,Transactions!$B:$B,$H116)*-1 -> 0 | N116: 640 | O116: Gross Savings to Income | P116: =IF($E121=0,"",$P115/$E121) -> 
C117: =Budget!$A$8 -> 0 | E117: =SUMIFS(Transactions!X:X,Transactions!Y:Y,"<>F",Transactions!W:W,$A$1,Transactions!V:V,$A112,Transactions!B:B,C117) -> 0 | F117: 0 | H117: =Budget!$G$8 -> Charity | I117: 0 | J117: 0 | K117: 400 | L117: =SUMIFS(Transactions!$X:$X,Transactions!$Y:$Y,"<>F",Transactions!$W:$W,$A$1,Transactions!$V:$V,$A112,Transactions!$B:$B,$H117)*-1 -> 0 | M117: =SUMIFS(Transactions!$X:$X,Transactions!$W:$W,$A$1,Transactions!$V:$V,$A112,Transactions!$B:$B,$H117)*-1 -> 0 | N117: 400
C118: =Budget!$A$9 -> 0 | E118: =SUMIFS(Transactions!X:X,Transactions!Y:Y,"<>F",Transactions!W:W,$A$1,Transactions!V:V,$A112,Transactions!B:B,C118) -> 0 | F118: 0 | H118: =Budget!$G$9 -> Health | I118: 0 | J118: 0 | K118: 200 | L118: =SUMIFS(Transactions!$X:$X,Transactions!$Y:$Y,"<>F",Transactions!$W:$W,$A$1,Transactions!$V:$V,$A112,Transactions!$B:$B,$H118)*-1 -> 0 | M118: =SUMIFS(Transactions!$X:$X,Transactions!$W:$W,$A$1,Transactions!$V:$V,$A112,Transactions!$B:$B,$H118)*-1 -> 0 | N118: 200
C119: =Budget!$A$10 -> 0 | E119: =SUMIFS(Transactions!X:X,Transactions!Y:Y,"<>F",Transactions!W:W,$A$1,Transactions!V:V,$A112,Transactions!B:B,C119) -> 0 | F119: 0 | H119: =Budget!$G$10 -> Other | I119: 0 | J119: 0 | L119: =SUMIFS(Transactions!$X:$X,Transactions!$Y:$Y,"<>F",Transactions!$W:$W,$A$1,Transactions!$V:$V,$A112,Transactions!$B:$B,$H119)*-1 -> 0 | M119: =SUMIFS(Transactions!$X:$X,Transactions!$W:$W,$A$1,Transactions!$V:$V,$A112,Transactions!$B:$B,$H119)*-1 -> 0 | N119: 0
H120: Savings | I120: 400 | J120: 0 | K120: 1600 | L120: =SUMIFS(Transactions!$X:$X,Transactions!$Y:$Y,"<>F",Transactions!$W:$W,$A$1,Transactions!$V:$V,$A112,Transactions!$B:$B,$H120)*-1 -> 0 | M120: =SUMIFS(Transactions!$X:$X,Transactions!$W:$W,$A$1,Transactions!$V:$V,$A112,Transactions!$B:$B,$H120)*-1 -> 0 | N120: 1600
C121: Total Income | D121: =SUM(D112:D120) -> 6725 | E121: =SUM(E112:E120) -> 0 | F121: =SUM(F112:F120) -> -6725 | H121: Total Expenses | I121: =SUM(I112:I120) -> 700 | J121: 0 | K121: =SUM(K112:K120) -> 6425 | L121: =SUM(L112:L120) -> 0 | M121: =SUM(M112:M120) -> 0 | N121: =SUM(N112:N120) -> 6425
B122: Full Year | C122: =Budget!$A$3 -> Salary | E122: =SUMIFS(Transactions!X:X,Transactions!Y:Y,"<>F",Transactions!W:W,$A$1,Transactions!B:B,C122) -> 3000 | H122: =Budget!$G$3 -> Groceries | I122: =ROUND(AVERAGE(L2,L12,L22,L32,L42,L52,L62,L72,L82,L92,L102,L112),-2) -> 0 | L122: =SUMIFS(Transactions!$X:$X,Transactions!$Y:$Y,"<>F",Transactions!$W:$W,$A$1,Transactions!$B:$B,$H122)*-1 -> 390 | O122: Budget Cash Savings | P122: =$D131-$K131 -> 0
C123: =Budget!$A$4 -> Bonus | E123: =SUMIFS(Transactions!X:X,Transactions!Y:Y,"<>F",Transactions!W:W,$A$1,Transactions!B:B,C123) -> 0 | H123: =Budget!$G$4 -> Entertainment | I123: =ROUND(AVERAGE(L3,L13,L23,L33,L43,L53,L63,L73,L83,L93,L103,L113),-2) -> 0 | L123: =SUMIFS(Transactions!$X:$X,Transactions!$Y:$Y,"<>F",Transactions!$W:$W,$A$1,Transactions!$B:$B,$H123)*-1 -> 0 | O123: Cash Savings | P123: =$E131-$L131 -> 655
C124: =Budget!$A$5 -> Kids | E124: =SUMIFS(Transactions!X:X,Transactions!Y:Y,"<>F",Transactions!W:W,$A$1,Transactions!B:B,C124) -> 0 | H124: =Budget!$G$5 -> Shopping | I124: =ROUND(AVERAGE(L4,L14,L24,L34,L44,L54,L64,L74,L84,L94,L104,L114),-2) -> 0 | L124: =SUMIFS(Transactions!$X:$X,Transactions!$Y:$Y,"<>F",Transactions!$W:$W,$A$1,Transactions!$B:$B,$H124)*-1 -> 95 | O124: Cash Savings to Income | P124: =IF($E131=0,"",$P123/$E131) -> 0.2183333333
C125: =Budget!$A$6 -> Side Project | E125: =SUMIFS(Transactions!X:X,Transactions!Y:Y,"<>F",Transactions!W:W,$A$1,Transactions!B:B,C125) -> 0 | H125: =Budget!$G$6 -> Bills | I125: 0 | L125: =SUMIFS(Transactions!$X:$X,Transactions!$Y:$Y,"<>F",Transactions!$W:$W,$A$1,Transactions!$B:$B,$H125)*-1 -> 440 | O125: Gross Savings | P125: =$E131-$L131+$L130 -> 1855
C126: =Budget!$A$7 -> Other Income | E126: =SUMIFS(Transactions!X:X,Transactions!Y:Y,"<>F",Transactions!W:W,$A$1,Transactions!B:B,C126) -> 0 | H126: =Budget!$G$7 -> Car | I126: 0 | L126: =SUMIFS(Transactions!$X:$X,Transactions!$Y:$Y,"<>F",Transactions!$W:$W,$A$1,Transactions!$B:$B,$H126)*-1 -> 200 | O126: Gross Savings to Income | P126: =IF($E131=0,"",$P125/$E131) -> 0.6183333333
C127: =Budget!$A$8 -> 0 | E127: =SUMIFS(Transactions!X:X,Transactions!Y:Y,"<>F",Transactions!W:W,$A$1,Transactions!B:B,C127) -> 0 | H127: =Budget!$G$8 -> Charity | I127: 0 | L127: =SUMIFS(Transactions!$X:$X,Transactions!$Y:$Y,"<>F",Transactions!$W:$W,$A$1,Transactions!$B:$B,$H127)*-1 -> 0
C128: =Budget!$A$9 -> 0 | E128: =SUMIFS(Transactions!X:X,Transactions!Y:Y,"<>F",Transactions!W:W,$A$1,Transactions!B:B,C128) -> 0 | H128: =Budget!$G$9 -> Health | I128: 0 | L128: =SUMIFS(Transactions!$X:$X,Transactions!$Y:$Y,"<>F",Transactions!$W:$W,$A$1,Transactions!$B:$B,$H128)*-1 -> 20
C129: =Budget!$A$10 -> 0 | E129: =SUMIFS(Transactions!X:X,Transactions!Y:Y,"<>F",Transactions!W:W,$A$1,Transactions!B:B,C129) -> 0 | H129: =Budget!$G$10 -> Other | I129: 0 | L129: =SUMIFS(Transactions!$X:$X,Transactions!$Y:$Y,"<>F",Transactions!$W:$W,$A$1,Transactions!$B:$B,$H129)*-1 -> 0
H130: Savings | I130: 100 | L130: =SUMIFS(Transactions!$X:$X,Transactions!$Y:$Y,"<>F",Transactions!$W:$W,$A$1,Transactions!$B:$B,$H130)*-1 -> 1200
C131: Total Income | E131: =SUM(E122:E130) -> 3000 | H131: Total Expenses | I131: 200 | L131: =SUM(L122:L130) -> 2345 | M131: =SUM(M122:M130) -> 0
A135: Cash Savings Calculation: Total Income minus Total Expenses. As simple as it gets.
A136: No matter how you calculate your savings… From a Cash Flow purspective - money leaving your checking and credit card accounts should never exceed the inflow to these accounts. Per period.
A137: Cash Savings can go into a negative territory for a few periods only if you have a cushion. But long term this is not sustainable.
A139: Gross Savings:
A140: Consider this example: In Jan your income was 5,000. Total expenses were 4,000. Simple cash savings calculation gives us 1,000 saved. In Jan.
A141: Now consider you have a mortgage. In Feb you decided to make an extra payment on the mortgage. 1,000 goes towards principal.
A142: Your account balance becomes zero. Let's assume for simplicity you had no income nor expenses in Feb yet.
A143: From the cash flow perspective: you have made 5,000. You have spent 5,000.
A144: Jan Cash Savings: 1,000. Feb Cash Savings: -1,000. Year-to-date Cash Savings is zero. But you owe less money to the bank now.
A145: Gross Savings calculation removes such savings transactions from expenses category. All you need to do is use Savings as Budget Category on the Transactions sheet.
A146: Important: Savings transactions should not be counted twice. I.e. Mortgage extra payment of 1,000 in Feb does NOT increase your YTD savings to 2,000.
A148: The same can be said if you put this 1,000 in your personal pension 401K, RRSP, your kids education savings account, etc.
A149: Funds become unavailable to you until you cell your house, reach certain age or until your kids will go to college. You have to write an outflow transaction at your checking account.
A150: But in general terms putting money aside for retirement or tuition is saving.
A152: Now consider you pay 2,000 every month on your mortgage. 1,200 Principal and 800 Interest. 800 is a write off expense.
A153: But 1,200 of principal payment is no different than the extra payment. It reduces the amount you owe to the bank. It can be considered savings.
A154: Interest payments deducted from your taxes is a separate conversation. I consider tax refund as Income in the period when it is received
A156: Note: You can completely change formulas on the Budget spreadsheet or even replace it with your own budget sheet driven off of Transactions sheet for actuals
A159: Additional Note: Double-clicking a cell within Actual column opens Transactions sheet filtered by the period and amount you clicked on. The same action can be done using Show Transactions button in Moneyble ribbon

Sheet Net Worth
A1: Account Name | B1: 2024 Q1 | C1: 2024 Q2 | D1: 2024 Q3 | E1: 2024 Q4 | F1: 2025 Q1 | G1: 2025 Q2 | H1: 2025 Q3 | I1: 2025 Q4 | AR1: 1 | AS1: 1 | AT1: 1
A2: =Transactions!F1 -> Cash | B2: =SUMIFS(Transactions!$Z:$Z,Transactions!$A:$A,_xlfn.CONCAT("<=",DATE(MID(B$1,1,4),_xlfn.SWITCH(MID(B$1,7,1),"1","3","2","6","3","9","4","12","12"),_xlfn.SWITCH(MID(B$1,7,1),"1","31","2","30","3","30","4","31","30"))),Transactions!$Y:$Y,"<>F") -> 100 | C2: =SUMIFS(Transactions!$Z:$Z,Transactions!$A:$A,_xlfn.CONCAT("<=",DATE(MID(C$1,1,4),_xlfn.SWITCH(MID(C$1,7,1),"1","3","2","6","3","9","4","12","12"),_xlfn.SWITCH(MID(C$1,7,1),"1","31","2","30","3","30","4","31","30"))),Transactions!$Y:$Y,"<>F") -> 100 | D2: =SUMIFS(Transactions!$Z:$Z,Transactions!$A:$A,_xlfn.CONCAT("<=",DATE(MID(D$1,1,4),_xlfn.SWITCH(MID(D$1,7,1),"1","3","2","6","3","9","4","12","12"),_xlfn.SWITCH(MID(D$1,7,1),"1","31","2","30","3","30","4","31","30"))),Transactions!$Y:$Y,"<>F") -> 100 | E2: =SUMIFS(Transactions!$Z:$Z,Transactions!$A:$A,_xlfn.CONCAT("<=",DATE(MID(E$1,1,4),_xlfn.SWITCH(MID(E$1,7,1),"1","3","2","6","3","9","4","12","12"),_xlfn.SWITCH(MID(E$1,7,1),"1","31","2","30","3","30","4","31","30"))),Transactions!$Y:$Y,"<>F") -> 100 | F2: =SUMIFS(Transactions!$Z:$Z,Transactions!$A:$A,_xlfn.CONCAT("<=",DATE(MID(F$1,1,4),_xlfn.SWITCH(MID(F$1,7,1),"1","3","2","6","3","9","4","12","12"),_xlfn.SWITCH(MID(F$1,7,1),"1","31","2","30","3","30","4","31","30"))),Transactions!$Y:$Y,"<>F") -> 100 | G2: =SUMIFS(Transactions!$Z:$Z,Transactions!$A:$A,_xlfn.CONCAT("<=",DATE(MID(G$1,1,4),_xlfn.SWITCH(MID(G$1,7,1),"1","3","2","6","3","9","4","12","12"),_xlfn.SWITCH(MID(G$1,7,1),"1","31","2","30","3","30","4","31","30"))),Transactions!$Y:$Y,"<>F") -> 100 | H2: =SUMIFS(Transactions!$Z:$Z,Transactions!$A:$A,_xlfn.CONCAT("<=",DATE(MID(H$1,1,4),_xlfn.SWITCH(MID(H$1,7,1),"1","3","2","6","3","9","4","12","12"),_xlfn.SWITCH(MID(H$1,7,1),"1","31","2","30","3","30","4","31","30"))),Transactions!$Y:$Y,"<>F") -> 100 | I2: =SUMIFS(Transactions!$Z:$Z,Transactions!$A:$A,_xlfn.CONCAT("<=",DATE(MID(I$1,1,4),_xlfn.SWITCH(MID(I$1,7,1),"1","3","2","6","3","9","4","12","12"),_xlfn.SWITCH(MID(I$1,7,1),"1","31","2","30","3","30","4","31","30"))),Transactions!$Y:$Y,"<>F") -> 100
A3: =Transactions!H1 -> Checking | B3: =SUMIFS(Transactions!$AA:$AA,Transactions!$A:$A,_xlfn.CONCAT("<=",DATE(MID(B$1,1,4),_xlfn.SWITCH(MID(B$1,7,1),"1","3","2","6","3","9","4","12","12"),_xlfn.SWITCH(MID(B$1,7,1),"1","31","2","30","3","30","4","31","30"))),Transactions!$Y:$Y,"<>F") -> 5000 | C3: =SUMIFS(Transactions!$AA:$AA,Transactions!$A:$A,_xlfn.CONCAT("<=",DATE(MID(C$1,1,4),_xlfn.SWITCH(MID(C$1,7,1),"1","3","2","6","3","9","4","12","12"),_xlfn.SWITCH(MID(C$1,7,1),"1","31","2","30","3","30","4","31","30"))),Transactions!$Y:$Y,"<>F") -> 5000 | D3: =SUMIFS(Transactions!$AA:$AA,Transactions!$A:$A,_xlfn.CONCAT("<=",DATE(MID(D$1,1,4),_xlfn.SWITCH(MID(D$1,7,1),"1","3","2","6","3","9","4","12","12"),_xlfn.SWITCH(MID(D$1,7,1),"1","31","2","30","3","30","4","31","30"))),Transactions!$Y:$Y,"<>F") -> 5000 | E3: =SUMIFS(Transactions!$AA:$AA,Transactions!$A:$A,_xlfn.CONCAT("<=",DATE(MID(E$1,1,4),_xlfn.SWITCH(MID(E$1,7,1),"1","3","2","6","3","9","4","12","12"),_xlfn.SWITCH(MID(E$1,7,1),"1","31","2","30","3","30","4","31","30"))),Transactions!$Y:$Y,"<>F") -> 4135 | F3: =SUMIFS(Transactions!$AA:$AA,Transactions!$A:$A,_xlfn.CONCAT("<=",DATE(MID(F$1,1,4),_xlfn.SWITCH(MID(F$1,7,1),"1","3","2","6","3","9","4","12","12"),_xlfn.SWITCH(MID(F$1,7,1),"1","31","2","30","3","30","4","31","30"))),Transactions!$Y:$Y,"<>F") -> 4135 | G3: =SUMIFS(Transactions!$AA:$AA,Transactions!$A:$A,_xlfn.CONCAT("<=",DATE(MID(G$1,1,4),_xlfn.SWITCH(MID(G$1,7,1),"1","3","2","6","3","9","4","12","12"),_xlfn.SWITCH(MID(G$1,7,1),"1","31","2","30","3","30","4","31","30"))),Transactions!$Y:$Y,"<>F") -> 4135 | H3: =SUMIFS(Transactions!$AA:$AA,Transactions!$A:$A,_xlfn.CONCAT("<=",DATE(MID(H$1,1,4),_xlfn.SWITCH(MID(H$1,7,1),"1","3","2","6","3","9","4","12","12"),_xlfn.SWITCH(MID(H$1,7,1),"1","31","2","30","3","30","4","31","30"))),Transactions!$Y:$Y,"<>F") -> 4135 | I3: =SUMIFS(Transactions!$AA:$AA,Transactions!$A:$A,_xlfn.CONCAT("<=",DATE(MID(I$1,1,4),_xlfn.SWITCH(MID(I$1,7,1),"1","3","2","6","3","9","4","12","12"),_xlfn.SWITCH(MID(I$1,7,1),"1","31","2","30","3","30","4","31","30"))),Transactions!$Y:$Y,"<>F") -> 4135
A4: =Transactions!P1 -> Wife's Checking | B4: =SUMIFS(Transactions!$AE:$AE,Transactions!$A:$A,_xlfn.CONCAT("<=",DATE(MID(B$1,1,4),_xlfn.SWITCH(MID(B$1,7,1),"1","3","2","6","3","9","4","12","12"),_xlfn.SWITCH(MID(B$1,7,1),"1","31","2","30","3","30","4","31","30"))),Transactions!$Y:$Y,"<>F") -> 0 | C4: =SUMIFS(Transactions!$AE:$AE,Transactions!$A:$A,_xlfn.CONCAT("<=",DATE(MID(C$1,1,4),_xlfn.SWITCH(MID(C$1,7,1),"1","3","2","6","3","9","4","12","12"),_xlfn.SWITCH(MID(C$1,7,1),"1","31","2","30","3","30","4","31","30"))),Transactions!$Y:$Y,"<>F") -> 0 | D4: =SUMIFS(Transactions!$AE:$AE,Transactions!$A:$A,_xlfn.CONCAT("<=",DATE(MID(D$1,1,4),_xlfn.SWITCH(MID(D$1,7,1),"1","3","2","6","3","9","4","12","12"),_xlfn.SWITCH(MID(D$1,7,1),"1","31","2","30","3","30","4","31","30"))),Transactions!$Y:$Y,"<>F") -> 0 | E4: =SUMIFS(Transactions!$AE:$AE,Transactions!$A:$A,_xlfn.CONCAT("<=",DATE(MID(E$1,1,4),_xlfn.SWITCH(MID(E$1,7,1),"1","3","2","6","3","9","4","12","12"),_xlfn.SWITCH(MID(E$1,7,1),"1","31","2","30","3","30","4","31","30"))),Transactions!$Y:$Y,"<>F") -> 0 | F4: =SUMIFS(Transactions!$AE:$AE,Transactions!$A:$A,_xlfn.CONCAT("<=",DATE(MID(F$1,1,4),_xlfn.SWITCH(MID(F$1,7,1),"1","3","2","6","3","9","4","12","12"),_xlfn.SWITCH(MID(F$1,7,1),"1","31","2","30","3","30","4","31","30"))),Transactions!$Y:$Y,"<>F") -> 0 | G4: =SUMIFS(Transactions!$AE:$AE,Transactions!$A:$A,_xlfn.CONCAT("<=",DATE(MID(G$1,1,4),_xlfn.SWITCH(MID(G$1,7,1),"1","3","2","6","3","9","4","12","12"),_xlfn.SWITCH(MID(G$1,7,1),"1","31","2","30","3","30","4","31","30"))),Transactions!$Y:$Y,"<>F") -> 0 | H4: =SUMIFS(Transactions!$AE:$AE,Transactions!$A:$A,_xlfn.CONCAT("<=",DATE(MID(H$1,1,4),_xlfn.SWITCH(MID(H$1,7,1),"1","3","2","6","3","9","4","12","12"),_xlfn.SWITCH(MID(H$1,7,1),"1","31","2","30","3","30","4","31","30"))),Transactions!$Y:$Y,"<>F") -> 0 | I4: =SUMIFS(Transactions!$AE:$AE,Transactions!$A:$A,_xlfn.CONCAT("<=",DATE(MID(I$1,1,4),_xlfn.SWITCH(MID(I$1,7,1),"1","3","2","6","3","9","4","12","12"),_xlfn.SWITCH(MID(I$1,7,1),"1","31","2","30","3","30","4","31","30"))),Transactions!$Y:$Y,"<>F") -> 0
A5: =Transactions!$J$1 -> Visa | B5: =SUMIFS(Transactions!$AB:$AB,Transactions!$A:$A,_xlfn.CONCAT("<=",DATE(MID(B$1,1,4),_xlfn.SWITCH(MID(B$1,7,1),"1","3","2","6","3","9","4","12","12"),_xlfn.SWITCH(MID(B$1,7,1),"1","31","2","30","3","30","4","31","30"))),Transactions!$Y:$Y,"<>F") -> -3000 | C5: =SUMIFS(Transactions!$AB:$AB,Transactions!$A:$A,_xlfn.CONCAT("<=",DATE(MID(C$1,1,4),_xlfn.SWITCH(MID(C$1,7,1),"1","3","2","6","3","9","4","12","12"),_xlfn.SWITCH(MID(C$1,7,1),"1","31","2","30","3","30","4","31","30"))),Transactions!$Y:$Y,"<>F") -> -3000 | D5: =SUMIFS(Transactions!$AB:$AB,Transactions!$A:$A,_xlfn.CONCAT("<=",DATE(MID(D$1,1,4),_xlfn.SWITCH(MID(D$1,7,1),"1","3","2","6","3","9","4","12","12"),_xlfn.SWITCH(MID(D$1,7,1),"1","31","2","30","3","30","4","31","30"))),Transactions!$Y:$Y,"<>F") -> -3000 | E5: =SUMIFS(Transactions!$AB:$AB,Transactions!$A:$A,_xlfn.CONCAT("<=",DATE(MID(E$1,1,4),_xlfn.SWITCH(MID(E$1,7,1),"1","3","2","6","3","9","4","12","12"),_xlfn.SWITCH(MID(E$1,7,1),"1","31","2","30","3","30","4","31","30"))),Transactions!$Y:$Y,"<>F") -> -1480 | F5: =SUMIFS(Transactions!$AB:$AB,Transactions!$A:$A,_xlfn.CONCAT("<=",DATE(MID(F$1,1,4),_xlfn.SWITCH(MID(F$1,7,1),"1","3","2","6","3","9","4","12","12"),_xlfn.SWITCH(MID(F$1,7,1),"1","31","2","30","3","30","4","31","30"))),Transactions!$Y:$Y,"<>F") -> -1480 | G5: =SUMIFS(Transactions!$AB:$AB,Transactions!$A:$A,_xlfn.CONCAT("<=",DATE(MID(G$1,1,4),_xlfn.SWITCH(MID(G$1,7,1),"1","3","2","6","3","9","4","12","12"),_xlfn.SWITCH(MID(G$1,7,1),"1","31","2","30","3","30","4","31","30"))),Transactions!$Y:$Y,"<>F") -> -1480 | H5: =SUMIFS(Transactions!$AB:$AB,Transactions!$A:$A,_xlfn.CONCAT("<=",DATE(MID(H$1,1,4),_xlfn.SWITCH(MID(H$1,7,1),"1","3","2","6","3","9","4","12","12"),_xlfn.SWITCH(MID(H$1,7,1),"1","31","2","30","3","30","4","31","30"))),Transactions!$Y:$Y,"<>F") -> -1480 | I5: =SUMIFS(Transactions!$AB:$AB,Transactions!$A:$A,_xlfn.CONCAT("<=",DATE(MID(I$1,1,4),_xlfn.SWITCH(MID(I$1,7,1),"1","3","2","6","3","9","4","12","12"),_xlfn.SWITCH(MID(I$1,7,1),"1","31","2","30","3","30","4","31","30"))),Transactions!$Y:$Y,"<>F") -> -1480
A6: =Transactions!$L$1 -> MasterCard | B6: =SUMIFS(Transactions!$AC:$AC,Transactions!$A:$A,_xlfn.CONCAT("<=",DATE(MID(B$1,1,4),_xlfn.SWITCH(MID(B$1,7,1),"1","3","2","6","3","9","4","12","12"),_xlfn.SWITCH(MID(B$1,7,1),"1","31","2","30","3","30","4","31","30"))),Transactions!$Y:$Y,"<>F") -> 0 | C6: =SUMIFS(Transactions!$AC:$AC,Transactions!$A:$A,_xlfn.CONCAT("<=",DATE(MID(C$1,1,4),_xlfn.SWITCH(MID(C$1,7,1),"1","3","2","6","3","9","4","12","12"),_xlfn.SWITCH(MID(C$1,7,1),"1","31","2","30","3","30","4","31","30"))),Transactions!$Y:$Y,"<>F") -> 0 | D6: =SUMIFS(Transactions!$AC:$AC,Transactions!$A:$A,_xlfn.CONCAT("<=",DATE(MID(D$1,1,4),_xlfn.SWITCH(MID(D$1,7,1),"1","3","2","6","3","9","4","12","12"),_xlfn.SWITCH(MID(D$1,7,1),"1","31","2","30","3","30","4","31","30"))),Transactions!$Y:$Y,"<>F") -> 0 | E6: =SUMIFS(Transactions!$AC:$AC,Transactions!$A:$A,_xlfn.CONCAT("<=",DATE(MID(E$1,1,4),_xlfn.SWITCH(MID(E$1,7,1),"1","3","2","6","3","9","4","12","12"),_xlfn.SWITCH(MID(E$1,7,1),"1","31","2","30","3","30","4","31","30"))),Transactions!$Y:$Y,"<>F") -> 0 | F6: =SUMIFS(Transactions!$AC:$AC,Transactions!$A:$A,_xlfn.CONCAT("<=",DATE(MID(F$1,1,4),_xlfn.SWITCH(MID(F$1,7,1),"1","3","2","6","3","9","4","12","12"),_xlfn.SWITCH(MID(F$1,7,1),"1","31","2","30","3","30","4","31","30"))),Transactions!$Y:$Y,"<>F") -> 0 | G6: =SUMIFS(Transactions!$AC:$AC,Transactions!$A:$A,_xlfn.CONCAT("<=",DATE(MID(G$1,1,4),_xlfn.SWITCH(MID(G$1,7,1),"1","3","2","6","3","9","4","12","12"),_xlfn.SWITCH(MID(G$1,7,1),"1","31","2","30","3","30","4","31","30"))),Transactions!$Y:$Y,"<>F") -> 0 | H6: =SUMIFS(Transactions!$AC:$AC,Transactions!$A:$A,_xlfn.CONCAT("<=",DATE(MID(H$1,1,4),_xlfn.SWITCH(MID(H$1,7,1),"1","3","2","6","3","9","4","12","12"),_xlfn.SWITCH(MID(H$1,7,1),"1","31","2","30","3","30","4","31","30"))),Transactions!$Y:$Y,"<>F") -> 0 | I6: =SUMIFS(Transactions!$AC:$AC,Transactions!$A:$A,_xlfn.CONCAT("<=",DATE(MID(I$1,1,4),_xlfn.SWITCH(MID(I$1,7,1),"1","3","2","6","3","9","4","12","12"),_xlfn.SWITCH(MID(I$1,7,1),"1","31","2","30","3","30","4","31","30"))),Transactions!$Y:$Y,"<>F") -> 0
A7: =Transactions!$N$1 -> Visa2 | B7: =SUMIFS(Transactions!$AD:$AD,Transactions!$A:$A,_xlfn.CONCAT("<=",DATE(MID(B$1,1,4),_xlfn.SWITCH(MID(B$1,7,1),"1","3","2","6","3","9","4","12","12"),_xlfn.SWITCH(MID(B$1,7,1),"1","31","2","30","3","30","4","31","30"))),Transactions!$Y:$Y,"<>F") -> 0 | C7: =SUMIFS(Transactions!$AD:$AD,Transactions!$A:$A,_xlfn.CONCAT("<=",DATE(MID(C$1,1,4),_xlfn.SWITCH(MID(C$1,7,1),"1","3","2","6","3","9","4","12","12"),_xlfn.SWITCH(MID(C$1,7,1),"1","31","2","30","3","30","4","31","30"))),Transactions!$Y:$Y,"<>F") -> 0 | D7: =SUMIFS(Transactions!$AD:$AD,Transactions!$A:$A,_xlfn.CONCAT("<=",DATE(MID(D$1,1,4),_xlfn.SWITCH(MID(D$1,7,1),"1","3","2","6","3","9","4","12","12"),_xlfn.SWITCH(MID(D$1,7,1),"1","31","2","30","3","30","4","31","30"))),Transactions!$Y:$Y,"<>F") -> 0 | E7: =SUMIFS(Transactions!$AD:$AD,Transactions!$A:$A,_xlfn.CONCAT("<=",DATE(MID(E$1,1,4),_xlfn.SWITCH(MID(E$1,7,1),"1","3","2","6","3","9","4","12","12"),_xlfn.SWITCH(MID(E$1,7,1),"1","31","2","30","3","30","4","31","30"))),Transactions!$Y:$Y,"<>F") -> 0 | F7: =SUMIFS(Transactions!$AD:$AD,Transactions!$A:$A,_xlfn.CONCAT("<=",DATE(MID(F$1,1,4),_xlfn.SWITCH(MID(F$1,7,1),"1","3","2","6","3","9","4","12","12"),_xlfn.SWITCH(MID(F$1,7,1),"1","31","2","30","3","30","4","31","30"))),Transactions!$Y:$Y,"<>F") -> 0 | G7: =SUMIFS(Transactions!$AD:$AD,Transactions!$A:$A,_xlfn.CONCAT("<=",DATE(MID(G$1,1,4),_xlfn.SWITCH(MID(G$1,7,1),"1","3","2","6","3","9","4","12","12"),_xlfn.SWITCH(MID(G$1,7,1),"1","31","2","30","3","30","4","31","30"))),Transactions!$Y:$Y,"<>F") -> 0 | H7: =SUMIFS(Transactions!$AD:$AD,Transactions!$A:$A,_xlfn.CONCAT("<=",DATE(MID(H$1,1,4),_xlfn.SWITCH(MID(H$1,7,1),"1","3","2","6","3","9","4","12","12"),_xlfn.SWITCH(MID(H$1,7,1),"1","31","2","30","3","30","4","31","30"))),Transactions!$Y:$Y,"<>F") -> 0 | I7: =SUMIFS(Transactions!$AD:$AD,Transactions!$A:$A,_xlfn.CONCAT("<=",DATE(MID(I$1,1,4),_xlfn.SWITCH(MID(I$1,7,1),"1","3","2","6","3","9","4","12","12"),_xlfn.SWITCH(MID(I$1,7,1),"1","31","2","30","3","30","4","31","30"))),Transactions!$Y:$Y,"<>F") -> 0
A8: Everyday | B8: =SUM(B2:B7) -> 2100 | C8: 2100 | D8: 2100 | E8: 2755 | F8: =SUM(F2:F7) -> 2755 | G8: 2755 | H8: 2755 | I8: 2755
A9: Savings | B9: =SUMIFS(Investments!$AA:$AA,Investments!$A:$A,_xlfn.CONCAT("<=",DATE(MID(B$1,1,4),_xlfn.SWITCH(MID(B$1,7,1),"1","3","2","6","3","9","4","12","12"),_xlfn.SWITCH(MID(B$1,7,1),"1","31","2","30","3","30","4","31","30"))),Investments!$Z:$Z,"<>F") -> 5000 | C9: =SUMIFS(Investments!$AA:$AA,Investments!$A:$A,_xlfn.CONCAT("<=",DATE(MID(C$1,1,4),_xlfn.SWITCH(MID(C$1,7,1),"1","3","2","6","3","9","4","12","12"),_xlfn.SWITCH(MID(C$1,7,1),"1","31","2","30","3","30","4","31","30"))),Investments!$Z:$Z,"<>F") -> 5000 | D9: =SUMIFS(Investments!$AA:$AA,Investments!$A:$A,_xlfn.CONCAT("<=",DATE(MID(D$1,1,4),_xlfn.SWITCH(MID(D$1,7,1),"1","3","2","6","3","9","4","12","12"),_xlfn.SWITCH(MID(D$1,7,1),"1","31","2","30","3","30","4","31","30"))),Investments!$Z:$Z,"<>F") -> 0 | E9: =SUMIFS(Investments!$AA:$AA,Investments!$A:$A,_xlfn.CONCAT("<=",DATE(MID(E$1,1,4),_xlfn.SWITCH(MID(E$1,7,1),"1","3","2","6","3","9","4","12","12"),_xlfn.SWITCH(MID(E$1,7,1),"1","31","2","30","3","30","4","31","30"))),Investments!$Z:$Z,"<>F") -> 0 | F9: =SUMIFS(Investments!$AA:$AA,Investments!$A:$A,_xlfn.CONCAT("<=",DATE(MID(F$1,1,4),_xlfn.SWITCH(MID(F$1,7,1),"1","3","2","6","3","9","4","12","12"),_xlfn.SWITCH(MID(F$1,7,1),"1","31","2","30","3","30","4","31","30"))),Investments!$Z:$Z,"<>F") -> 0 | G9: =SUMIFS(Investments!$AA:$AA,Investments!$A:$A,_xlfn.CONCAT("<=",DATE(MID(G$1,1,4),_xlfn.SWITCH(MID(G$1,7,1),"1","3","2","6","3","9","4","12","12"),_xlfn.SWITCH(MID(G$1,7,1),"1","31","2","30","3","30","4","31","30"))),Investments!$Z:$Z,"<>F") -> 0 | H9: =SUMIFS(Investments!$AA:$AA,Investments!$A:$A,_xlfn.CONCAT("<=",DATE(MID(H$1,1,4),_xlfn.SWITCH(MID(H$1,7,1),"1","3","2","6","3","9","4","12","12"),_xlfn.SWITCH(MID(H$1,7,1),"1","31","2","30","3","30","4","31","30"))),Investments!$Z:$Z,"<>F") -> 0 | I9: =SUMIFS(Investments!$AA:$AA,Investments!$A:$A,_xlfn.CONCAT("<=",DATE(MID(I$1,1,4),_xlfn.SWITCH(MID(I$1,7,1),"1","3","2","6","3","9","4","12","12"),_xlfn.SWITCH(MID(I$1,7,1),"1","31","2","30","3","30","4","31","30"))),Investments!$Z:$Z,"<>F") -> 0
A10: iTrade | B10: =SUMIFS(Investments!$AE:$AE,Investments!$A:$A,_xlfn.CONCAT("<=",DATE(MID(B$1,1,4),_xlfn.SWITCH(MID(B$1,7,1),"1","3","2","6","3","9","4","12","12"),_xlfn.SWITCH(MID(B$1,7,1),"1","31","2","30","3","30","4","31","30"))),Investments!$Z:$Z,"<>F")+SUMIFS(Investments!$AG:$AG,Investments!$A:$A,_xlfn.CONCAT("<=",DATE(MID(B$1,1,4),_xlfn.SWITCH(MID(B$1,7,1),"1","3","2","6","3","9","4","12","12"),_xlfn.SWITCH(MID(B$1,7,1),"1","31","2","30","3","30","4","31","30"))),Investments!$Z:$Z,"<>F") -> 0 | C10: =SUMIFS(Investments!$AE:$AE,Investments!$A:$A,_xlfn.CONCAT("<=",DATE(MID(C$1,1,4),_xlfn.SWITCH(MID(C$1,7,1),"1","3","2","6","3","9","4","12","12"),_xlfn.SWITCH(MID(C$1,7,1),"1","31","2","30","3","30","4","31","30"))),Investments!$Z:$Z,"<>F")+SUMIFS(Investments!$AG:$AG,Investments!$A:$A,_xlfn.CONCAT("<=",DATE(MID(C$1,1,4),_xlfn.SWITCH(MID(C$1,7,1),"1","3","2","6","3","9","4","12","12"),_xlfn.SWITCH(MID(C$1,7,1),"1","31","2","30","3","30","4","31","30"))),Investments!$Z:$Z,"<>F") -> 0 | D10: =SUMIFS(Investments!$AE:$AE,Investments!$A:$A,_xlfn.CONCAT("<=",DATE(MID(D$1,1,4),_xlfn.SWITCH(MID(D$1,7,1),"1","3","2","6","3","9","4","12","12"),_xlfn.SWITCH(MID(D$1,7,1),"1","31","2","30","3","30","4","31","30"))),Investments!$Z:$Z,"<>F")+SUMIFS(Investments!$AG:$AG,Investments!$A:$A,_xlfn.CONCAT("<=",DATE(MID(D$1,1,4),_xlfn.SWITCH(MID(D$1,7,1),"1","3","2","6","3","9","4","12","12"),_xlfn.SWITCH(MID(D$1,7,1),"1","31","2","30","3","30","4","31","30"))),Investments!$Z:$Z,"<>F") -> 5765 | E10: =SUMIFS(Investments!$AE:$AE,Investments!$A:$A,_xlfn.CONCAT("<=",DATE(MID(E$1,1,4),_xlfn.SWITCH(MID(E$1,7,1),"1","3","2","6","3","9","4","12","12"),_xlfn.SWITCH(MID(E$1,7,1),"1","31","2","30","3","30","4","31","30"))),Investments!$Z:$Z,"<>F")+SUMIFS(Investments!$AG:$AG,Investments!$A:$A,_xlfn.CONCAT("<=",DATE(MID(E$1,1,4),_xlfn.SWITCH(MID(E$1,7,1),"1","3","2","6","3","9","4","12","12"),_xlfn.SWITCH(MID(E$1,7,1),"1","31","2","30","3","30","4","31","30"))),Investments!$Z:$Z,"<>F") -> 5765 | F10: =SUMIFS(Investments!$AE:$AE,Investments!$A:$A,_xlfn.CONCAT("<=",DATE(MID(F$1,1,4),_xlfn.SWITCH(MID(F$1,7,1),"1","3","2","6","3","9","4","12","12"),_xlfn.SWITCH(MID(F$1,7,1),"1","31","2","30","3","30","4","31","30"))),Investments!$Z:$Z,"<>F")+SUMIFS(Investments!$AG:$AG,Investments!$A:$A,_xlfn.CONCAT("<=",DATE(MID(F$1,1,4),_xlfn.SWITCH(MID(F$1,7,1),"1","3","2","6","3","9","4","12","12"),_xlfn.SWITCH(MID(F$1,7,1),"1","31","2","30","3","30","4","31","30"))),Investments!$Z:$Z,"<>F") -> 5765 | G10: =SUMIFS(Investments!$AE:$AE,Investments!$A:$A,_xlfn.CONCAT("<=",DATE(MID(G$1,1,4),_xlfn.SWITCH(MID(G$1,7,1),"1","3","2","6","3","9","4","12","12"),_xlfn.SWITCH(MID(G$1,7,1),"1","31","2","30","3","30","4","31","30"))),Investments!$Z:$Z,"<>F")+SUMIFS(Investments!$AG:$AG,Investments!$A:$A,_xlfn.CONCAT("<=",DATE(MID(G$1,1,4),_xlfn.SWITCH(MID(G$1,7,1),"1","3","2","6","3","9","4","12","12"),_xlfn.SWITCH(MID(G$1,7,1),"1","31","2","30","3","30","4","31","30"))),Investments!$Z:$Z,"<>F") -> 5765 | H10: =SUMIFS(Investments!$AE:$AE,Investments!$A:$A,_xlfn.CONCAT("<=",DATE(MID(H$1,1,4),_xlfn.SWITCH(MID(H$1,7,1),"1","3","2","6","3","9","4","12","12"),_xlfn.SWITCH(MID(H$1,7,1),"1","31","2","30","3","30","4","31","30"))),Investments!$Z:$Z,"<>F")+SUMIFS(Investments!$AG:$AG,Investments!$A:$A,_xlfn.CONCAT("<=",DATE(MID(H$1,1,4),_xlfn.SWITCH(MID(H$1,7,1),"1","3","2","6","3","9","4","12","12"),_xlfn.SWITCH(MID(H$1,7,1),"1","31","2","30","3","30","4","31","30"))),Investments!$Z:$Z,"<>F") -> 5765 | I10: =SUMIFS(Investments!$AE:$AE,Investments!$A:$A,_xlfn.CONCAT("<=",DATE(MID(I$1,1,4),_xlfn.SWITCH(MID(I$1,7,1),"1","3","2","6","3","9","4","12","12"),_xlfn.SWITCH(MID(I$1,7,1),"1","31","2","30","3","30","4","31","30"))),Investments!$Z:$Z,"<>F")+SUMIFS(Investments!$AG:$AG,Investments!$A:$A,_xlfn.CONCAT("<=",DATE(MID(I$1,1,4),_xlfn.SWITCH(MID(I$1,7,1),"1","3","2","6","3","9","4","12","12"),_xlfn.SWITCH(MID(I$1,7,1),"1","31","2","30","3","30","4","31","30"))),Investments!$Z:$Z,"<>F") -> 5765
A11: Savings | B11: =SUM(B9:B10) -> 5000 | C11: 5000 | D11: 5765 | E11: 5765 | F11: =SUM(F9:F10) -> 5765 | G11: 5765 | H11: 5765 | I11: 5765
A12: RRSP | B12: =SUMIFS(Investments!$AB:$AB,Investments!$A:$A,_xlfn.CONCAT("<=",DATE(MID(B$1,1,4),_xlfn.SWITCH(MID(B$1,7,1),"1","3","2","6","3","9","4","12","12"),_xlfn.SWITCH(MID(B$1,7,1),"1","31","2","30","3","30","4","31","30"))),Investments!$Z:$Z,"<>F") -> 150000 | C12: =SUMIFS(Investments!$AB:$AB,Investments!$A:$A,_xlfn.CONCAT("<=",DATE(MID(C$1,1,4),_xlfn.SWITCH(MID(C$1,7,1),"1","3","2","6","3","9","4","12","12"),_xlfn.SWITCH(MID(C$1,7,1),"1","31","2","30","3","30","4","31","30"))),Investments!$Z:$Z,"<>F") -> 160665 | D12: =SUMIFS(Investments!$AB:$AB,Investments!$A:$A,_xlfn.CONCAT("<=",DATE(MID(D$1,1,4),_xlfn.SWITCH(MID(D$1,7,1),"1","3","2","6","3","9","4","12","12"),_xlfn.SWITCH(MID(D$1,7,1),"1","31","2","30","3","30","4","31","30"))),Investments!$Z:$Z,"<>F") -> 170405 | E12: =SUMIFS(Investments!$AB:$AB,Investments!$A:$A,_xlfn.CONCAT("<=",DATE(MID(E$1,1,4),_xlfn.SWITCH(MID(E$1,7,1),"1","3","2","6","3","9","4","12","12"),_xlfn.SWITCH(MID(E$1,7,1),"1","31","2","30","3","30","4","31","30"))),Investments!$Z:$Z,"<>F") -> 170405 | F12: =SUMIFS(Investments!$AB:$AB,Investments!$A:$A,_xlfn.CONCAT("<=",DATE(MID(F$1,1,4),_xlfn.SWITCH(MID(F$1,7,1),"1","3","2","6","3","9","4","12","12"),_xlfn.SWITCH(MID(F$1,7,1),"1","31","2","30","3","30","4","31","30"))),Investments!$Z:$Z,"<>F") -> 170405 | G12: =SUMIFS(Investments!$AB:$AB,Investments!$A:$A,_xlfn.CONCAT("<=",DATE(MID(G$1,1,4),_xlfn.SWITCH(MID(G$1,7,1),"1","3","2","6","3","9","4","12","12"),_xlfn.SWITCH(MID(G$1,7,1),"1","31","2","30","3","30","4","31","30"))),Investments!$Z:$Z,"<>F") -> 170405 | H12: =SUMIFS(Investments!$AB:$AB,Investments!$A:$A,_xlfn.CONCAT("<=",DATE(MID(H$1,1,4),_xlfn.SWITCH(MID(H$1,7,1),"1","3","2","6","3","9","4","12","12"),_xlfn.SWITCH(MID(H$1,7,1),"1","31","2","30","3","30","4","31","30"))),Investments!$Z:$Z,"<>F") -> 170405 | I12: =SUMIFS(Investments!$AB:$AB,Investments!$A:$A,_xlfn.CONCAT("<=",DATE(MID(I$1,1,4),_xlfn.SWITCH(MID(I$1,7,1),"1","3","2","6","3","9","4","12","12"),_xlfn.SWITCH(MID(I$1,7,1),"1","31","2","30","3","30","4","31","30"))),Investments!$Z:$Z,"<>F") -> 170405
A13: RPP | B13: =SUMIFS(Investments!$AC:$AC,Investments!$A:$A,_xlfn.CONCAT("<=",DATE(MID(B$1,1,4),_xlfn.SWITCH(MID(B$1,7,1),"1","3","2","6","3","9","4","12","12"),_xlfn.SWITCH(MID(B$1,7,1),"1","31","2","30","3","30","4","31","30"))),Investments!$Z:$Z,"<>F") -> 23180 | C13: =SUMIFS(Investments!$AC:$AC,Investments!$A:$A,_xlfn.CONCAT("<=",DATE(MID(C$1,1,4),_xlfn.SWITCH(MID(C$1,7,1),"1","3","2","6","3","9","4","12","12"),_xlfn.SWITCH(MID(C$1,7,1),"1","31","2","30","3","30","4","31","30"))),Investments!$Z:$Z,"<>F") -> 25145 | D13: =SUMIFS(Investments!$AC:$AC,Investments!$A:$A,_xlfn.CONCAT("<=",DATE(MID(D$1,1,4),_xlfn.SWITCH(MID(D$1,7,1),"1","3","2","6","3","9","4","12","12"),_xlfn.SWITCH(MID(D$1,7,1),"1","31","2","30","3","30","4","31","30"))),Investments!$Z:$Z,"<>F") -> 29755 | E13: =SUMIFS(Investments!$AC:$AC,Investments!$A:$A,_xlfn.CONCAT("<=",DATE(MID(E$1,1,4),_xlfn.SWITCH(MID(E$1,7,1),"1","3","2","6","3","9","4","12","12"),_xlfn.SWITCH(MID(E$1,7,1),"1","31","2","30","3","30","4","31","30"))),Investments!$Z:$Z,"<>F") -> 30655 | F13: =SUMIFS(Investments!$AC:$AC,Investments!$A:$A,_xlfn.CONCAT("<=",DATE(MID(F$1,1,4),_xlfn.SWITCH(MID(F$1,7,1),"1","3","2","6","3","9","4","12","12"),_xlfn.SWITCH(MID(F$1,7,1),"1","31","2","30","3","30","4","31","30"))),Investments!$Z:$Z,"<>F") -> 30655 | G13: =SUMIFS(Investments!$AC:$AC,Investments!$A:$A,_xlfn.CONCAT("<=",DATE(MID(G$1,1,4),_xlfn.SWITCH(MID(G$1,7,1),"1","3","2","6","3","9","4","12","12"),_xlfn.SWITCH(MID(G$1,7,1),"1","31","2","30","3","30","4","31","30"))),Investments!$Z:$Z,"<>F") -> 30655 | H13: =SUMIFS(Investments!$AC:$AC,Investments!$A:$A,_xlfn.CONCAT("<=",DATE(MID(H$1,1,4),_xlfn.SWITCH(MID(H$1,7,1),"1","3","2","6","3","9","4","12","12"),_xlfn.SWITCH(MID(H$1,7,1),"1","31","2","30","3","30","4","31","30"))),Investments!$Z:$Z,"<>F") -> 30655 | I13: =SUMIFS(Investments!$AC:$AC,Investments!$A:$A,_xlfn.CONCAT("<=",DATE(MID(I$1,1,4),_xlfn.SWITCH(MID(I$1,7,1),"1","3","2","6","3","9","4","12","12"),_xlfn.SWITCH(MID(I$1,7,1),"1","31","2","30","3","30","4","31","30"))),Investments!$Z:$Z,"<>F") -> 30655
A14: RESP | B14: =SUMIFS(Investments!$AD:$AD,Investments!$A:$A,_xlfn.CONCAT("<=",DATE(MID(B$1,1,4),_xlfn.SWITCH(MID(B$1,7,1),"1","3","2","6","3","9","4","12","12"),_xlfn.SWITCH(MID(B$1,7,1),"1","31","2","30","3","30","4","31","30"))),Investments!$Z:$Z,"<>F") -> 68655 | C14: =SUMIFS(Investments!$AD:$AD,Investments!$A:$A,_xlfn.CONCAT("<=",DATE(MID(C$1,1,4),_xlfn.SWITCH(MID(C$1,7,1),"1","3","2","6","3","9","4","12","12"),_xlfn.SWITCH(MID(C$1,7,1),"1","31","2","30","3","30","4","31","30"))),Investments!$Z:$Z,"<>F") -> 68655 | D14: =SUMIFS(Investments!$AD:$AD,Investments!$A:$A,_xlfn.CONCAT("<=",DATE(MID(D$1,1,4),_xlfn.SWITCH(MID(D$1,7,1),"1","3","2","6","3","9","4","12","12"),_xlfn.SWITCH(MID(D$1,7,1),"1","31","2","30","3","30","4","31","30"))),Investments!$Z:$Z,"<>F") -> 76025 | E14: =SUMIFS(Investments!$AD:$AD,Investments!$A:$A,_xlfn.CONCAT("<=",DATE(MID(E$1,1,4),_xlfn.SWITCH(MID(E$1,7,1),"1","3","2","6","3","9","4","12","12"),_xlfn.SWITCH(MID(E$1,7,1),"1","31","2","30","3","30","4","31","30"))),Investments!$Z:$Z,"<>F") -> 76505 | F14: =SUMIFS(Investments!$AD:$AD,Investments!$A:$A,_xlfn.CONCAT("<=",DATE(MID(F$1,1,4),_xlfn.SWITCH(MID(F$1,7,1),"1","3","2","6","3","9","4","12","12"),_xlfn.SWITCH(MID(F$1,7,1),"1","31","2","30","3","30","4","31","30"))),Investments!$Z:$Z,"<>F") -> 76505 | G14: =SUMIFS(Investments!$AD:$AD,Investments!$A:$A,_xlfn.CONCAT("<=",DATE(MID(G$1,1,4),_xlfn.SWITCH(MID(G$1,7,1),"1","3","2","6","3","9","4","12","12"),_xlfn.SWITCH(MID(G$1,7,1),"1","31","2","30","3","30","4","31","30"))),Investments!$Z:$Z,"<>F") -> 76505 | H14: =SUMIFS(Investments!$AD:$AD,Investments!$A:$A,_xlfn.CONCAT("<=",DATE(MID(H$1,1,4),_xlfn.SWITCH(MID(H$1,7,1),"1","3","2","6","3","9","4","12","12"),_xlfn.SWITCH(MID(H$1,7,1),"1","31","2","30","3","30","4","31","30"))),Investments!$Z:$Z,"<>F") -> 76505 | I14: =SUMIFS(Investments!$AD:$AD,Investments!$A:$A,_xlfn.CONCAT("<=",DATE(MID(I$1,1,4),_xlfn.SWITCH(MID(I$1,7,1),"1","3","2","6","3","9","4","12","12"),_xlfn.SWITCH(MID(I$1,7,1),"1","31","2","30","3","30","4","31","30"))),Investments!$Z:$Z,"<>F") -> 76505
A15: Investments | B15: =SUM(B12:B14) -> 241835 | C15: 254465 | D15: 276185 | E15: 277565 | F15: =SUM(F12:F14) -> 277565 | G15: 277565 | H15: 277565 | I15: 277565
A16: Mortgage | B16: -90800 | C16: -87300 | D16: -83700 | E16: -80000 | F16: =E16-E16*3% -> -77600 | G16: =F16-F16*3% -> -75272 | H16: =G16-G16*3% -> -73013.84 | I16: =H16-H16*3% -> -70823.4248
A17: House Value | B17: 350000 | C17: =B17 -> 350000 | D17: 350000 | E17: 350000 | F17: =E17 -> 350000 | G17: =F17 -> 350000 | H17: =G17 -> 350000 | I17: =H17 -> 350000
A18: Prius | B18: 15000 | C18: =B18-B18*3% -> 14550 | D18: 14113.5 | E18: 13690.095 | F18: =E18-E18*3% -> 13279.39215 | G18: =F18-F18*3% -> 12881.01039 | H18: =G18-G18*3% -> 12494.58007 | I18: =H18-H18*3% -> 12119.74267
A19: Assets | B19: =SUM(B16:B18) -> 274200 | C19: 277250 | D19: 280413.5 | E19: 283690.095 | F19: 285679.3921 | G19: 287609.0104 | H19: 289480.7401 | I19: 291296.3179
A20: Total Net Worth | B20: =B8+B15+B11+B19 -> 523135 | C20: 538815 | D20: 564463.5 | E20: 569775.095 | F20: 571764.3921 | G20: 573694.0104 | H20: 575565.7401 | I20: 577381.3179
A22: Total Assets | B22: =B2+B3+B4+B15+B11+B17+B18 -> 616935 | C22: =C2+C3+C4+C15+C11+C17+C18 -> 629115 | D22: 651163.5 | E22: 651255.095 | F22: 650844.3921 | G22: 650446.0104 | H22: 650059.5801 | I22: 649684.7427
A23: Total Liabilities | B23: =B5+B6+B7+B16 -> -93800 | C23: -90300 | D23: -86700 | E23: -81480 | F23: -79080 | G23: -76752 | H23: -74493.84 | I23: -72303.4248
A25: Percent Growth | C25: =(C20-B20)/B20 -> 0.02997314269 | D25: 0.04760168147 | E25: 0.009409988423 | F25: =(F20-E20)/E20 -> 0.003491372591 | G25: =(G20-F20)/F20 -> 0.00337484856 | H25: =(H20-G20)/G20 -> 0.003262592348 | I25: =(I20-H20)/H20 -> 0.003154422981

Sheet Setup
A1: Parameter | B1: Value | C1: Default Value | D1: Description
A2: File Version | B2: 2025.1.3 | D2: https://moneyble.com/download-moneyble-excel-template/
A3: Download Google Form transactions automatically | B3: No | C3: No | D3: Possible values: Yes/No. When it is set to Yes scheduled macro will sync transactions from Google Form to the Transactions sheet. Once an hour. And also on Activate event (when this file window becomes active) Before enabling automatic mode review Import sheet in this file. Download a few Google transactions using buttons on the Import sheet (Refresh button and Copy to Transactions button). Once you confirm the Google Form is connected / transactions are downloaded - you can turn on automatic mode. Note: Automatic mode uses clipboard. Clipboard will be cleared. If this creates problems - turn off automatic mode. If you change this parameter - close and reopen this file
A4: Generate Forecast from Subscriptions automatically | B4: No | C4: No | D4: Future improvement. Possible values: Yes/No
A5: Automatically select Amount column on Transactions sheet when the sheet is called from Budget by Year | B5: No | C5: No | D5: Show Transactions button in Moneyble ribbon takes you to the transactions that constitute amounts in the actual columns on the Budget by Year sheet(s). You can also double-click on the amount in the Actual columns. This parameter controls if you want amount column to be automatically selected when Transactions sheet is displayed and filtered. When Amount column is selected - Excel shows the Auto sum at the buttom in the status bar. The Sum on the Transactions screen should match the value in the cell on the Budget by Year. If you don't find this useful - set this to No
A6: Sync in progress | B6: No | C6: No | D6: Do not change this parameter. This parameter is used internally by the macro in the mobile Moneyble Excel file to avoid refreshing mobile file while Transactions are being downloaded/created
A7: Last Activity | B7: 2024-11-04T17:36:26 | D7: Do not change this parameter. This parameter is used internally by the macro in the mobile Moneyble Excel file to avoid refreshing mobile file while main file is in use
A17: Column B on Transactions sheet is validated against this list | D17: Column B on Investments sheet is validated against this list
A18: Budget Name | B18: Type | D18: Investment Name
A19: Transfer | B19: Other | D19: Pension
A20: Reimbursement | B20: Other | D20: Kids Education
A21: Settled | B21: Other | D21: Stocks
A22: Savings | B22: Other | D22: Growth
A23: Salary | B23: Income | D23: Transfer
A24: Bonus | B24: Income
A25: Kids | B25: Income
A26: Side Project | B26: Income
A27: Other Income | B27: Income
A28: Groceries | B28: Expense
A29: Entertainment | B29: Expense | D29: Do not change records with Type=Other
A30: Shopping | B30: Expense | D30: Change Type=Income and Type=Expense entries as you see fit
A31: Bills | B31: Expense
A32: Car | B32: Expense
A33: Charity | B33: Expense
A34: Health | B34: Expense
A35: Other | B35: Expense
A57: This list is used by the dropdown boxes that filter by account on Transactions sheet (do not change)
A58: Filter Drop Down
A59: Filter
A60: All
